Body Name,Mapped No,Cleansed Supplier Name,Family Category,Sub Category,Ap Net Value,Ap Tax Valve,Ap Gross Value,Paid Date,Cleansed Portfolio
Nottinghamshire County Council,05-00008,RADIODETECTION LTD,Soft Facilities Management,Security,0,-111.5,-111.5,01-Aug-11,TBC
Nottinghamshire County Council,05-00011,LOCAL GOVERNMENT ASSOCIATION,External Services (Highways & Culture),Organisations & Clubs,0,96,96,24-Aug-11,TBC
Nottinghamshire County Council,05-00012,LOCAL GOVERNMENT ASSOCIATION,External Services (Highways & Culture),Organisations & Clubs,0,96,96,24-Aug-11,TBC
Nottinghamshire County Council,05-00013,LOCAL GOVERNMENT ASSOCIATION,External Services (Highways & Culture),Organisations & Clubs,0,96,96,24-Aug-11,TBC
Nottinghamshire County Council,05-00015,LOCAL GOVERNMENT ASSOCIATION,External Services (Highways & Culture),Organisations & Clubs,0,90,90,24-Aug-11,TBC
Nottinghamshire County Council,05-00016,LOCAL GOVERNMENT ASSOCIATION,External Services (Highways & Culture),Organisations & Clubs,0,90,90,24-Aug-11,TBC
Nottinghamshire County Council,05-00017,LOCAL GOVERNMENT ASSOCIATION,External Services (Highways & Culture),Organisations & Clubs,0,90,90,24-Aug-11,TBC
Nottinghamshire County Council,05-00034,FLAMETREE PUBLISHING,ICT,"Printing & Publishing, Equipment & Supplies",0,-0.06,-0.06,16-Aug-11,TBC
Nottinghamshire County Council,05-00046,TARMAC CENTRAL LTD,External Services (Highways & Culture),Highways & Works,0,-0.01,-0.01,12-Aug-11,TBC
Nottinghamshire County Council,05-00053,MIDLAND QUARRY PRODUCTS LTD,External Services (Highways & Culture),Earth & Stone Aggregates ,0,-0.01,-0.01,16-Aug-11,TBC
Nottinghamshire County Council,05-00054,MIDLAND QUARRY PRODUCTS LTD,External Services (Highways & Culture),Earth & Stone Aggregates ,0,-0.01,-0.01,16-Aug-11,TBC
Nottinghamshire County Council,05-00058,TARMAC CENTRAL LTD,External Services (Highways & Culture),Highways & Works,0,-0.01,-0.01,08-Aug-11,TBC
Nottinghamshire County Council,05-00060,AMBER-RTM LTD,External Services (Highways & Culture),Highways & Works,0,-0.01,-0.01,23-Aug-11,TBC
Nottinghamshire County Council,05-00110,TARMAC CENTRAL LTD,External Services (Highways & Culture),Highways & Works,0,-0.01,-0.01,02-Aug-11,TBC
Nottinghamshire County Council,05-00166,EDEN BROWN LTD,People,Recruitment,0,842.22,842.22,01-Aug-11,TBC
Nottinghamshire County Council,05-00167,EDEN BROWN LTD,People,Recruitment,0,268.92,268.92,01-Aug-11,TBC
Nottinghamshire County Council,05-00168,EDEN BROWN LTD,People,Recruitment,0,226.04,226.04,01-Aug-11,TBC
Nottinghamshire County Council,05-00177,BLADE RUNNERS COMMERCIAL CLEANING LTD,Soft Facilities Management,Industrial Cleaning Services,0,122,122,01-Aug-11,TBC
Nottinghamshire County Council,05-00178,SQUIDCARD LTD,Professional Services,Financial & Insurance Services,0,476,476,04-Aug-11,TBC
Nottinghamshire County Council,05-00203,LUCY ELECTRIC UK LTD,Hard Facilities Management ,Electrical Systems & Lighting,0,0.01,0.01,18-Aug-11,TBC
Nottinghamshire County Council,05-00218,EARTH SQUARED LTD,Soft Facilities Management,Clothing,0,0.05,0.05,08-Aug-11,TBC
Nottinghamshire County Council,05-00223,TARMAC CENTRAL LTD,External Services (Highways & Culture),Highways & Works,0,-0.01,-0.01,02-Aug-11,TBC
Nottinghamshire County Council,05-00233,ENERGAS LTD,External Services (Highways & Culture),Chemicals & Gases,0,-96.85,-96.85,22-Aug-11,TBC
Nottinghamshire County Council,05-00239,TARMAC CENTRAL LTD,External Services (Highways & Culture),Highways & Works,0,-0.01,-0.01,03-Aug-11,TBC
Nottinghamshire County Council,05-00240,TARMAC CENTRAL LTD,External Services (Highways & Culture),Highways & Works,0,-0.01,-0.01,03-Aug-11,TBC
Nottinghamshire County Council,05-00241,TARMAC CENTRAL LTD,External Services (Highways & Culture),Highways & Works,0,-0.01,-0.01,03-Aug-11,TBC
Nottinghamshire County Council,05-00242,TARMAC CENTRAL LTD,External Services (Highways & Culture),Highways & Works,0,-0.01,-0.01,03-Aug-11,TBC
Nottinghamshire County Council,05-00246,TARMAC CENTRAL LTD,External Services (Highways & Culture),Highways & Works,0,-0.01,-0.01,02-Aug-11,TBC
Nottinghamshire County Council,05-00249,TARMAC CENTRAL LTD,External Services (Highways & Culture),Highways & Works,0,-0.01,-0.01,02-Aug-11,TBC
Nottinghamshire County Council,05-00251,TARMAC CENTRAL LTD,External Services (Highways & Culture),Highways & Works,0,-0.01,-0.01,03-Aug-11,TBC
Nottinghamshire County Council,05-00254,CAPITA SOCIAL CARE AND HOUSING,Care,Domiciliary Care,0,113.52,113.52,04-Aug-11,TBC
Nottinghamshire County Council,05-00255,CARDEA,Care,Healthcare Services,0,337.5,337.5,02-Aug-11,TBC
Nottinghamshire County Council,05-00256,CARDEA,Care,Healthcare Services,0,275.8,275.8,02-Aug-11,TBC
Nottinghamshire County Council,05-00257,CARDEA,Care,Healthcare Services,0,94.87,94.87,02-Aug-11,TBC
Nottinghamshire County Council,05-00258,CARDEA,Care,Healthcare Services,0,110.6,110.6,02-Aug-11,TBC
Nottinghamshire County Council,05-00259,CAPITA SOCIAL CARE AND HOUSING,Care,Domiciliary Care,0,234.07,234.07,04-Aug-11,TBC
Nottinghamshire County Council,05-00261,ANDYLOOS,Hard Facilities Management ,Plumbing Services,0,138.5,138.5,12-Aug-11,TBC
Nottinghamshire County Council,05-00269,TARMAC CENTRAL LTD,External Services (Highways & Culture),Highways & Works,0,0.01,0.01,03-Aug-11,TBC
Nottinghamshire County Council,05-00271,TARMAC CENTRAL LTD,External Services (Highways & Culture),Highways & Works,0,-0.01,-0.01,09-Aug-11,TBC
Nottinghamshire County Council,05-00273,TARMAC CENTRAL LTD,External Services (Highways & Culture),Highways & Works,0,-0.01,-0.01,09-Aug-11,TBC
Nottinghamshire County Council,05-00275,TARMAC CENTRAL LTD,External Services (Highways & Culture),Highways & Works,0,-0.01,-0.01,09-Aug-11,TBC
Nottinghamshire County Council,05-00276,TARMAC CENTRAL LTD,External Services (Highways & Culture),Highways & Works,0,-0.01,-0.01,10-Aug-11,TBC
Nottinghamshire County Council,05-00278,AMBER-RTM LTD,External Services (Highways & Culture),Highways & Works,0,0.01,0.01,22-Aug-11,TBC
Nottinghamshire County Council,05-00306,NOTTINGHAM READYMIX,Hard Facilities Management ,Building Construction Services,0,-0.01,-0.01,12-Aug-11,TBC
Nottinghamshire County Council,05-00310,CAPITA SOCIAL CARE AND HOUSING,Care,Domiciliary Care,0,144.32,144.32,04-Aug-11,TBC
Nottinghamshire County Council,05-00311,ELKS EDUCATION TRUST,External Services (Highways & Culture),Education Services,0,"3,998.00","3,998.00",01-Aug-11,TBC
Nottinghamshire County Council,05-00312,CISCO SYSTEMS FINANCE INTERNATIONAL,ICT,Networking,0,"8,003.52","8,003.52",05-Aug-11,TBC
Nottinghamshire County Council,05-00313,EDEN BROWN LTD,People,Recruitment,0,115.51,115.51,04-Aug-11,TBC
Nottinghamshire County Council,05-00314,PICKFORDS LTD,Hard Facilities Management ,Material Handling & Storage,0,239.8,239.8,05-Aug-11,TBC
Nottinghamshire County Council,05-00336,BRITISH TELECOMMUNICATIONS PLC,ICT,Telecommunications & Media,0,0.01,0.01,01-Aug-11,TBC
Nottinghamshire County Council,05-00356,J C BALLS AND SONS,External Services (Highways & Culture),Construction Plant & Equipment,0,-0.01,-0.01,12-Aug-11,TBC
Nottinghamshire County Council,05-00368,CAPITA SOCIAL CARE AND HOUSING,Care,Domiciliary Care,0,109.56,109.56,04-Aug-11,TBC
Nottinghamshire County Council,05-00369,CAPITA SOCIAL CARE AND HOUSING,Care,Domiciliary Care,0,148.66,148.66,04-Aug-11,TBC
Nottinghamshire County Council,05-00417,CAPITA SOCIAL CARE AND HOUSING,Care,Domiciliary Care,0,135.42,135.42,04-Aug-11,TBC
Nottinghamshire County Council,05-00419,OFFICE INNOVATIONS,Soft Facilities Management,Office Supplies & Machines (Non It),0,446.16,446.16,11-Aug-11,TBC
Nottinghamshire County Council,05-00420,EAST MIDLANDS SECURITY SERVICES LTD,Soft Facilities Management,Security,0,85.1,85.1,12-Aug-11,TBC
Nottinghamshire County Council,05-00421,CAPITA SOCIAL CARE AND HOUSING,Care,Domiciliary Care,0,101.22,101.22,04-Aug-11,TBC
Nottinghamshire County Council,05-00422,CAPITA SOCIAL CARE AND HOUSING,Care,Domiciliary Care,0,87.18,87.18,04-Aug-11,TBC
Nottinghamshire County Council,05-00425,TARMAC CENTRAL LTD,External Services (Highways & Culture),Highways & Works,0,-0.01,-0.01,10-Aug-11,TBC
Nottinghamshire County Council,05-00451,TARMAC CENTRAL LTD,External Services (Highways & Culture),Highways & Works,0,-0.01,-0.01,10-Aug-11,TBC
Nottinghamshire County Council,05-00452,TARMAC CENTRAL LTD,External Services (Highways & Culture),Highways & Works,0,-0.01,-0.01,10-Aug-11,TBC
Nottinghamshire County Council,05-00482,CARDEA,Care,Healthcare Services,0,333,333,02-Aug-11,TBC
Nottinghamshire County Council,05-00483,CARDEA,Care,Healthcare Services,0,186.03,186.03,02-Aug-11,TBC
Nottinghamshire County Council,05-00484,MACILDOWIE ASSOCIATES,People,Recruitment,0,116.8,116.8,01-Aug-11,TBC
Nottinghamshire County Council,05-00486,ARCH COMMUNICATIONS,ICT,Telecommunications & Media,0,840,840,17-Aug-11,TBC
Nottinghamshire County Council,05-00487,KONICA MINOLTA,ICT,"Printing & Publishing, Equipment & Supplies",0,90.06,90.06,08-Aug-11,TBC
Nottinghamshire County Council,05-00489,CARDEA,Care,Healthcare Services,0,262.97,262.97,09-Aug-11,TBC
Nottinghamshire County Council,05-00490,CARDEA,Care,Healthcare Services,0,94.87,94.87,09-Aug-11,TBC
Nottinghamshire County Council,05-00491,PERSONNEL AND CARE BANK,People,Recruitment,0,85.8,85.8,25-Aug-11,TBC
Nottinghamshire County Council,05-00492,CAPITA SOCIAL CARE AND HOUSING,Care,Domiciliary Care,0,227.85,227.85,04-Aug-11,TBC
Nottinghamshire County Council,05-00493,CAPITA SOCIAL CARE AND HOUSING,Care,Domiciliary Care,0,127.15,127.15,04-Aug-11,TBC
Nottinghamshire County Council,05-00494,CARDEA,Care,Healthcare Services,0,86.1,86.1,09-Aug-11,TBC
Nottinghamshire County Council,05-00495,CAPITA SOCIAL CARE AND HOUSING,Care,Domiciliary Care,0,227.85,227.85,04-Aug-11,TBC
Nottinghamshire County Council,05-00496,CAPITA SOCIAL CARE AND HOUSING,Care,Domiciliary Care,0,112.03,112.03,04-Aug-11,TBC
Nottinghamshire County Council,05-00497,CAPITA SOCIAL CARE AND HOUSING,Care,Domiciliary Care,0,127.59,127.59,04-Aug-11,TBC
Nottinghamshire County Council,05-00514,TARMAC CENTRAL LTD,External Services (Highways & Culture),Highways & Works,0,-0.01,-0.01,10-Aug-11,TBC
Nottinghamshire County Council,05-00559,THE ART DEPARTMENT,External Services (Highways & Culture),Classroom Supplies & Teaching Aids,0,428,428,01-Aug-11,TBC
Nottinghamshire County Council,05-00560,CHRIS FEW CONSULTANCY LTD,Professional Services,Consultancy,0,344.15,344.15,01-Aug-11,TBC
Nottinghamshire County Council,05-00561,BUTLER AND WILLOW LTD,Soft Facilities Management,Office Supplies & Machines (Non It),0,195,195,17-Aug-11,TBC
Nottinghamshire County Council,05-00562,EDEN BROWN LTD,People,Recruitment,0,629.54,629.54,04-Aug-11,TBC
Nottinghamshire County Council,05-00563,MERIDIAN BUSINESS SUPPORT LTD,People,Recruitment,0,110.29,110.29,17-Aug-11,TBC
Nottinghamshire County Council,05-00569,RENNICKS (UK) LTD,External Services (Highways & Culture),Highways & Works,0,-0.01,-0.01,18-Aug-11,TBC
Nottinghamshire County Council,05-00575,ENNSTONE JOHNSTON LTD,External Services (Highways & Culture),Earth & Stone Aggregates ,0,-0.01,-0.01,11-Aug-11,TBC
Nottinghamshire County Council,05-00594,TARMAC CENTRAL LTD,External Services (Highways & Culture),Highways & Works,0,-0.01,-0.01,17-Aug-11,TBC
Nottinghamshire County Council,05-00595,TARMAC CENTRAL LTD,External Services (Highways & Culture),Highways & Works,0,-0.01,-0.01,22-Aug-11,TBC
Nottinghamshire County Council,05-00600,EXPRESS ASPHALT LTD,External Services (Highways & Culture),Highways & Works,0,0.01,0.01,19-Aug-11,TBC
Nottinghamshire County Council,05-00621,CARDEA,Care,Healthcare Services,0,260.18,260.18,09-Aug-11,TBC
Nottinghamshire County Council,05-00622,BANDH DESIGNS,Professional Services,"Reproduction, Photographic & Design Services",0,101.3,101.3,15-Aug-11,TBC
Nottinghamshire County Council,05-00623,AU MEDIA COMMS,ICT,Telecommunications & Media,0,199,199,17-Aug-11,TBC
Nottinghamshire County Council,05-00624,SKILLSOFT UK LTD,People,Vocational Training,0,"3,825.51","3,825.51",26-Aug-11,TBC
Nottinghamshire County Council,05-00625,CAPITA SOCIAL CARE AND HOUSING,Care,Domiciliary Care,0,244.07,244.07,11-Aug-11,TBC
Nottinghamshire County Council,05-00629,IN CONTROL PARTNERSHIPS,Care,Community and Social Services,0,450,450,03-Aug-11,TBC
Nottinghamshire County Council,05-00656,A1 MINI-MIX CONCRETE LTD,Hard Facilities Management ,Concrete Installation & Repair Services,0,-0.01,-0.01,30-Aug-11,TBC
Nottinghamshire County Council,05-00674,CAPITA SOCIAL CARE AND HOUSING,Care,Domiciliary Care,0,166.5,166.5,04-Aug-11,TBC
Nottinghamshire County Council,05-00675,CAPITA SOCIAL CARE AND HOUSING,Care,Domiciliary Care,0,333,333,04-Aug-11,TBC
Nottinghamshire County Council,05-00676,CAPITA SOCIAL CARE AND HOUSING,Care,Domiciliary Care,0,266.1,266.1,04-Aug-11,TBC
Nottinghamshire County Council,05-00677,CAPITA SOCIAL CARE AND HOUSING,Care,Domiciliary Care,0,258.62,258.62,04-Aug-11,TBC
Nottinghamshire County Council,05-00678,EDEN BROWN LTD,People,Recruitment,0,731.42,731.42,04-Aug-11,TBC
Nottinghamshire County Council,05-00679,CAPITA SOCIAL CARE AND HOUSING,Care,Domiciliary Care,0,88.08,88.08,04-Aug-11,TBC
Nottinghamshire County Council,05-00680,CAPITA SOCIAL CARE AND HOUSING,Care,Domiciliary Care,0,102.27,102.27,04-Aug-11,TBC
Nottinghamshire County Council,05-00681,CAPITA SOCIAL CARE AND HOUSING,Care,Domiciliary Care,0,111.57,111.57,04-Aug-11,TBC
Nottinghamshire County Council,05-00682,EDEN BROWN LTD,People,Recruitment,0,284.08,284.08,04-Aug-11,TBC
Nottinghamshire County Council,05-00683,EDEN BROWN LTD,People,Recruitment,0,365.71,365.71,04-Aug-11,TBC
Nottinghamshire County Council,05-00684,EDEN BROWN LTD,People,Recruitment,0,256.34,256.34,01-Aug-11,TBC
Nottinghamshire County Council,05-00685,EDEN BROWN LTD,People,Recruitment,0,284.28,284.28,01-Aug-11,TBC
Nottinghamshire County Council,05-00686,MEDICARE FIRST,Care,Medical Equipment &  Supplies,0,292.3,292.3,02-Aug-11,TBC
Nottinghamshire County Council,05-00687,EDEN BROWN LTD,People,Recruitment,0,249.22,249.22,04-Aug-11,TBC
Nottinghamshire County Council,05-00688,EDEN BROWN LTD,People,Recruitment,0,230.42,230.42,04-Aug-11,TBC
Nottinghamshire County Council,05-00689,CAPITA SOCIAL CARE AND HOUSING,Care,Domiciliary Care,0,242,242,11-Aug-11,TBC
Nottinghamshire County Council,05-00690,STRAW AND PEARCE SOLICITORS,Professional Services,Legal Services,0,146.6,146.6,04-Aug-11,TBC
Nottinghamshire County Council,05-00691,STRAW AND PEARCE SOLICITORS,Professional Services,Legal Services,0,367.09,367.09,08-Aug-11,TBC
Nottinghamshire County Council,05-00692,STRAW AND PEARCE SOLICITORS,Professional Services,Legal Services,0,128,128,04-Aug-11,TBC
Nottinghamshire County Council,05-00693,STRAW AND PEARCE SOLICITORS,Professional Services,Legal Services,0,218,218,08-Aug-11,TBC
Nottinghamshire County Council,05-00694,STRAW AND PEARCE SOLICITORS,Professional Services,Legal Services,0,152.1,152.1,08-Aug-11,TBC
Nottinghamshire County Council,05-00695,STRAW AND PEARCE SOLICITORS,Professional Services,Legal Services,0,275.93,275.93,04-Aug-11,TBC
Nottinghamshire County Council,05-00696,PICKFORDS LTD,Hard Facilities Management ,Material Handling & Storage,0,92.8,92.8,03-Aug-11,TBC
Nottinghamshire County Council,05-00697,KONICA MINOLTA,ICT,"Printing & Publishing, Equipment & Supplies",0,100.43,100.43,15-Aug-11,TBC
Nottinghamshire County Council,05-00698,KEY PERSONNEL (MIDLANDS) LTD,People,Recruitment,0,303.36,303.36,08-Aug-11,TBC
Nottinghamshire County Council,05-00699,KONICA MINOLTA,ICT,"Printing & Publishing, Equipment & Supplies",0,86.2,86.2,08-Aug-11,TBC
Nottinghamshire County Council,05-00700,ACUTE MEDICAL LTD,Care,Medical Equipment &  Supplies,0,126.5,126.5,03-Aug-11,TBC
Nottinghamshire County Council,05-00701,ACUTE MEDICAL LTD,Care,Medical Equipment &  Supplies,0,126.5,126.5,03-Aug-11,TBC
Nottinghamshire County Council,05-00738,TARMAC CENTRAL LTD,External Services (Highways & Culture),Highways & Works,0,-0.01,-0.01,17-Aug-11,TBC
Nottinghamshire County Council,05-00739,TARMAC CENTRAL LTD,External Services (Highways & Culture),Highways & Works,0,-0.01,-0.01,17-Aug-11,TBC
Nottinghamshire County Council,05-00741,VODAFONE LTD,ICT,Telecommunications & Media,0,-0.01,-0.01,04-Aug-11,TBC
Nottinghamshire County Council,05-00754,EXPRESS ASPHALT LTD,External Services (Highways & Culture),Highways & Works,0,0.01,0.01,19-Aug-11,TBC
Nottinghamshire County Council,05-00755,BCB COATED STONE LTD,External Services (Highways & Culture),Highways & Works,0,-0.01,-0.01,22-Aug-11,TBC
Nottinghamshire County Council,05-00791,CAPITA SOCIAL CARE AND HOUSING,Care,Domiciliary Care,0,135.42,135.42,11-Aug-11,TBC
Nottinghamshire County Council,05-00792,CAPITA SOCIAL CARE AND HOUSING,Care,Domiciliary Care,0,227.85,227.85,11-Aug-11,TBC
Nottinghamshire County Council,05-00793,CAPITA SOCIAL CARE AND HOUSING,Care,Domiciliary Care,0,230.19,230.19,11-Aug-11,TBC
Nottinghamshire County Council,05-00794,CAPITA SOCIAL CARE AND HOUSING,Care,Domiciliary Care,0,184.74,184.74,11-Aug-11,TBC
Nottinghamshire County Council,05-00795,CAPITA SOCIAL CARE AND HOUSING,Care,Domiciliary Care,0,88.08,88.08,11-Aug-11,TBC
Nottinghamshire County Council,05-00796,CAPITA SOCIAL CARE AND HOUSING,Care,Domiciliary Care,0,108.63,108.63,11-Aug-11,TBC
Nottinghamshire County Council,05-00797,CAPITA SOCIAL CARE AND HOUSING,Care,Domiciliary Care,0,102.27,102.27,11-Aug-11,TBC
Nottinghamshire County Council,05-00798,CARDEA,Care,Healthcare Services,0,94.87,94.87,17-Aug-11,TBC
Nottinghamshire County Council,05-00799,CAPITA SOCIAL CARE AND HOUSING,Care,Domiciliary Care,0,210.91,210.91,18-Aug-11,TBC
Nottinghamshire County Council,05-00800,CAPITA SOCIAL CARE AND HOUSING,Care,Domiciliary Care,0,85.02,85.02,11-Aug-11,TBC
Nottinghamshire County Council,05-00801,CARDEA,Care,Healthcare Services,0,110.6,110.6,17-Aug-11,TBC
Nottinghamshire County Council,05-00802,CAPITA SOCIAL CARE AND HOUSING,Care,Domiciliary Care,0,232.53,232.53,04-Aug-11,TBC
Nottinghamshire County Council,05-00803,SHEFFIELD FAMILY LAW ASSOCIATES,Professional Services,Legal Services,0,90.83,90.83,03-Aug-11,TBC
Nottinghamshire County Council,05-00804,SHEFFIELD FAMILY LAW ASSOCIATES,Professional Services,Legal Services,0,141.24,141.24,03-Aug-11,TBC
Nottinghamshire County Council,05-00805,SHEFFIELD FAMILY LAW ASSOCIATES,Professional Services,Legal Services,0,86.67,86.67,03-Aug-11,TBC
Nottinghamshire County Council,05-00806,SHEFFIELD FAMILY LAW ASSOCIATES,Professional Services,Legal Services,0,190.35,190.35,03-Aug-11,TBC
Nottinghamshire County Council,05-00807,CAPITA SOCIAL CARE AND HOUSING,Care,Domiciliary Care,0,84.89,84.89,11-Aug-11,TBC
Nottinghamshire County Council,05-00808,CAPITA SOCIAL CARE AND HOUSING,Care,Domiciliary Care,0,231.54,231.54,04-Aug-11,TBC
Nottinghamshire County Council,05-00809,CARDEA,Care,Healthcare Services,0,259.77,259.77,17-Aug-11,TBC
Nottinghamshire County Council,05-00810,GATES MACBAIN ASSOCIATES LTD,Professional Services,Consultancy,0,656,656,19-Aug-11,TBC
Nottinghamshire County Council,05-00811,MACILDOWIE ASSOCIATES,People,Recruitment,0,104,104,09-Aug-11,TBC
Nottinghamshire County Council,05-00812,DODDS AND PARTNERS,Care,Medical Equipment &  Supplies,0,183.66,183.66,10-Aug-11,TBC
Nottinghamshire County Council,05-00813,SHARPE PRITCHARD SOLICITORS,Professional Services,Legal Services,0,134.33,134.33,01-Aug-11,TBC
Nottinghamshire County Council,05-00814,CAPITA SOCIAL CARE AND HOUSING,Care,Domiciliary Care,0,146.4,146.4,11-Aug-11,TBC
Nottinghamshire County Council,05-00817,SHEFFIELD FAMILY LAW ASSOCIATES,Professional Services,Legal Services,0,86.74,86.74,03-Aug-11,TBC
Nottinghamshire County Council,05-00818,KB RECRUITMENT LTD,People,Recruitment,0,204.18,204.18,01-Aug-11,TBC
Nottinghamshire County Council,05-00819,EXIMAX LTD,Professional Services,Property Management,0,"5,000.00","5,000.00",01-Aug-11,TBC
Nottinghamshire County Council,05-00889,A AND T ACTIVE RECRUITMENT LTD,People,Recruitment,0,0.01,0.01,02-Aug-11,TBC
Nottinghamshire County Council,05-00910,SPECIALIST COMPUTER CENTRES LTD,ICT,Computer Services,0,"1,748.00","1,748.00",08-Aug-11,TBC
Nottinghamshire County Council,05-00916,FIESTA CRAFTS LTD,Soft Facilities Management,Security,0,-0.01,-0.01,23-Aug-11,TBC
Nottinghamshire County Council,05-00935,RAI TECHNICAL LTD,Hard Facilities Management ,Tools & General Machinery,0,-0.01,-0.01,04-Aug-11,TBC
Nottinghamshire County Council,05-00993,TARMAC CENTRAL LTD,External Services (Highways & Culture),Highways & Works,0,-0.01,-0.01,17-Aug-11,TBC
Nottinghamshire County Council,05-01074,SWIIS (UK) LTD,People,Agency Staff - Care,0,102.48,102.48,01-Aug-11,TBC
Nottinghamshire County Council,05-01075,EGS GROUP LTD,Professional Services,Consultancy,0,704.56,704.56,01-Aug-11,TBC
Nottinghamshire County Council,05-01076,W K W TREE SERVICES,External Services (Highways & Culture),Farming Forestry & Wildlife Services,0,973.6,973.6,01-Aug-11,TBC
Nottinghamshire County Council,05-01077,EGS GROUP LTD,Professional Services,Consultancy,0,745.27,745.27,12-Aug-11,TBC
Nottinghamshire County Council,05-01080,CARDEA,Care,Healthcare Services,0,127.8,127.8,09-Aug-11,TBC
Nottinghamshire County Council,05-01081,SWIIS (UK) LTD,People,Agency Staff - Care,0,100.97,100.97,12-Aug-11,TBC
Nottinghamshire County Council,05-01089,BRAKE BROS LTD,Soft Facilities Management,Prepared & Preserved Foods,0,61.12,61.12,01-Aug-11,TBC
Nottinghamshire County Council,05-01095,CARDEA,Care,Healthcare Services,0,85.2,85.2,17-Aug-11,TBC
Nottinghamshire County Council,05-01096,CAPITA SOCIAL CARE AND HOUSING,Care,Domiciliary Care,0,108.24,108.24,18-Aug-11,TBC
Nottinghamshire County Council,05-01097,PERSONNEL AND CARE BANK,People,Recruitment,0,84.88,84.88,25-Aug-11,TBC
Nottinghamshire County Council,05-01098,CAPITA SOCIAL CARE AND HOUSING,Care,Domiciliary Care,0,120.24,120.24,01-Aug-11,TBC
Nottinghamshire County Council,05-01101,STATIONERY OFFICE-BUSINESS SUPPLIES,Soft Facilities Management,Office Supplies & Machines (Non It),0,402.25,402.25,01-Aug-11,TBC
Nottinghamshire County Council,05-01103,CAPITA SOCIAL CARE AND HOUSING,Care,Domiciliary Care,0,190.14,190.14,11-Aug-11,TBC
Nottinghamshire County Council,05-01106,EDEN BROWN LTD,People,Recruitment,0,321.7,321.7,12-Aug-11,TBC
Nottinghamshire County Council,05-01107,SOVEREIGN SECURTIY,Soft Facilities Management,Security,0,478.8,478.8,17-Aug-11,TBC
Nottinghamshire County Council,05-01108,CARITAS RECRUITMENT,People,Recruitment,0,"1,362.35","1,362.35",18-Aug-11,TBC
Nottinghamshire County Council,05-01109,MESSAGEMAKER DISPLAYS LTD,Professional Services,Marketing & Distribution,0,605.2,605.2,22-Aug-11,TBC
Nottinghamshire County Council,05-07745,16 PLUS,TBC,TBC,"1,857.93",371.59,"2,229.52",31-Aug-11,CHILDREN & YOUNG PEOPLE
Nottinghamshire County Council,05-01111,WARD FENCING LTD,Hard Facilities Management ,Building Construction Services,0,148.75,148.75,01-Aug-11,TBC
Nottinghamshire County Council,05-01112,PLAYGROUND MARKINGS DIRECT LTD,External Services (Highways & Culture),Sports & Recreational Equipment & Supplies,0,189.52,189.52,01-Aug-11,TBC
Nottinghamshire County Council,05-01113,FEET (LINE MARKERS ) LTD,External Services (Highways & Culture),Sports & Recreational Equipment & Supplies,0,182,182,01-Aug-11,TBC
Nottinghamshire County Council,05-01114,FEET (LINE MARKERS ) LTD,External Services (Highways & Culture),Sports & Recreational Equipment & Supplies,0,182,182,01-Aug-11,TBC
Nottinghamshire County Council,05-01115,FEET (LINE MARKERS ) LTD,External Services (Highways & Culture),Sports & Recreational Equipment & Supplies,0,182,182,01-Aug-11,TBC
Nottinghamshire County Council,05-01123,SIRSIDYNIX,ICT,Software,0,124,124,01-Aug-11,TBC
Nottinghamshire County Council,05-01127,FIRST CAR LTD,Transport & Travel,Motor Vehicles,0,300,300,01-Aug-11,TBC
Nottinghamshire County Council,05-01128,DRAEFERN LTD T/A RIGHT4STAFF,People,Recruitment,0,152.04,152.04,01-Aug-11,TBC
Nottinghamshire County Council,05-01129,DRAEFERN LTD T/A RIGHT4STAFF,People,Recruitment,0,138.52,138.52,01-Aug-11,TBC
Nottinghamshire County Council,05-01130,KONICA MINOLTA,ICT,"Printing & Publishing, Equipment & Supplies",0,95.1,95.1,08-Aug-11,TBC
Nottinghamshire County Council,05-01134,DRAEFERN LTD T/A RIGHT4STAFF,People,Recruitment,0,109.18,109.18,01-Aug-11,TBC
Nottinghamshire County Council,05-01135,DRAEFERN LTD T/A RIGHT4STAFF,People,Recruitment,0,86.52,86.52,01-Aug-11,TBC
Nottinghamshire County Council,05-01136,PREMIERE POLISH COMPANY LTD,Soft Facilities Management,Cleaning Equipment & Janitorial Supplies,0,190.92,190.92,01-Aug-11,TBC
Nottinghamshire County Council,05-01137,ACTION FOR CHILDREN,Care,Infant Or Child Daycare Services,0,125.6,125.6,01-Aug-11,TBC
Nottinghamshire County Council,05-01138,CAPITA SOCIAL CARE AND HOUSING,Care,Domiciliary Care,0,87.18,87.18,11-Aug-11,TBC
Nottinghamshire County Council,05-01142,ACTION FOR CHILDREN,Care,Infant Or Child Daycare Services,0,212.4,212.4,01-Aug-11,TBC
Nottinghamshire County Council,05-01143,PERSONNEL AND CARE BANK,People,Recruitment,0,95.42,95.42,25-Aug-11,TBC
Nottinghamshire County Council,05-01144,DRAEFERN LTD T/A RIGHT4STAFF,People,Recruitment,0,111.85,111.85,01-Aug-11,TBC
Nottinghamshire County Council,05-01145,SIRSIDYNIX,ICT,Software,0,"1,358.00","1,358.00",01-Aug-11,TBC
Nottinghamshire County Council,05-01146,GROUNDSMAN TOOLS AND SUPPLIES,Hard Facilities Management ,Tools & General Machinery,0,113.9,113.9,01-Aug-11,TBC
Nottinghamshire County Council,05-01147,KONICA MINOLTA,ICT,"Printing & Publishing, Equipment & Supplies",0,88,88,15-Aug-11,TBC
Nottinghamshire County Council,05-01148,PHS GROUP PLC,Soft Facilities Management,Cleaning Equipment & Janitorial Supplies,0,115.63,115.63,01-Aug-11,TBC
Nottinghamshire County Council,05-01152,EXPRESS ASPHALT LTD,External Services (Highways & Culture),Highways & Works,0,0.01,0.01,16-Aug-11,TBC
Nottinghamshire County Council,05-01154,ENNSTONE JOHNSTON LTD,External Services (Highways & Culture),Earth & Stone Aggregates ,0,-0.01,-0.01,02-Aug-11,TBC
Nottinghamshire County Council,05-01157,STAFFLINE RECRUITMENT LTD,People,Recruitment,0,0.01,0.01,02-Aug-11,TBC
Nottinghamshire County Council,05-01234,SIEMENS PLC,Hard Facilities Management ,Electrical Systems & Lighting,0,-0.01,-0.01,24-Aug-11,TBC
Nottinghamshire County Council,05-01255,TARMAC CENTRAL LTD,External Services (Highways & Culture),Highways & Works,0,-0.01,-0.01,23-Aug-11,TBC
Nottinghamshire County Council,05-01256,TARMAC CENTRAL LTD,External Services (Highways & Culture),Highways & Works,0,-0.01,-0.01,23-Aug-11,TBC
Nottinghamshire County Council,05-01257,TARMAC CENTRAL LTD,External Services (Highways & Culture),Highways & Works,0,-0.01,-0.01,17-Aug-11,TBC
Nottinghamshire County Council,05-01259,TARMAC CENTRAL LTD,External Services (Highways & Culture),Highways & Works,0,-0.01,-0.01,17-Aug-11,TBC
Nottinghamshire County Council,05-01312,KB RECRUITMENT LTD,People,Recruitment,0,108.89,108.89,02-Aug-11,TBC
Nottinghamshire County Council,05-01313,KB RECRUITMENT LTD,People,Recruitment,0,104.31,104.31,02-Aug-11,TBC
Nottinghamshire County Council,05-01314,GEM VENDING LTD,Soft Facilities Management,Vending Machines & Food Equipment,0,6.4,6.4,02-Aug-11,TBC
Nottinghamshire County Council,05-01315,KEN BURROWS LTD,Hard Facilities Management ,Electrical Systems & Lighting,0,142.74,142.74,02-Aug-11,TBC
Nottinghamshire County Council,05-01316,KEN BURROWS LTD,Hard Facilities Management ,Electrical Systems & Lighting,0,237.9,237.9,02-Aug-11,TBC
Nottinghamshire County Council,05-01318,JOHNSONS STALBRIDGE LINEN SERVICES,Soft Facilities Management,Cleaning Equipment & Janitorial Supplies,0,99.93,99.93,02-Aug-11,TBC
Nottinghamshire County Council,05-01319,PINDAR PLC,ICT,"Printing & Publishing, Equipment & Supplies",0,220,220,02-Aug-11,TBC
Nottinghamshire County Council,05-01320,PINDAR PLC,ICT,"Printing & Publishing, Equipment & Supplies",0,172.2,172.2,02-Aug-11,TBC
Nottinghamshire County Council,05-01321,PRODUCT DEVELOPMENT CORPORATION UK,Professional Services,"Reproduction, Photographic & Design Services",0,353.87,353.87,02-Aug-11,TBC
Nottinghamshire County Council,05-01322,TELEVISION INSTALL.SERV MANSFIELD LTD,ICT,Telecommunications & Media,0,90,90,02-Aug-11,TBC
Nottinghamshire County Council,05-01323,KB RECRUITMENT LTD,People,Recruitment,0,115.9,115.9,02-Aug-11,TBC
Nottinghamshire County Council,05-01324,KB RECRUITMENT LTD,People,Recruitment,0,86.93,86.93,02-Aug-11,TBC
Nottinghamshire County Council,05-01325,CARLTON SHEET METAL WORKS LTD,Hard Facilities Management ,Building & Construction Supplies,0,492,492,02-Aug-11,TBC
Nottinghamshire County Council,05-01326,PPL - PUBLIC PERFORMANCE LICENCE,Professional Services,Legal Services,0,144.86,144.86,02-Aug-11,TBC
Nottinghamshire County Council,05-01327,SLACK AND CO FLOORCOVERINGS,Soft Facilities Management,Furniture & Furnishings,0,95,95,02-Aug-11,TBC
Nottinghamshire County Council,05-01328,THIRDFORCE CLM LTD,External Services (Highways & Culture),Education Services,0,"1,760.00","1,760.00",02-Aug-11,TBC
Nottinghamshire County Council,05-01329,KOMPAN LTD,External Services (Highways & Culture),Sports & Recreational Equipment & Supplies,0,923.81,923.81,10-Aug-11,TBC
Nottinghamshire County Council,05-01330,A.M JOINERY,Hard Facilities Management ,Carpentry Services,0,172,172,15-Aug-11,TBC
Nottinghamshire County Council,05-01331,TRAFFIC TECHNOLOGY LTD,External Services (Highways & Culture),Highways & Works,0,726.4,726.4,05-Aug-11,TBC
Nottinghamshire County Council,05-01332,FEET (LINE MARKERS ) LTD,External Services (Highways & Culture),Sports & Recreational Equipment & Supplies,0,182,182,02-Aug-11,TBC
Nottinghamshire County Council,05-01334,CBS OUTDOOR LTD,Professional Services,Advertising,0,600,600,02-Aug-11,TBC
Nottinghamshire County Council,05-01335,KB RECRUITMENT LTD,People,Recruitment,0,127.49,127.49,02-Aug-11,TBC
Nottinghamshire County Council,05-01338,RILEY AND COMPANY (MANSFIELD) LTD,Hard Facilities Management ,Decoration Services,0,550,550,02-Aug-11,TBC
Nottinghamshire County Council,05-01340,SLACK AND CO FLOORCOVERINGS,Soft Facilities Management,Furniture & Furnishings,0,144.6,144.6,02-Aug-11,TBC
Nottinghamshire County Council,05-01341,WILSON ELECTRICS,Hard Facilities Management ,Electrical Systems & Lighting,0,131.7,131.7,02-Aug-11,TBC
Nottinghamshire County Council,05-01343,CAPITA SOCIAL CARE AND HOUSING,Care,Domiciliary Care,0,88.69,88.69,18-Aug-11,TBC
Nottinghamshire County Council,05-01344,CIPFA BUSINESS LTD,External Services (Highways & Culture),Organisations & Clubs,0,85.6,85.6,02-Aug-11,TBC
Nottinghamshire County Council,05-01345,NEWSPAPER LICENSING AGENCY LTD,Professional Services,Legal Services,0,559.8,559.8,19-Aug-11,TBC
Nottinghamshire County Council,05-01346,CBS OUTDOOR LTD,Professional Services,Advertising,0,450.4,450.4,02-Aug-11,TBC
Nottinghamshire County Council,05-01349,CBS OUTDOOR LTD,Professional Services,Advertising,0,"1,018.20","1,018.20",02-Aug-11,TBC
Nottinghamshire County Council,05-01350,FRESH OPPORTUNITIES LTD,Soft Facilities Management,Beverages,0,189.67,189.67,02-Aug-11,TBC
Nottinghamshire County Council,05-01351,KING STURGE LLP,Professional Services,Legal Services,0,"1,085.72","1,085.72",02-Aug-11,TBC
Nottinghamshire County Council,05-01353,CAPITA SOCIAL CARE AND HOUSING,Care,Domiciliary Care,0,88.69,88.69,02-Aug-11,TBC
Nottinghamshire County Council,05-01354,NOTTINGHAM AND NOTTINGHAMSHIRE FUTURES LTD,Care,Healthcare Services,0,"2,300.00","2,300.00",02-Aug-11,TBC
Nottinghamshire County Council,05-01355,CLYMAC,ICT,Audio & Visual Equipment,0,100,100,02-Aug-11,TBC
Nottinghamshire County Council,05-01356,PHS GROUP PLC,Soft Facilities Management,Cleaning Equipment & Janitorial Supplies,0,185.62,185.62,02-Aug-11,TBC
Nottinghamshire County Council,05-01357,NISAI VIRTUAL ACADEMY,People,Vocational Training,0,"31,500.00","31,500.00",02-Aug-11,TBC
Nottinghamshire County Council,05-01358,ELKS EDUCATION TRUST,External Services (Highways & Culture),Education Services,0,"2,627.10","2,627.10",02-Aug-11,TBC
Nottinghamshire County Council,05-01359,KONICA MINOLTA,ICT,"Printing & Publishing, Equipment & Supplies",0,146.29,146.29,08-Aug-11,TBC
Nottinghamshire County Council,05-01360,KONICA MINOLTA,ICT,"Printing & Publishing, Equipment & Supplies",0,154.07,154.07,05-Aug-11,TBC
Nottinghamshire County Council,05-01361,KONICA MINOLTA,ICT,"Printing & Publishing, Equipment & Supplies",0,137.32,137.32,19-Aug-11,TBC
Nottinghamshire County Council,05-01362,KONICA MINOLTA,ICT,"Printing & Publishing, Equipment & Supplies",0,115.2,115.2,19-Aug-11,TBC
Nottinghamshire County Council,05-03626,ACCORDIAL UK,TBC,TBC,-800,0,-800,24-Aug-11,CHILDREN & YOUNG PEOPLE
Nottinghamshire County Council,05-01453,HULLEYS,Soft Facilities Management,Frozen Goods,0,-0.01,-0.01,02-Aug-11,TBC
Nottinghamshire County Council,05-01457,TARMAC CENTRAL LTD,External Services (Highways & Culture),Highways & Works,0,0.01,0.01,23-Aug-11,TBC
Nottinghamshire County Council,05-01584,EDEN BROWN LTD,People,Recruitment,0,275.79,275.79,03-Aug-11,TBC
Nottinghamshire County Council,05-01585,MEDICARE FIRST,Care,Medical Equipment &  Supplies,0,382.25,382.25,03-Aug-11,TBC
Nottinghamshire County Council,05-01586,CARDEA,Care,Healthcare Services,0,101.79,101.79,03-Aug-11,TBC
Nottinghamshire County Council,05-01587,CARDEA,Care,Healthcare Services,0,150.88,150.88,03-Aug-11,TBC
Nottinghamshire County Council,05-01588,CIPFA BUSINESS LTD,External Services (Highways & Culture),Organisations & Clubs,0,-125.1,-125.1,04-Aug-11,TBC
Nottinghamshire County Council,05-01589,CIPFA BUSINESS LTD,External Services (Highways & Culture),Organisations & Clubs,0,250.2,250.2,04-Aug-11,TBC
Nottinghamshire County Council,05-01590,WILLIAM FREER LTD,Soft Facilities Management,Vending Machines & Food Equipment,0,307.24,307.24,03-Aug-11,TBC
Nottinghamshire County Council,05-01591,TALLON MONITORING LTD,ICT,Telecommunications & Media,0,444,444,18-Aug-11,TBC
Nottinghamshire County Council,05-01592,L B S HORTICULTURE,External Services (Highways & Culture),Farming Forestry & Wildlife Services,0,86.22,86.22,04-Aug-11,TBC
Nottinghamshire County Council,05-01593,FORMOST AIRCONDITIONING AND REFRIG LTD,Hard Facilities Management ,Heating & Ventilation (Inc A/C),0,90,90,04-Aug-11,TBC
Nottinghamshire County Council,05-01594,FORMOST AIRCONDITIONING AND REFRIG LTD,Hard Facilities Management ,Heating & Ventilation (Inc A/C),0,282.82,282.82,04-Aug-11,TBC
Nottinghamshire County Council,05-01595,THIRDFORCE CLM LTD,External Services (Highways & Culture),Education Services,0,148,148,03-Aug-11,TBC
Nottinghamshire County Council,05-01599,PARENTLINE PLUS,External Services (Highways & Culture),Organisations & Clubs,0,"2,926.20","2,926.20",03-Aug-11,TBC
Nottinghamshire County Council,05-01600,NEWSTEAD MINERS WELFARE TRUST,Transport & Travel,Hotels & Venues,0,83.8,83.8,04-Aug-11,TBC
Nottinghamshire County Council,05-01601,CYCLESCHEME LTD,Transport & Travel,Cycles,0,166.67,166.67,04-Aug-11,TBC
Nottinghamshire County Council,05-01602,WILLIAM FREER LTD,Soft Facilities Management,Vending Machines & Food Equipment,0,148,148,03-Aug-11,TBC
Nottinghamshire County Council,05-01603,KONICA MINOLTA,ICT,"Printing & Publishing, Equipment & Supplies",0,85.39,85.39,08-Aug-11,TBC
Nottinghamshire County Council,05-01604,CAPITA SOCIAL CARE AND HOUSING,Care,Domiciliary Care,0,85.05,85.05,03-Aug-11,TBC
Nottinghamshire County Council,05-01605,CAPITA SOCIAL CARE AND HOUSING,Care,Domiciliary Care,0,121.36,121.36,03-Aug-11,TBC
Nottinghamshire County Council,05-01606,TELEVISION INSTALL.SERV MANSFIELD LTD,ICT,Telecommunications & Media,0,90,90,03-Aug-11,TBC
Nottinghamshire County Council,05-01607,CONISTON ASSOCIATES LTD,People,Vocational Training,0,138.6,138.6,04-Aug-11,TBC
Nottinghamshire County Council,05-01608,SQUIDCARD LTD,Professional Services,Financial & Insurance Services,0,738,738,23-Aug-11,TBC
Nottinghamshire County Council,05-01609,CAPITA SOCIAL CARE AND HOUSING,Care,Domiciliary Care,0,114.63,114.63,03-Aug-11,TBC
Nottinghamshire County Council,05-01611,CAPITA SOCIAL CARE AND HOUSING,Care,Domiciliary Care,0,131.76,131.76,18-Aug-11,TBC
Nottinghamshire County Council,05-01612,CAPITA SOCIAL CARE AND HOUSING,Care,Domiciliary Care,0,154.18,154.18,03-Aug-11,TBC
Nottinghamshire County Council,05-01613,STRELLEY SYSTEMS LTD,Transport & Travel,Hotels & Venues,0,272.02,272.02,03-Aug-11,TBC
Nottinghamshire County Council,05-01614,VEOLIA ENVIRONMENTAL SERVICES PLC,Soft Facilities Management,Scrap & Waste Materials,0,125.22,125.22,03-Aug-11,TBC
Nottinghamshire County Council,05-01615,VEOLIA ENVIRONMENTAL SERVICES PLC,Soft Facilities Management,Scrap & Waste Materials,0,127.78,127.78,03-Aug-11,TBC
Nottinghamshire County Council,05-01616,KONICA MINOLTA,ICT,"Printing & Publishing, Equipment & Supplies",0,110.6,110.6,15-Aug-11,TBC
Nottinghamshire County Council,05-01618,MEDICARE FIRST,Care,Medical Equipment &  Supplies,0,338.22,338.22,09-Aug-11,TBC
Nottinghamshire County Council,05-01619,EDEN BROWN LTD,People,Recruitment,0,369.76,369.76,15-Aug-11,TBC
Nottinghamshire County Council,05-01620,EDEN BROWN LTD,People,Recruitment,0,311.35,311.35,15-Aug-11,TBC
Nottinghamshire County Council,05-01621,VENN GROUP LTD,People,Recruitment,0,318.48,318.48,04-Aug-11,TBC
Nottinghamshire County Council,05-01622,CAPITA SOCIAL CARE AND HOUSING,Care,Domiciliary Care,0,89.45,89.45,11-Aug-11,TBC
Nottinghamshire County Council,05-01623,CAPITA SOCIAL CARE AND HOUSING,Care,Domiciliary Care,0,242.7,242.7,11-Aug-11,TBC
Nottinghamshire County Council,05-01624,CARDEA,Care,Healthcare Services,0,237.32,237.32,09-Aug-11,TBC
Nottinghamshire County Council,05-01625,CARDEA,Care,Healthcare Services,0,237.32,237.32,03-Aug-11,TBC
Nottinghamshire County Council,05-01626,CAPITA SOCIAL CARE AND HOUSING,Care,Domiciliary Care,0,227.85,227.85,04-Aug-11,TBC
Nottinghamshire County Council,05-01627,CARDEA,Care,Healthcare Services,0,208.31,208.31,09-Aug-11,TBC
Nottinghamshire County Council,05-01628,CAPITA SOCIAL CARE AND HOUSING,Care,Domiciliary Care,0,113.52,113.52,11-Aug-11,TBC
Nottinghamshire County Council,05-01629,CARDEA,Care,Healthcare Services,0,92.69,92.69,03-Aug-11,TBC
Nottinghamshire County Council,05-01630,KB RECRUITMENT LTD,People,Recruitment,0,245.56,245.56,03-Aug-11,TBC
Nottinghamshire County Council,05-01632,T S W SERVICES,External Services (Highways & Culture),Farming Forestry & Wildlife Services,0,281.61,281.61,03-Aug-11,TBC
Nottinghamshire County Council,05-01634,MEDICARE FIRST,Care,Medical Equipment &  Supplies,0,335.52,335.52,03-Aug-11,TBC
Nottinghamshire County Council,05-01635,OXFORD UNIVERSITY PRESS,ICT,"Printing & Publishing, Equipment & Supplies",0,"1,834.00","1,834.00",03-Aug-11,TBC
Nottinghamshire County Council,05-01636,KONICA MINOLTA,ICT,"Printing & Publishing, Equipment & Supplies",0,92.69,92.69,03-Aug-11,TBC
Nottinghamshire County Council,05-01638,WILLIAM FREER LTD,Soft Facilities Management,Vending Machines & Food Equipment,0,335.23,335.23,04-Aug-11,TBC
Nottinghamshire County Council,05-01639,WILLIAM FREER LTD,Soft Facilities Management,Vending Machines & Food Equipment,0,450.18,450.18,03-Aug-11,TBC
Nottinghamshire County Council,05-01640,WILLIAM FREER LTD,Soft Facilities Management,Vending Machines & Food Equipment,0,138.09,138.09,04-Aug-11,TBC
Nottinghamshire County Council,05-01641,WILLIAM FREER LTD,Soft Facilities Management,Vending Machines & Food Equipment,0,392.27,392.27,03-Aug-11,TBC
Nottinghamshire County Council,05-01642,S R C L LTD,Soft Facilities Management,Scrap & Waste Materials,0,"1,733.87","1,733.87",03-Aug-11,TBC
Nottinghamshire County Council,05-01643,PHS GROUP PLC,Soft Facilities Management,Cleaning Equipment & Janitorial Supplies,0,98.36,98.36,03-Aug-11,TBC
Nottinghamshire County Council,05-01644,DRAEFERN LTD T/A RIGHT4STAFF,People,Recruitment,0,95.66,95.66,03-Aug-11,TBC
Nottinghamshire County Council,05-03627,ACCORDIAL UK,TBC,TBC,800,0,800,24-Aug-11,CHILDREN & YOUNG PEOPLE
Nottinghamshire County Council,05-01646,IDOX INFORMATION SERVICES LTD,ICT,Software,0,300,300,03-Aug-11,TBC
Nottinghamshire County Council,05-01647,MEDICARE FIRST,Care,Medical Equipment &  Supplies,0,343.8,343.8,09-Aug-11,TBC
Nottinghamshire County Council,05-01695,GLASDON UK LTD,Soft Facilities Management,Cleaning Equipment & Janitorial Supplies,0,-0.01,-0.01,08-Aug-11,TBC
Nottinghamshire County Council,05-01699,ENERGAS LTD,External Services (Highways & Culture),Chemicals & Gases,0,-121.06,-121.06,22-Aug-11,TBC
Nottinghamshire County Council,05-01701,LANTRA AWARDS,People,Vocational Training,0,362,362,08-Aug-11,TBC
Nottinghamshire County Council,05-01703,EMO OIL LTD,Hard Facilities Management ,Utilities,0,-100.9,-100.9,10-Aug-11,TBC
Nottinghamshire County Council,05-01710,ELBA LTD,Soft Facilities Management,Office Supplies & Machines (Non It),0,-0.01,-0.01,04-Aug-11,TBC
Nottinghamshire County Council,05-01737,ANTALIS LTD,Soft Facilities Management,Paper & Paper Products,0,-2.23,-2.23,04-Aug-11,TBC
Nottinghamshire County Council,05-01787,TARMAC CENTRAL LTD,External Services (Highways & Culture),Highways & Works,0,-0.01,-0.01,23-Aug-11,TBC
Nottinghamshire County Council,05-01789,TARMAC CENTRAL LTD,External Services (Highways & Culture),Highways & Works,0,-0.01,-0.01,24-Aug-11,TBC
Nottinghamshire County Council,05-01792,TARMAC CENTRAL LTD,External Services (Highways & Culture),Highways & Works,0,-0.01,-0.01,24-Aug-11,TBC
Nottinghamshire County Council,05-01794,TARMAC CENTRAL LTD,External Services (Highways & Culture),Highways & Works,0,-0.01,-0.01,24-Aug-11,TBC
Nottinghamshire County Council,05-01797,NORTHERN RECRUITMENT GROUP,People,Recruitment,0,115.74,115.74,19-Aug-11,TBC
Nottinghamshire County Council,05-01798,NORTHERN RECRUITMENT GROUP,People,Recruitment,0,84.46,84.46,19-Aug-11,TBC
Nottinghamshire County Council,05-01799,NORTHERN RECRUITMENT GROUP,People,Recruitment,0,115.74,115.74,19-Aug-11,TBC
Nottinghamshire County Council,05-01800,NORTHERN RECRUITMENT GROUP,People,Recruitment,0,115.74,115.74,19-Aug-11,TBC
Nottinghamshire County Council,05-01801,IBM UNITED KINGDOM LTD,ICT,Information Technology Service Delivery,0,86,86,08-Aug-11,TBC
Nottinghamshire County Council,05-01860,GAVURIN LTD,ICT,Software,0,"1,800.00","1,800.00",25-Aug-11,TBC
Nottinghamshire County Council,05-01874,NEWARK CONCRETE,Hard Facilities Management ,Concrete Installation & Repair Services,0,0.01,0.01,19-Aug-11,TBC
Nottinghamshire County Council,05-02001,ABOUT PRESENTATION LTD,Professional Services,Marketing & Distribution,0,-0.01,-0.01,04-Aug-11,TBC
Nottinghamshire County Council,05-02014,CARDEA,Care,Healthcare Services,0,125.7,125.7,04-Aug-11,TBC
Nottinghamshire County Council,05-02020,HECTOR TANNER & CO LTD,Care,Medical Equipment &  Supplies,0,216.5,216.5,17-Aug-11,TBC
Nottinghamshire County Council,05-02036,REED EMPLOYMENT PLC,People,Recruitment,0,282.8,282.8,04-Aug-11,TBC
Nottinghamshire County Council,05-02169,BUTLER AND WILLOW LTD,Soft Facilities Management,Office Supplies & Machines (Non It),0,234,234,17-Aug-11,TBC
Nottinghamshire County Council,05-02170,BUTLER AND WILLOW LTD,Soft Facilities Management,Office Supplies & Machines (Non It),0,181.4,181.4,17-Aug-11,TBC
Nottinghamshire County Council,05-02171,BUTLER AND WILLOW LTD,Soft Facilities Management,Office Supplies & Machines (Non It),0,"1,005.60","1,005.60",17-Aug-11,TBC
Nottinghamshire County Council,05-02172,BUTLER AND WILLOW LTD,Soft Facilities Management,Office Supplies & Machines (Non It),0,895.8,895.8,19-Aug-11,TBC
Nottinghamshire County Council,05-02173,BUTLER AND WILLOW LTD,Soft Facilities Management,Office Supplies & Machines (Non It),0,702.8,702.8,19-Aug-11,TBC
Nottinghamshire County Council,05-02174,BUTLER AND WILLOW LTD,Soft Facilities Management,Office Supplies & Machines (Non It),0,85,85,19-Aug-11,TBC
Nottinghamshire County Council,05-02175,BUTLER AND WILLOW LTD,Soft Facilities Management,Office Supplies & Machines (Non It),0,487.6,487.6,19-Aug-11,TBC
Nottinghamshire County Council,05-02176,BUTLER AND WILLOW LTD,Soft Facilities Management,Office Supplies & Machines (Non It),0,320,320,19-Aug-11,TBC
Nottinghamshire County Council,05-02177,EDEN BROWN LTD,People,Recruitment,0,222.39,222.39,18-Aug-11,TBC
Nottinghamshire County Council,05-02178,EDEN BROWN LTD,People,Recruitment,0,481,481,12-Aug-11,TBC
Nottinghamshire County Council,05-02179,EDEN BROWN LTD,People,Recruitment,0,305.54,305.54,18-Aug-11,TBC
Nottinghamshire County Council,05-02180,WELL INFORMED LTD,ICT,"Printing & Publishing, Equipment & Supplies",0,"1,200.00","1,200.00",30-Aug-11,TBC
Nottinghamshire County Council,05-02181,NCC SERVICES LTD,ICT,Computer Equipment & Accessories,0,199,199,05-Aug-11,TBC
Nottinghamshire County Council,05-02182,SPECIALIST COMPUTER CENTRES LTD,ICT,Computer Services,0,631.2,631.2,17-Aug-11,TBC
Nottinghamshire County Council,05-02184,@HOME CHILDCARE LTD,Care,Infant Or Child Daycare Services,0,190,190,05-Aug-11,TBC
Nottinghamshire County Council,05-02185,@HOME CHILDCARE LTD,Care,Infant Or Child Daycare Services,0,95,95,05-Aug-11,TBC
Nottinghamshire County Council,05-02187,COOKCO LTD,Soft Facilities Management,Vending Machines & Food Equipment,0,820,820,05-Aug-11,TBC
Nottinghamshire County Council,05-02188,FEET (LINE MARKERS ) LTD,External Services (Highways & Culture),Sports & Recreational Equipment & Supplies,0,182,182,05-Aug-11,TBC
Nottinghamshire County Council,05-02189,FEET (LINE MARKERS ) LTD,External Services (Highways & Culture),Sports & Recreational Equipment & Supplies,0,182,182,05-Aug-11,TBC
Nottinghamshire County Council,05-02190,SIEMENS PLC,Hard Facilities Management ,Electrical Systems & Lighting,0,600,600,05-Aug-11,TBC
Nottinghamshire County Council,05-02191,ADVANTAGE HEALTHCARE NURSING ANDCARE LTD,Care,Healthcare Services,0,408.09,408.09,05-Aug-11,TBC
Nottinghamshire County Council,05-02192,CAPITA SOCIAL CARE AND HOUSING,Care,Domiciliary Care,0,144.32,144.32,11-Aug-11,TBC
Nottinghamshire County Council,05-02193,CAPITA SOCIAL CARE AND HOUSING,Care,Domiciliary Care,0,113.52,113.52,18-Aug-11,TBC
Nottinghamshire County Council,05-02194,CARDEA,Care,Healthcare Services,0,110.6,110.6,23-Aug-11,TBC
Nottinghamshire County Council,05-02195,CAPITA SOCIAL CARE AND HOUSING,Care,Domiciliary Care,0,227.85,227.85,25-Aug-11,TBC
Nottinghamshire County Council,05-02196,GOLDEN RIVER TRAFFIC LTD,External Services (Highways & Culture),Highways & Works,0,111.4,111.4,17-Aug-11,TBC
Nottinghamshire County Council,05-02197,SIMPKIN AND ICKE LTD,Hard Facilities Management ,Material Handling & Storage,0,188,188,05-Aug-11,TBC
Nottinghamshire County Council,05-02198,ACADEMY SOCIAL CARE LTD,Care,Domiciliary Care,0,192.18,192.18,05-Aug-11,TBC
Nottinghamshire County Council,05-02199,CARDEA,Care,Healthcare Services,0,93.59,93.59,23-Aug-11,TBC
Nottinghamshire County Council,05-02200,ADVANTAGE HEALTHCARE NURSING ANDCARE LTD,Care,Healthcare Services,0,400.11,400.11,05-Aug-11,TBC
Nottinghamshire County Council,05-02201,CAPITA SOCIAL CARE AND HOUSING,Care,Domiciliary Care,0,231.63,231.63,18-Aug-11,TBC
Nottinghamshire County Council,05-02203,DSGI BUSINESS,ICT,Audio & Visual Equipment,0,299.8,299.8,05-Aug-11,TBC
Nottinghamshire County Council,05-02204,DRAEFERN LTD T/A RIGHT4STAFF,People,Recruitment,0,96.82,96.82,05-Aug-11,TBC
Nottinghamshire County Council,05-02205,MKG (FOOD PRODUCTS) LTD,Soft Facilities Management,Prepared & Preserved Foods,0,26.09,26.09,05-Aug-11,TBC
Nottinghamshire County Council,05-02206,DEWBERRY REDPOINT LTD,Professional Services,"Reproduction, Photographic & Design Services",0,99,99,05-Aug-11,TBC
Nottinghamshire County Council,05-02212,B N GIBSON MOTORS,Transport & Travel,Taxi,0,0.01,0.01,05-Aug-11,TBC
Nottinghamshire County Council,05-02231,ACCO U K LTD SERVICES DIVISION,Soft Facilities Management,Office Supplies & Machines (Non It),0,-0.01,-0.01,09-Aug-11,TBC
Nottinghamshire County Council,05-02232,ANTALIS LTD,Soft Facilities Management,Paper & Paper Products,0,-2.56,-2.56,09-Aug-11,TBC
Nottinghamshire County Council,05-02245,SPECIALIST COMPUTER CENTRES LTD,ICT,Computer Services,0,0.02,0.02,26-Aug-11,TBC
Nottinghamshire County Council,05-02313,BRAKE BROS LTD,Soft Facilities Management,Prepared & Preserved Foods,0,0.02,0.02,09-Aug-11,TBC
Nottinghamshire County Council,05-02430,SECURITY PLUS LTD,Soft Facilities Management,Security,0,0.01,0.01,10-Aug-11,TBC
Nottinghamshire County Council,05-02433,THE AWARD SCHEME LTD,External Services (Highways & Culture),Organisations & Clubs,0,11.67,11.67,08-Aug-11,TBC
Nottinghamshire County Council,05-02434,SWIIS (UK) LTD,People,Agency Staff - Care,0,159.74,159.74,08-Aug-11,TBC
Nottinghamshire County Council,05-03627,ACCORDIAL UK,TBC,TBC,0,160,160,24-Aug-11,RESOURCES
Nottinghamshire County Council,05-02436,ACADEMY SOCIAL CARE LTD,Care,Domiciliary Care,0,156.98,156.98,08-Aug-11,TBC
Nottinghamshire County Council,05-02437,ACADEMY SOCIAL CARE LTD,Care,Domiciliary Care,0,156.98,156.98,08-Aug-11,TBC
Nottinghamshire County Council,05-02438,ADOPTION U K,Care,Adoption Services,0,124.53,124.53,08-Aug-11,TBC
Nottinghamshire County Council,05-02439,ADOPTION U K,Care,Adoption Services,0,124.53,124.53,08-Aug-11,TBC
Nottinghamshire County Council,05-02440,ADVANTAGE HEALTHCARE NURSING ANDCARE LTD,Care,Healthcare Services,0,358.95,358.95,08-Aug-11,TBC
Nottinghamshire County Council,05-02441,ADVANTAGE HEALTHCARE NURSING ANDCARE LTD,Care,Healthcare Services,0,339.59,339.59,08-Aug-11,TBC
Nottinghamshire County Council,05-02442,CARDEA,Care,Healthcare Services,0,128.58,128.58,08-Aug-11,TBC
Nottinghamshire County Council,05-02443,ACADEMY SOCIAL CARE LTD,Care,Domiciliary Care,0,156.98,156.98,08-Aug-11,TBC
Nottinghamshire County Council,05-02444,SIMPKIN AND ICKE LTD,Hard Facilities Management ,Material Handling & Storage,0,94,94,08-Aug-11,TBC
Nottinghamshire County Council,05-02445,MANAGED BUSINESS COMMUNICATIONS,ICT,Telecommunications & Media,0,145,145,23-Aug-11,TBC
Nottinghamshire County Council,05-02446,SQUIDCARD LTD,Professional Services,Financial & Insurance Services,0,424,424,25-Aug-11,TBC
Nottinghamshire County Council,05-02447,CAPITA RESOURCING LTD,People,Recruitment,0,"1,182.50","1,182.50",08-Aug-11,TBC
Nottinghamshire County Council,05-02448,COCA COLA ENTERPRISES LTD,Soft Facilities Management,Beverages,0,86.68,86.68,08-Aug-11,TBC
Nottinghamshire County Council,05-02449,BADENOCH AND CLARK,People,Recruitment,0,500,500,08-Aug-11,TBC
Nottinghamshire County Council,05-02450,EDEN BROWN LTD,People,Recruitment,0,319.54,319.54,25-Aug-11,TBC
Nottinghamshire County Council,05-02451,GEORGES CONTRACTORS LTD,Hard Facilities Management ,Building Construction Services,0,630,630,08-Aug-11,TBC
Nottinghamshire County Council,05-02452,VENN GROUP LTD,People,Recruitment,0,239.26,239.26,08-Aug-11,TBC
Nottinghamshire County Council,05-02453,REAL EDUCATION LTD,External Services (Highways & Culture),Education Services,0,446.83,446.83,08-Aug-11,TBC
Nottinghamshire County Council,05-02454,OUTCOMES UK,People,Recruitment,0,358.9,358.9,08-Aug-11,TBC
Nottinghamshire County Council,05-02455,OUTCOMES UK,People,Recruitment,0,575.04,575.04,08-Aug-11,TBC
Nottinghamshire County Council,05-02456,KONICA MINOLTA,ICT,"Printing & Publishing, Equipment & Supplies",0,111.97,111.97,19-Aug-11,TBC
Nottinghamshire County Council,05-02458,WEST BRIDGFORD MASONIC CLUB LIMTED,Transport & Travel,Motor Vehicles,0,650,650,08-Aug-11,TBC
Nottinghamshire County Council,05-02461,GLAZER CONSULTING,Professional Services,Consultancy,0,"1,200.00","1,200.00",08-Aug-11,TBC
Nottinghamshire County Council,05-02463,SOUTH FOREST LEISURE CENTRE,Transport & Travel,Hotels & Venues,0,185.5,185.5,08-Aug-11,TBC
Nottinghamshire County Council,05-02467,TUBES FITTINGS VALVES LTD,Hard Facilities Management ,Plumbing Services,0,-0.01,-0.01,11-Aug-11,TBC
Nottinghamshire County Council,05-02492,CRANTON ELECTRICAL CO LTD,Hard Facilities Management ,Electrical Systems & Lighting,0,-0.01,-0.01,17-Aug-11,TBC
Nottinghamshire County Council,05-02504,A1 MINI-MIX CONCRETE LTD,Hard Facilities Management ,Concrete Installation & Repair Services,0,-0.01,-0.01,30-Aug-11,TBC
Nottinghamshire County Council,05-02533,ENNSTONE JOHNSTON LTD,External Services (Highways & Culture),Earth & Stone Aggregates ,0,0.01,0.01,19-Aug-11,TBC
Nottinghamshire County Council,05-02546,TUBES FITTINGS VALVES LTD,Hard Facilities Management ,Plumbing Services,0,0.01,0.01,12-Aug-11,TBC
Nottinghamshire County Council,05-02547,TUBES FITTINGS VALVES LTD,Hard Facilities Management ,Plumbing Services,0,-0.01,-0.01,11-Aug-11,TBC
Nottinghamshire County Council,05-02566,SPECIALIST COMPUTER CENTRES LTD,ICT,Computer Services,0,"1,236.00","1,236.00",17-Aug-11,TBC
Nottinghamshire County Council,05-02567,SPECIALIST COMPUTER CENTRES LTD,ICT,Computer Services,0,"1,828.00","1,828.00",19-Aug-11,TBC
Nottinghamshire County Council,05-02575,BRAKE BROS LTD,Soft Facilities Management,Prepared & Preserved Foods,0,-0.04,-0.04,09-Aug-11,TBC
Nottinghamshire County Council,05-02704,CAPITA SOCIAL CARE AND HOUSING,Care,Domiciliary Care,0,120.24,120.24,09-Aug-11,TBC
Nottinghamshire County Council,05-02706,SL CLOTHING LTD,Soft Facilities Management,Clothing,0,90.76,90.76,23-Aug-11,TBC
Nottinghamshire County Council,05-02707,FEET (LINE MARKERS ) LTD,External Services (Highways & Culture),Sports & Recreational Equipment & Supplies,0,112,112,09-Aug-11,TBC
Nottinghamshire County Council,05-02708,SL CLOTHING LTD,Soft Facilities Management,Clothing,0,90.9,90.9,23-Aug-11,TBC
Nottinghamshire County Council,05-02709,MACILDOWIE ASSOCIATES,People,Recruitment,0,107.2,107.2,23-Aug-11,TBC
Nottinghamshire County Council,05-02710,CALIBA,Hard Facilities Management ,Building Construction Services,0,84,84,09-Aug-11,TBC
Nottinghamshire County Council,05-02712,TALLON MONITORING LTD,ICT,Telecommunications & Media,0,150.7,150.7,31-Aug-11,TBC
Nottinghamshire County Council,05-02713,OUTCOMES UK,People,Recruitment,0,"2,381.27","2,381.27",09-Aug-11,TBC
Nottinghamshire County Council,05-02714,CAPITA SOCIAL CARE AND HOUSING,Care,Domiciliary Care,0,227.85,227.85,18-Aug-11,TBC
Nottinghamshire County Council,05-02715,ACADEMY SOCIAL CARE LTD,Care,Domiciliary Care,0,152.47,152.47,09-Aug-11,TBC
Nottinghamshire County Council,05-02716,ACADEMY SOCIAL CARE LTD,Care,Domiciliary Care,0,158.06,158.06,09-Aug-11,TBC
Nottinghamshire County Council,05-02717,CAPITA SOCIAL CARE AND HOUSING,Care,Domiciliary Care,0,234.33,234.33,18-Aug-11,TBC
Nottinghamshire County Council,05-02718,PULSE,External Services (Highways & Culture),Sports & Recreational Equipment & Supplies,0,246.24,246.24,09-Aug-11,TBC
Nottinghamshire County Council,05-02719,CAPITA SOCIAL CARE AND HOUSING,Care,Domiciliary Care,0,113.49,113.49,18-Aug-11,TBC
Nottinghamshire County Council,05-02720,CAPITA SOCIAL CARE AND HOUSING,Care,Domiciliary Care,0,110.15,110.15,25-Aug-11,TBC
Nottinghamshire County Council,05-02721,CAPITA SOCIAL CARE AND HOUSING,Care,Domiciliary Care,0,88.69,88.69,25-Aug-11,TBC
Nottinghamshire County Council,05-02722,CARDEA,Care,Healthcare Services,0,110.6,110.6,17-Aug-11,TBC
Nottinghamshire County Council,05-02723,SPRING TECHNOLOGY STAFFING SERVICES,People,Recruitment,0,550,550,09-Aug-11,TBC
Nottinghamshire County Council,05-02724,SPRING TECHNOLOGY STAFFING SERVICES,People,Recruitment,0,550,550,09-Aug-11,TBC
Nottinghamshire County Council,05-02725,SPRING TECHNOLOGY STAFFING SERVICES,People,Recruitment,0,550,550,09-Aug-11,TBC
Nottinghamshire County Council,05-02726,SELLICK PARTNERSHIP (LEGAL) LTD,Professional Services,Legal Services,0,470,470,09-Aug-11,TBC
Nottinghamshire County Council,05-02727,SPRING TECHNOLOGY STAFFING SERVICES,People,Recruitment,0,368.55,368.55,08-Aug-11,TBC
Nottinghamshire County Council,05-02728,SPRING TECHNOLOGY STAFFING SERVICES,People,Recruitment,0,491.4,491.4,08-Aug-11,TBC
Nottinghamshire County Council,05-02729,SPRING TECHNOLOGY STAFFING SERVICES,People,Recruitment,0,491.4,491.4,08-Aug-11,TBC
Nottinghamshire County Council,05-02730,SPRING TECHNOLOGY STAFFING SERVICES,People,Recruitment,0,368.55,368.55,08-Aug-11,TBC
Nottinghamshire County Council,05-02731,SPRING TECHNOLOGY STAFFING SERVICES,People,Recruitment,0,491.4,491.4,08-Aug-11,TBC
Nottinghamshire County Council,05-02732,SPRING TECHNOLOGY STAFFING SERVICES,People,Recruitment,0,472,472,08-Aug-11,TBC
Nottinghamshire County Council,05-02733,SPRING TECHNOLOGY STAFFING SERVICES,People,Recruitment,0,472,472,08-Aug-11,TBC
Nottinghamshire County Council,05-02734,SPRING TECHNOLOGY STAFFING SERVICES,People,Recruitment,0,472,472,08-Aug-11,TBC
Nottinghamshire County Council,05-02735,SPRING TECHNOLOGY STAFFING SERVICES,People,Recruitment,0,472,472,08-Aug-11,TBC
Nottinghamshire County Council,05-02736,CAPITA SOCIAL CARE AND HOUSING,Care,Domiciliary Care,0,-120.24,-120.24,09-Aug-11,TBC
Nottinghamshire County Council,05-02764,DAWSON RENTALS PORTABLE COLD STORAGE LTD,Soft Facilities Management,Vending Machines & Food Equipment,0,-0.01,-0.01,09-Aug-11,TBC
Nottinghamshire County Council,05-02872,SLACK AND CO FLOORCOVERINGS,Soft Facilities Management,Furniture & Furnishings,0,219,219,10-Aug-11,TBC
Nottinghamshire County Council,05-02873,CARDEA,Care,Healthcare Services,0,84.56,84.56,17-Aug-11,TBC
Nottinghamshire County Council,05-02874,ZEAG UK LTD,Soft Facilities Management,Security,0,"1,900.37","1,900.37",17-Aug-11,TBC
Nottinghamshire County Council,05-02875,OUTCOMES UK,People,Recruitment,0,"1,000.00","1,000.00",10-Aug-11,TBC
Nottinghamshire County Council,05-02876,GOLDEN RIVER TRAFFIC LTD,External Services (Highways & Culture),Highways & Works,0,"5,000.00","5,000.00",30-Aug-11,TBC
Nottinghamshire County Council,05-02877,RTC SAFETY SURFACES LTD,Hard Facilities Management ,Health & Safety,0,680,680,10-Aug-11,TBC
Nottinghamshire County Council,05-02878,CALIBA,Hard Facilities Management ,Building Construction Services,0,95.65,95.65,10-Aug-11,TBC
Nottinghamshire County Council,05-02880,SPRING TECHNOLOGY STAFFING SERVICES,People,Recruitment,0,377.6,377.6,09-Aug-11,TBC
Nottinghamshire County Council,05-02881,SPRING TECHNOLOGY STAFFING SERVICES,People,Recruitment,0,472,472,09-Aug-11,TBC
Nottinghamshire County Council,05-02882,SPRING TECHNOLOGY STAFFING SERVICES,People,Recruitment,0,472,472,09-Aug-11,TBC
Nottinghamshire County Council,05-02883,CARDEA,Care,Healthcare Services,0,173.19,173.19,10-Aug-11,TBC
Nottinghamshire County Council,05-02884,EDEN BROWN LTD,People,Recruitment,0,268.92,268.92,10-Aug-11,TBC
Nottinghamshire County Council,05-02885,SPRING TECHNOLOGY STAFFING SERVICES,People,Recruitment,0,472,472,09-Aug-11,TBC
Nottinghamshire County Council,05-02886,SPRING TECHNOLOGY STAFFING SERVICES,People,Recruitment,0,472,472,09-Aug-11,TBC
Nottinghamshire County Council,05-02887,SPRING TECHNOLOGY STAFFING SERVICES,People,Recruitment,0,377.6,377.6,09-Aug-11,TBC
Nottinghamshire County Council,05-02888,SPRING TECHNOLOGY STAFFING SERVICES,People,Recruitment,0,472,472,09-Aug-11,TBC
Nottinghamshire County Council,05-02889,SPRING TECHNOLOGY STAFFING SERVICES,People,Recruitment,0,472,472,09-Aug-11,TBC
Nottinghamshire County Council,05-02890,SPRING TECHNOLOGY STAFFING SERVICES,People,Recruitment,0,377.6,377.6,09-Aug-11,TBC
Nottinghamshire County Council,05-02891,SPRING TECHNOLOGY STAFFING SERVICES,People,Recruitment,0,377.6,377.6,09-Aug-11,TBC
Nottinghamshire County Council,05-02892,SPRING TECHNOLOGY STAFFING SERVICES,People,Recruitment,0,472,472,09-Aug-11,TBC
Nottinghamshire County Council,05-02893,SPRING TECHNOLOGY STAFFING SERVICES,People,Recruitment,0,472,472,09-Aug-11,TBC
Nottinghamshire County Council,05-02894,SPRING TECHNOLOGY STAFFING SERVICES,People,Recruitment,0,377.6,377.6,09-Aug-11,TBC
Nottinghamshire County Council,05-02895,SPRING TECHNOLOGY STAFFING SERVICES,People,Recruitment,0,377.6,377.6,09-Aug-11,TBC
Nottinghamshire County Council,05-02896,SPRING TECHNOLOGY STAFFING SERVICES,People,Recruitment,0,472,472,09-Aug-11,TBC
Nottinghamshire County Council,05-02897,SPRING TECHNOLOGY STAFFING SERVICES,People,Recruitment,0,377.6,377.6,09-Aug-11,TBC
Nottinghamshire County Council,05-02898,SPRING TECHNOLOGY STAFFING SERVICES,People,Recruitment,0,472,472,09-Aug-11,TBC
Nottinghamshire County Council,05-02899,SPRING TECHNOLOGY STAFFING SERVICES,People,Recruitment,0,491.4,491.4,09-Aug-11,TBC
Nottinghamshire County Council,05-02900,SPRING TECHNOLOGY STAFFING SERVICES,People,Recruitment,0,614.25,614.25,09-Aug-11,TBC
Nottinghamshire County Council,05-02901,SPRING TECHNOLOGY STAFFING SERVICES,People,Recruitment,0,377.6,377.6,09-Aug-11,TBC
Nottinghamshire County Council,05-02902,SPRING TECHNOLOGY STAFFING SERVICES,People,Recruitment,0,472,472,09-Aug-11,TBC
Nottinghamshire County Council,05-02903,SPRING TECHNOLOGY STAFFING SERVICES,People,Recruitment,0,472,472,09-Aug-11,TBC
Nottinghamshire County Council,05-02904,SPRING TECHNOLOGY STAFFING SERVICES,People,Recruitment,0,472,472,09-Aug-11,TBC
Nottinghamshire County Council,05-02905,SPRING TECHNOLOGY STAFFING SERVICES,People,Recruitment,0,614.25,614.25,09-Aug-11,TBC
Nottinghamshire County Council,05-02908,EDEN BROWN LTD,People,Recruitment,0,294.84,294.84,18-Aug-11,TBC
Nottinghamshire County Council,05-02909,EDEN BROWN LTD,People,Recruitment,0,365.71,365.71,12-Aug-11,TBC
Nottinghamshire County Council,05-02910,EDEN BROWN LTD,People,Recruitment,0,276.48,276.48,12-Aug-11,TBC
Nottinghamshire County Council,05-02911,EDEN BROWN LTD,People,Recruitment,0,305.72,305.72,12-Aug-11,TBC
Nottinghamshire County Council,05-02912,CAPITA SOCIAL CARE AND HOUSING,Care,Domiciliary Care,0,341.37,341.37,10-Aug-11,TBC
Nottinghamshire County Council,05-02913,CAPITA SOCIAL CARE AND HOUSING,Care,Domiciliary Care,0,336.33,336.33,10-Aug-11,TBC
Nottinghamshire County Council,05-02914,CAPITA SOCIAL CARE AND HOUSING,Care,Domiciliary Care,0,266.1,266.1,10-Aug-11,TBC
Nottinghamshire County Council,05-02915,EDEN BROWN LTD,People,Recruitment,0,286.49,286.49,18-Aug-11,TBC
Nottinghamshire County Council,05-02916,EDEN BROWN LTD,People,Recruitment,0,261.62,261.62,15-Aug-11,TBC
Nottinghamshire County Council,05-02917,EDEN BROWN LTD,People,Recruitment,0,365.71,365.71,12-Aug-11,TBC
Nottinghamshire County Council,05-02918,CAPITA SOCIAL CARE AND HOUSING,Care,Domiciliary Care,0,340.88,340.88,10-Aug-11,TBC
Nottinghamshire County Council,05-02919,CAPITA SOCIAL CARE AND HOUSING,Care,Domiciliary Care,0,336.33,336.33,10-Aug-11,TBC
Nottinghamshire County Council,05-02920,CAPITA SOCIAL CARE AND HOUSING,Care,Domiciliary Care,0,336.33,336.33,10-Aug-11,TBC
Nottinghamshire County Council,05-02921,CAPITA SOCIAL CARE AND HOUSING,Care,Domiciliary Care,0,227.85,227.85,25-Aug-11,TBC
Nottinghamshire County Council,05-02922,CAPITA SOCIAL CARE AND HOUSING,Care,Domiciliary Care,0,102.06,102.06,10-Aug-11,TBC
Nottinghamshire County Council,05-02923,CAPITA SOCIAL CARE AND HOUSING,Care,Domiciliary Care,0,270.06,270.06,10-Aug-11,TBC
Nottinghamshire County Council,05-02924,CAPITA SOCIAL CARE AND HOUSING,Care,Domiciliary Care,0,266.1,266.1,18-Aug-11,TBC
Nottinghamshire County Council,05-02925,CAPITA SOCIAL CARE AND HOUSING,Care,Domiciliary Care,0,266.1,266.1,10-Aug-11,TBC
Nottinghamshire County Council,05-02926,CAPITA SOCIAL CARE AND HOUSING,Care,Domiciliary Care,0,266.1,266.1,10-Aug-11,TBC
Nottinghamshire County Council,05-02927,CAPITA SOCIAL CARE AND HOUSING,Care,Domiciliary Care,0,340.88,340.88,10-Aug-11,TBC
Nottinghamshire County Council,05-02928,EDEN BROWN LTD,People,Recruitment,0,275.85,275.85,18-Aug-11,TBC
Nottinghamshire County Council,05-02929,HAROLD POTTER AND COMPANY LTD,Professional Services,Professional Engineering Services,0,219.52,219.52,10-Aug-11,TBC
Nottinghamshire County Council,05-02930,ROBERT HALF LTD,People,Recruitment,0,129.5,129.5,10-Aug-11,TBC
Nottinghamshire County Council,05-02931,CAPITA SOCIAL CARE AND HOUSING,Care,Domiciliary Care,0,123.44,123.44,11-Aug-11,TBC
Nottinghamshire County Council,05-02932,CARTER BROWN ASSOCIATES,Professional Services,Legal Services,0,173.5,173.5,10-Aug-11,TBC
Nottinghamshire County Council,05-02933,CAPITA SOCIAL CARE AND HOUSING,Care,Domiciliary Care,0,236.31,236.31,11-Aug-11,TBC
Nottinghamshire County Council,05-02934,CAPITA SOCIAL CARE AND HOUSING,Care,Domiciliary Care,0,333,333,10-Aug-11,TBC
Nottinghamshire County Council,05-02935,SYNETRIX LTD,ICT,Communications Devices & Accessories,0,"13,719.60","13,719.60",24-Aug-11,TBC
Nottinghamshire County Council,05-02936,SYNETRIX LTD,ICT,Communications Devices & Accessories,0,"184,889.40","184,889.40",24-Aug-11,TBC
Nottinghamshire County Council,05-02937,SPECIALIST COMPUTER CENTRES LTD,ICT,Computer Services,0,104.72,104.72,23-Aug-11,TBC
Nottinghamshire County Council,05-02938,DEPARTMENT FOR TRANSPORT,Professional Services,Politics & Civic Affairs,0,"4,180.16","4,180.16",18-Aug-11,TBC
Nottinghamshire County Council,05-02940,EDEN BROWN LTD,People,Recruitment,0,311.84,311.84,18-Aug-11,TBC
Nottinghamshire County Council,05-02944,WINDBLOWERS,External Services (Highways & Culture),Musical Instruments,0,558.22,558.22,09-Aug-11,TBC
Nottinghamshire County Council,05-02945,SYNETRIX LTD,ICT,Communications Devices & Accessories,0,"14,171.80","14,171.80",24-Aug-11,TBC
Nottinghamshire County Council,05-02946,STREETMASTER PRODUCTS,Soft Facilities Management,Furniture & Furnishings,0,134,134,10-Aug-11,TBC
Nottinghamshire County Council,05-02947,SYNETRIX LTD,ICT,Communications Devices & Accessories,0,"35,387.80","35,387.80",24-Aug-11,TBC
Nottinghamshire County Council,05-02949,WHALEYS (BRADFORD) LTD,Soft Facilities Management,Furniture & Furnishings,0,111.22,111.22,10-Aug-11,TBC
Nottinghamshire County Council,05-02951,EMBRACE TRAINING AND CONSULTANCY LTD,People,Vocational Training,0,221.66,221.66,10-Aug-11,TBC
Nottinghamshire County Council,05-02952,BOUGHTON TURF MANAGEMENT,External Services (Highways & Culture),Farming Forestry & Wildlife Services,0,348,348,10-Aug-11,TBC
Nottinghamshire County Council,05-02955,CONISTON ASSOCIATES LTD,People,Vocational Training,0,187,187,10-Aug-11,TBC
Nottinghamshire County Council,05-02957,OXFORD INNOVATION LTD,Soft Facilities Management,Information Services,0,"45,910.15","45,910.15",10-Aug-11,TBC
Nottinghamshire County Council,05-02958,FEDERATION OF MUSIC SERVICES,Professional Services,Professional Artists & Performers,0,157,157,10-Aug-11,TBC
Nottinghamshire County Council,05-02959,DX NETWORK SERVICES LTD,Soft Facilities Management,Mail & Couriers,0,141.64,141.64,10-Aug-11,TBC
Nottinghamshire County Council,05-02970,WATCH-IT SECURITY SERVICES,Soft Facilities Management,Security,0,253,253,10-Aug-11,TBC
Nottinghamshire County Council,05-02972,CAPITA SOCIAL CARE AND HOUSING,Care,Domiciliary Care,0,87.18,87.18,18-Aug-11,TBC
Nottinghamshire County Council,05-02973,BADENOCH AND CLARK,People,Recruitment,0,558,558,10-Aug-11,TBC
Nottinghamshire County Council,05-02974,BADENOCH AND CLARK,People,Recruitment,0,434,434,10-Aug-11,TBC
Nottinghamshire County Council,05-02975,BADENOCH AND CLARK,People,Recruitment,0,248,248,10-Aug-11,TBC
Nottinghamshire County Council,05-02976,EDC (NOTTINGHAM) LTD,People,Recruitment,0,426.4,426.4,10-Aug-11,TBC
Nottinghamshire County Council,05-02977,KB RECRUITMENT LTD,People,Recruitment,0,504.05,504.05,10-Aug-11,TBC
Nottinghamshire County Council,05-02978,TMH (WEST HALLAM) LTD,People,Agency Staff - Manual,0,209.2,209.2,10-Aug-11,TBC
Nottinghamshire County Council,05-02979,CAPITA SOCIAL CARE AND HOUSING,Care,Domiciliary Care,0,135.42,135.42,18-Aug-11,TBC
Nottinghamshire County Council,05-02980,BADENOCH AND CLARK,People,Recruitment,0,465,465,10-Aug-11,TBC
Nottinghamshire County Council,05-02981,CAPITA SOCIAL CARE AND HOUSING,Care,Domiciliary Care,0,236.42,236.42,25-Aug-11,TBC
Nottinghamshire County Council,05-02982,BADENOCH AND CLARK,People,Recruitment,0,186,186,10-Aug-11,TBC
Nottinghamshire County Council,05-02983,BADENOCH AND CLARK,People,Recruitment,0,248,248,10-Aug-11,TBC
Nottinghamshire County Council,05-02984,BADENOCH AND CLARK,People,Recruitment,0,527,527,10-Aug-11,TBC
Nottinghamshire County Council,05-02985,BADENOCH AND CLARK,People,Recruitment,0,403,403,10-Aug-11,TBC
Nottinghamshire County Council,05-02986,BADENOCH AND CLARK,People,Recruitment,0,434,434,10-Aug-11,TBC
Nottinghamshire County Council,05-02987,INCLUSIVE SOLUTIONS UK LTD,External Services (Highways & Culture),Education Services,0,184.42,184.42,10-Aug-11,TBC
Nottinghamshire County Council,05-02988,CAPITA SOCIAL CARE AND HOUSING,Care,Domiciliary Care,0,228.39,228.39,18-Aug-11,TBC
Nottinghamshire County Council,05-03007,UNIVERSAL LOCUMS,People,Recruitment,0,85.04,85.04,10-Aug-11,TBC
Nottinghamshire County Council,05-03008,UNIVERSAL LOCUMS,People,Recruitment,0,186.77,186.77,10-Aug-11,TBC
Nottinghamshire County Council,05-03009,UNIVERSAL LOCUMS,People,Recruitment,0,244.92,244.92,10-Aug-11,TBC
Nottinghamshire County Council,05-03010,REED EMPLOYMENT PLC,People,Recruitment,0,275.73,275.73,10-Aug-11,TBC
Nottinghamshire County Council,05-03011,REED EMPLOYMENT PLC,People,Recruitment,0,176.75,176.75,10-Aug-11,TBC
Nottinghamshire County Council,05-03012,REED EMPLOYMENT PLC,People,Recruitment,0,286.34,286.34,10-Aug-11,TBC
Nottinghamshire County Council,05-03014,INCLUSIVE SOLUTIONS UK LTD,External Services (Highways & Culture),Education Services,0,86.32,86.32,10-Aug-11,TBC
Nottinghamshire County Council,05-03019,ENNSTONE JOHNSTON LTD,External Services (Highways & Culture),Earth & Stone Aggregates ,0,0.02,0.02,24-Aug-11,TBC
Nottinghamshire County Council,05-03020,ENNSTONE JOHNSTON LTD,External Services (Highways & Culture),Earth & Stone Aggregates ,0,-0.01,-0.01,19-Aug-11,TBC
Nottinghamshire County Council,05-03021,ENNSTONE JOHNSTON LTD,External Services (Highways & Culture),Earth & Stone Aggregates ,0,-0.01,-0.01,19-Aug-11,TBC
Nottinghamshire County Council,05-03024,ENNSTONE JOHNSTON LTD,External Services (Highways & Culture),Earth & Stone Aggregates ,0,-0.01,-0.01,19-Aug-11,TBC
Nottinghamshire County Council,05-03145,WILLIAM FREER LTD,Soft Facilities Management,Vending Machines & Food Equipment,0,116.76,116.76,11-Aug-11,TBC
Nottinghamshire County Council,05-03146,BRAKE BROS LTD,Soft Facilities Management,Prepared & Preserved Foods,0,37.58,37.58,11-Aug-11,TBC
Nottinghamshire County Council,05-03147,SHERIDAN MYERS,Professional Services,Consultancy,0,"1,412.11","1,412.11",11-Aug-11,TBC
Nottinghamshire County Council,05-03148,NORTHERN RECRUITMENT GROUP,People,Recruitment,0,115.74,115.74,26-Aug-11,TBC
Nottinghamshire County Council,05-03149,STRELLEY SYSTEMS LTD,Transport & Travel,Hotels & Venues,0,773.62,773.62,11-Aug-11,TBC
Nottinghamshire County Council,05-03150,PREMIER PETS HOTEL,External Services (Highways & Culture),Plant & Animal Supplies,0,86.3,86.3,11-Aug-11,TBC
Nottinghamshire County Council,05-03151,TRUVELO (UK) LTD,External Services (Highways & Culture),Highways & Works,0,116.99,116.99,11-Aug-11,TBC
Nottinghamshire County Council,05-03152,NORTHERN RECRUITMENT GROUP,People,Recruitment,0,104.79,104.79,26-Aug-11,TBC
Nottinghamshire County Council,05-03153,NORTHERN RECRUITMENT GROUP,People,Recruitment,0,114.7,114.7,26-Aug-11,TBC
Nottinghamshire County Council,05-03154,NORTHERN RECRUITMENT GROUP,People,Recruitment,0,115.74,115.74,26-Aug-11,TBC
Nottinghamshire County Council,05-03155,Y M C A,Care,Residential Care,0,800,800,11-Aug-11,TBC
Nottinghamshire County Council,05-03156,JOHN A STEPHENS LTD,Hard Facilities Management ,Building & Construction Supplies,0,153.57,153.57,11-Aug-11,TBC
Nottinghamshire County Council,05-03157,JOHN A STEPHENS LTD,Hard Facilities Management ,Building & Construction Supplies,0,146.58,146.58,11-Aug-11,TBC
Nottinghamshire County Council,05-03158,JOHN A STEPHENS LTD,Hard Facilities Management ,Building & Construction Supplies,0,148.42,148.42,11-Aug-11,TBC
Nottinghamshire County Council,05-03159,JOHN A STEPHENS LTD,Hard Facilities Management ,Building & Construction Supplies,0,153.57,153.57,11-Aug-11,TBC
Nottinghamshire County Council,05-03160,JOHN A STEPHENS LTD,Hard Facilities Management ,Building & Construction Supplies,0,199.17,199.17,11-Aug-11,TBC
Nottinghamshire County Council,05-03161,ENABLE ACCESS,Care,Medical Equipment &  Supplies,0,375.2,375.2,15-Aug-11,TBC
Nottinghamshire County Council,05-03164,VENN GROUP LTD,People,Recruitment,0,236.71,236.71,11-Aug-11,TBC
Nottinghamshire County Council,05-03196,HULLEYS,Soft Facilities Management,Frozen Goods,0,-0.01,-0.01,11-Aug-11,TBC
Nottinghamshire County Council,05-03244,TARMAC CENTRAL LTD,External Services (Highways & Culture),Highways & Works,0,0.01,0.01,31-Aug-11,TBC
Nottinghamshire County Council,05-03317,BRAKE BROS LTD,Soft Facilities Management,Prepared & Preserved Foods,0,-0.02,-0.02,11-Aug-11,TBC
Nottinghamshire County Council,05-03318,BRAKE BROS LTD,Soft Facilities Management,Prepared & Preserved Foods,0,-0.04,-0.04,11-Aug-11,TBC
Nottinghamshire County Council,05-03324,THE DESIGN CONCEPT,Professional Services,"Reproduction, Photographic & Design Services",0,"4,388.40","4,388.40",12-Aug-11,TBC
Nottinghamshire County Council,05-03325,A4E CONSULT LTD,Professional Services,Consultancy,0,351.6,351.6,12-Aug-11,TBC
Nottinghamshire County Council,05-03326,MESSAGEMAKER DISPLAYS LTD,Professional Services,Marketing & Distribution,0,"5,155.80","5,155.80",22-Aug-11,TBC
Nottinghamshire County Council,05-03327,CAPITA SOCIAL CARE AND HOUSING,Care,Domiciliary Care,0,288.96,288.96,12-Aug-11,TBC
Nottinghamshire County Council,05-03328,E M D D LTD,Hard Facilities Management ,Tools & General Machinery,0,"4,396.58","4,396.58",12-Aug-11,TBC
Nottinghamshire County Council,05-03329,J M COUNTRYSIDE LANDSCAPES,External Services (Highways & Culture),Farming Forestry & Wildlife Services,0,496.6,496.6,15-Aug-11,TBC
Nottinghamshire County Council,05-03331,JOHN SCHEERER AND SONS LTD,External Services (Highways & Culture),Musical Instruments,0,354,354,12-Aug-11,TBC
Nottinghamshire County Council,05-03332,MELLOR COACHCRAFT,Transport & Travel,Bus,0,83.6,83.6,12-Aug-11,TBC
Nottinghamshire County Council,05-03336,BUS SHELTERS LTD,Transport & Travel,Bus,0,"3,477.08","3,477.08",12-Aug-11,TBC
Nottinghamshire County Council,05-03339,XMA LTD,ICT,Computer Equipment & Accessories,0,88.74,88.74,24-Aug-11,TBC
Nottinghamshire County Council,05-03342,EMPLOYERS FORUM ON DISABILITY,External Services (Highways & Culture),Organisations & Clubs,0,550,550,12-Aug-11,TBC
Nottinghamshire County Council,05-03343,TROJAN CONSULTANTS LTD,ICT,Software,0,616,616,12-Aug-11,TBC
Nottinghamshire County Council,05-03344,TROJAN CONSULTANTS LTD,ICT,Software,0,151.52,151.52,12-Aug-11,TBC
Nottinghamshire County Council,05-03345,TROJAN CONSULTANTS LTD,ICT,Software,0,804.56,804.56,12-Aug-11,TBC
Nottinghamshire County Council,05-03346,TROJAN CONSULTANTS LTD,ICT,Software,0,154,154,12-Aug-11,TBC
Nottinghamshire County Council,05-03347,CARDEA,Care,Healthcare Services,0,316.03,316.03,31-Aug-11,TBC
Nottinghamshire County Council,05-03348,CAPITA SOCIAL CARE AND HOUSING,Care,Domiciliary Care,0,232.33,232.33,25-Aug-11,TBC
Nottinghamshire County Council,05-03349,CAPITA SOCIAL CARE AND HOUSING,Care,Domiciliary Care,0,137.02,137.02,25-Aug-11,TBC
Nottinghamshire County Council,05-03350,CARDEA,Care,Healthcare Services,0,90.69,90.69,12-Aug-11,TBC
Nottinghamshire County Council,05-03351,CARDEA,Care,Healthcare Services,0,92.41,92.41,12-Aug-11,TBC
Nottinghamshire County Council,05-03352,CARDEA,Care,Healthcare Services,0,113.4,113.4,31-Aug-11,TBC
Nottinghamshire County Council,05-03353,CAPITA SOCIAL CARE AND HOUSING,Care,Domiciliary Care,0,113.52,113.52,25-Aug-11,TBC
Nottinghamshire County Council,05-03354,ACADEMY SOCIAL CARE LTD,Care,Domiciliary Care,0,192.18,192.18,12-Aug-11,TBC
Nottinghamshire County Council,05-03355,CARDEA,Care,Healthcare Services,0,86.1,86.1,31-Aug-11,TBC
Nottinghamshire County Council,05-03356,CARDEA,Care,Healthcare Services,0,220.46,220.46,12-Aug-11,TBC
Nottinghamshire County Council,05-03357,MAKING IT! ENTERPRISES LTD,External Services (Highways & Culture),Sports & Recreational Equipment & Supplies,0,191.74,191.74,12-Aug-11,TBC
Nottinghamshire County Council,05-03358,CRANTON ELECTRICAL CO LTD,Hard Facilities Management ,Electrical Systems & Lighting,0,229.47,229.47,12-Aug-11,TBC
Nottinghamshire County Council,05-03359,HAROLD POTTER AND COMPANY LTD,Professional Services,Professional Engineering Services,0,121.39,121.39,12-Aug-11,TBC
Nottinghamshire County Council,05-03360,ARNOLD TOWN FC LTD,Transport & Travel,Hotels & Venues,0,93.36,93.36,18-Aug-11,TBC
Nottinghamshire County Council,05-03363,CAPITA SOCIAL CARE AND HOUSING,Care,Domiciliary Care,0,229.73,229.73,25-Aug-11,TBC
Nottinghamshire County Council,05-03364,CUSTOM GROUP LTD,Soft Facilities Management,Furniture & Furnishings,0,100.31,100.31,12-Aug-11,TBC
Nottinghamshire County Council,05-03368,SELLICK PARTNERSHIP (LEGAL) LTD,Professional Services,Legal Services,0,470,470,12-Aug-11,TBC
Nottinghamshire County Council,05-03392,FIESTA CRAFTS LTD,Soft Facilities Management,Security,0,0.01,0.01,31-Aug-11,TBC
Nottinghamshire County Council,05-02435,AGG ELECTRICAL SAFETY TESTING LIMITED,TBC,TBC,0,"1,820.56","1,820.56",24-Aug-11,TBC
Nottinghamshire County Council,05-03833,HULLEYS,Soft Facilities Management,Frozen Goods,0,-0.01,-0.01,15-Aug-11,TBC
Nottinghamshire County Council,05-03835,HULLEYS,Soft Facilities Management,Frozen Goods,0,-0.01,-0.01,15-Aug-11,TBC
Nottinghamshire County Council,05-03877,CAPITA SOCIAL CARE AND HOUSING,Care,Domiciliary Care,0,0.01,0.01,18-Aug-11,TBC
Nottinghamshire County Council,05-03880,PHS GROUP PLC,Soft Facilities Management,Cleaning Equipment & Janitorial Supplies,0,94.9,94.9,15-Aug-11,TBC
Nottinghamshire County Council,05-03940,NCSL,People,Vocational Training,0,84.84,84.84,16-Aug-11,TBC
Nottinghamshire County Council,05-03941,WINDBLOWERS,External Services (Highways & Culture),Musical Instruments,0,291.7,291.7,15-Aug-11,TBC
Nottinghamshire County Council,05-02435,AGG ELECTRICAL SAFETY TESTING LIMITED,TBC,TBC,"9,102.80",0,"9,102.80",24-Aug-11,RESOURCES
Nottinghamshire County Council,05-03943,WILSON ELECTRICS,Hard Facilities Management ,Electrical Systems & Lighting,0,373.28,373.28,16-Aug-11,TBC
Nottinghamshire County Council,05-03944,CAPITA SOCIAL CARE AND HOUSING,Care,Domiciliary Care,0,-100.26,-100.26,30-Aug-11,TBC
Nottinghamshire County Council,05-01183,AVERHAM CHURCH,TBC,TBC,500,0,500,01-Aug-11,RESOURCES
Nottinghamshire County Council,05-03946,CAPITA SOCIAL CARE AND HOUSING,Care,Domiciliary Care,0,87.84,87.84,17-Aug-11,TBC
Nottinghamshire County Council,05-04084,XMA LTD,ICT,Computer Equipment & Accessories,0,-0.01,-0.01,24-Aug-11,TBC
Nottinghamshire County Council,05-07318,W T BURDEN LTD,Hard Facilities Management ,Building & Construction Supplies,0,150.12,150.12,17-Aug-11,TBC
Nottinghamshire County Council,05-07392,ANDREWS SYKES HIRE LTD,Hard Facilities Management ,Electrical Systems & Lighting,0,196.53,196.53,18-Aug-11,TBC
Nottinghamshire County Council,05-07393,CMT (TESTING) LTD,Professional Services,Professional Engineering Services,0,829,829,18-Aug-11,TBC
Nottinghamshire County Council,05-07394,THE APPROPRIATE ADULT SERVICE,Care,Community & Social Services,0,213.5,213.5,18-Aug-11,TBC
Nottinghamshire County Council,05-07395,ANDREWS SYKES HIRE LTD,Hard Facilities Management ,Electrical Systems & Lighting,0,664.58,664.58,18-Aug-11,TBC
Nottinghamshire County Council,05-07396,EDEN BROWN LTD,People,Recruitment,0,353.14,353.14,18-Aug-11,TBC
Nottinghamshire County Council,05-07397,EDEN BROWN LTD,People,Recruitment,0,365.71,365.71,25-Aug-11,TBC
Nottinghamshire County Council,05-07398,CARITAS RECRUITMENT,People,Recruitment,0,868.37,868.37,25-Aug-11,TBC
Nottinghamshire County Council,05-07399,SYNARBOR EDUCATION,External Services (Highways & Culture),Education Services,0,194.02,194.02,31-Aug-11,TBC
Nottinghamshire County Council,05-07400,EDEN BROWN LTD,People,Recruitment,0,317.69,317.69,18-Aug-11,TBC
Nottinghamshire County Council,05-07401,EDEN BROWN LTD,People,Recruitment,0,232.67,232.67,25-Aug-11,TBC
Nottinghamshire County Council,05-07402,EDEN BROWN LTD,People,Recruitment,0,481,481,25-Aug-11,TBC
Nottinghamshire County Council,05-07403,EDEN BROWN LTD,People,Recruitment,0,309.14,309.14,18-Aug-11,TBC
Nottinghamshire County Council,05-07404,EDEN BROWN LTD,People,Recruitment,0,295.78,295.78,18-Aug-11,TBC
Nottinghamshire County Council,05-07405,EDEN BROWN LTD,People,Recruitment,0,303.62,303.62,25-Aug-11,TBC
Nottinghamshire County Council,05-07406,EDEN BROWN LTD,People,Recruitment,0,279.79,279.79,18-Aug-11,TBC
Nottinghamshire County Council,05-07407,THE NE GROUP (NORTH NOTTINGHAMSHIRE ENTERPRISES),Transport & Travel,Hotels & Venues,0,198.72,198.72,18-Aug-11,TBC
Nottinghamshire County Council,05-07408,NEOPOST LTD,Soft Facilities Management,Mail & Couriers,0,340.63,340.63,18-Aug-11,TBC
Nottinghamshire County Council,05-07409,NEOPOST LTD,Soft Facilities Management,Mail & Couriers,0,150.07,150.07,18-Aug-11,TBC
Nottinghamshire County Council,05-07411,SHEFFIELD FAMILY LAW ASSOCIATES,Professional Services,Legal Services,0,231.3,231.3,18-Aug-11,TBC
Nottinghamshire County Council,05-07412,SHEFFIELD FAMILY LAW ASSOCIATES,Professional Services,Legal Services,0,774.81,774.81,18-Aug-11,TBC
Nottinghamshire County Council,05-07413,KONICA MINOLTA,ICT,"Printing & Publishing, Equipment & Supplies",0,-217.85,-217.85,19-Aug-11,TBC
Nottinghamshire County Council,05-07414,CARITAS RECRUITMENT,People,Recruitment,0,420.94,420.94,18-Aug-11,TBC
Nottinghamshire County Council,05-07415,CARITAS RECRUITMENT,People,Recruitment,0,235.23,235.23,25-Aug-11,TBC
Nottinghamshire County Council,05-07416,MEDICARE FIRST,Care,Medical Equipment &  Supplies,0,292.3,292.3,23-Aug-11,TBC
Nottinghamshire County Council,05-07417,MEDICARE FIRST,Care,Medical Equipment &  Supplies,0,292.3,292.3,31-Aug-11,TBC
Nottinghamshire County Council,05-07418,EDEN BROWN LTD,People,Recruitment,0,239.84,239.84,25-Aug-11,TBC
Nottinghamshire County Council,05-07419,EDEN BROWN LTD,People,Recruitment,0,365.71,365.71,22-Aug-11,TBC
Nottinghamshire County Council,05-07420,EDEN BROWN LTD,People,Recruitment,0,365.71,365.71,25-Aug-11,TBC
Nottinghamshire County Council,05-07421,EDEN BROWN LTD,People,Recruitment,0,282.52,282.52,25-Aug-11,TBC
Nottinghamshire County Council,05-07422,EDEN BROWN LTD,People,Recruitment,0,284.92,284.92,18-Aug-11,TBC
Nottinghamshire County Council,05-07423,EDEN BROWN LTD,People,Recruitment,0,271.18,271.18,18-Aug-11,TBC
Nottinghamshire County Council,05-07424,EDEN BROWN LTD,People,Recruitment,0,249.36,249.36,25-Aug-11,TBC
Nottinghamshire County Council,05-07425,DRAEFERN LTD T/A RIGHT4STAFF,People,Recruitment,0,86.52,86.52,18-Aug-11,TBC
Nottinghamshire County Council,05-07426,CAPITA SOCIAL CARE AND HOUSING,Care,Domiciliary Care,0,169.35,169.35,25-Aug-11,TBC
Nottinghamshire County Council,05-07427,CAPITA SOCIAL CARE AND HOUSING,Care,Domiciliary Care,0,228.44,228.44,25-Aug-11,TBC
Nottinghamshire County Council,05-07428,CAPITA SOCIAL CARE AND HOUSING,Care,Domiciliary Care,0,232.44,232.44,18-Aug-11,TBC
Nottinghamshire County Council,05-07429,WATER SOLUTIONS,Hard Facilities Management ,Plumbing Services,0,87.36,87.36,18-Aug-11,TBC
Nottinghamshire County Council,05-07430,CAPITA SOCIAL CARE AND HOUSING,Care,Domiciliary Care,0,135.42,135.42,25-Aug-11,TBC
Nottinghamshire County Council,05-07431,CRANTON ELECTRICAL CO LTD,Hard Facilities Management ,Electrical Systems & Lighting,0,152.33,152.33,18-Aug-11,TBC
Nottinghamshire County Council,05-07434,NT VOICE AND DATA SOLUTIONS,ICT,Telecommunications & Media,0,965.15,965.15,18-Aug-11,TBC
Nottinghamshire County Council,05-07435,FORMOST AIRCONDITIONING AND REFRIG LTD,Hard Facilities Management ,Heating & Ventilation (Inc A/C),0,389.2,389.2,18-Aug-11,TBC
Nottinghamshire County Council,05-07436,ROBERT HALF LTD,People,Recruitment,0,129.5,129.5,18-Aug-11,TBC
Nottinghamshire County Council,05-07437,MACILDOWIE ASSOCIATES,People,Recruitment,0,116.8,116.8,31-Aug-11,TBC
Nottinghamshire County Council,05-07438,CARITAS RECRUITMENT,People,Recruitment,0,213.58,213.58,18-Aug-11,TBC
Nottinghamshire County Council,05-07439,CAPITA SOCIAL CARE AND HOUSING,Care,Domiciliary Care,0,131.51,131.51,25-Aug-11,TBC
Nottinghamshire County Council,05-07440,CARDEA,Care,Healthcare Services,0,92.69,92.69,31-Aug-11,TBC
Nottinghamshire County Council,05-07441,TMH (WEST HALLAM) LTD,People,Agency Staff - Manual,0,332.23,332.23,18-Aug-11,TBC
Nottinghamshire County Council,05-07442,KEY PERSONNEL (MIDLANDS) LTD,People,Recruitment,0,145.07,145.07,18-Aug-11,TBC
Nottinghamshire County Council,05-07443,EDEN BROWN LTD,People,Recruitment,0,247.38,247.38,18-Aug-11,TBC
Nottinghamshire County Council,05-07444,EDEN BROWN LTD,People,Recruitment,0,258.74,258.74,18-Aug-11,TBC
Nottinghamshire County Council,05-07445,EDEN BROWN LTD,People,Recruitment,0,285.34,285.34,18-Aug-11,TBC
Nottinghamshire County Council,05-07446,EDEN BROWN LTD,People,Recruitment,0,224.73,224.73,18-Aug-11,TBC
Nottinghamshire County Council,05-07447,EDEN BROWN LTD,People,Recruitment,0,710.33,710.33,18-Aug-11,TBC
Nottinghamshire County Council,05-07448,EDEN BROWN LTD,People,Recruitment,0,365.71,365.71,18-Aug-11,TBC
Nottinghamshire County Council,05-07449,EDEN BROWN LTD,People,Recruitment,0,731.42,731.42,18-Aug-11,TBC
Nottinghamshire County Council,05-07450,EDEN BROWN LTD,People,Recruitment,0,198,198,18-Aug-11,TBC
Nottinghamshire County Council,05-07451,EDEN BROWN LTD,People,Recruitment,0,365.71,365.71,18-Aug-11,TBC
Nottinghamshire County Council,05-07452,EDEN BROWN LTD,People,Recruitment,0,481,481,18-Aug-11,TBC
Nottinghamshire County Council,05-07453,EDEN BROWN LTD,People,Recruitment,0,301,301,18-Aug-11,TBC
Nottinghamshire County Council,05-07454,EDEN BROWN LTD,People,Recruitment,0,372.55,372.55,18-Aug-11,TBC
Nottinghamshire County Council,05-07455,EDEN BROWN LTD,People,Recruitment,0,352.87,352.87,18-Aug-11,TBC
Nottinghamshire County Council,05-07456,EDEN BROWN LTD,People,Recruitment,0,273.99,273.99,18-Aug-11,TBC
Nottinghamshire County Council,05-07457,SERVICE BIRMINGHAM LTD,Professional Services,Consultancy,0,"1,190.14","1,190.14",18-Aug-11,TBC
Nottinghamshire County Council,05-07461,EDEN BROWN LTD,People,Recruitment,0,264.56,264.56,18-Aug-11,TBC
Nottinghamshire County Council,05-07463,FRESH OPPORTUNITIES LTD,Soft Facilities Management,Beverages,0,182.4,182.4,18-Aug-11,TBC
Nottinghamshire County Council,05-07465,CAPITA SOCIAL CARE AND HOUSING,Care,Domiciliary Care,0,272.67,272.67,25-Aug-11,TBC
Nottinghamshire County Council,05-07466,CARTER BROWN ASSOCIATES,Professional Services,Legal Services,0,203.79,203.79,18-Aug-11,TBC
Nottinghamshire County Council,05-07467,MEDICARE FIRST,Care,Medical Equipment &  Supplies,0,292.3,292.3,18-Aug-11,TBC
Nottinghamshire County Council,05-07468,MEDICARE FIRST,Care,Medical Equipment &  Supplies,0,292.3,292.3,18-Aug-11,TBC
Nottinghamshire County Council,05-07469,PHS GROUP PLC,Soft Facilities Management,Cleaning Equipment & Janitorial Supplies,0,179.34,179.34,18-Aug-11,TBC
Nottinghamshire County Council,05-07470,HI-SPEC SERVICES,Soft Facilities Management,Cleaning Equipment & Janitorial Supplies,0,142.37,142.37,31-Aug-11,TBC
Nottinghamshire County Council,05-07471,ING CAR LEASE UK LTD,Transport & Travel,Motor Vehicles,0,417.34,417.34,18-Aug-11,TBC
Nottinghamshire County Council,05-07481,FARMHOUSE SPECIALITY FOODS,Soft Facilities Management,Prepared & Preserved Foods,0,-0.01,-0.01,18-Aug-11,TBC
Nottinghamshire County Council,05-07506,SAMPSON SOUVENIRS LTD,Professional Services,"Reproduction, Photographic & Design Services",0,-0.01,-0.01,18-Aug-11,TBC
Nottinghamshire County Council,05-07559,CARDEA,Care,Healthcare Services,0,155.3,155.3,18-Aug-11,TBC
Nottinghamshire County Council,05-07563,BRAKE BROS LTD,Soft Facilities Management,Prepared & Preserved Foods,0,-0.01,-0.01,22-Aug-11,TBC
Nottinghamshire County Council,05-07570,REFORM PLASTICS (DERBY) LTD,Hard Facilities Management ,Building & Construction Supplies,0,90.88,90.88,22-Aug-11,TBC
Nottinghamshire County Council,05-07571,BEECHDALE ASPHALT,External Services (Highways & Culture),Earth & Stone Aggregates ,0,497.6,497.6,22-Aug-11,TBC
Nottinghamshire County Council,05-07572,EDEN BROWN LTD,People,Recruitment,0,284.36,284.36,25-Aug-11,TBC
Nottinghamshire County Council,05-07573,PERSONNEL AND CARE BANK,People,Recruitment,0,113.56,113.56,25-Aug-11,TBC
Nottinghamshire County Council,05-07574,MAKING IT! ENTERPRISES LTD,External Services (Highways & Culture),Sports & Recreational Equipment & Supplies,0,"1,985.20","1,985.20",19-Aug-11,TBC
Nottinghamshire County Council,05-07575,N S L LTD,Transport & Travel,Motor Vehicles,0,"18,544.72","18,544.72",19-Aug-11,TBC
Nottinghamshire County Council,05-07576,CAPITA SOCIAL CARE AND HOUSING,Care,Domiciliary Care,0,271.14,271.14,25-Aug-11,TBC
Nottinghamshire County Council,05-07577,CAPITA SOCIAL CARE AND HOUSING,Care,Domiciliary Care,0,135.42,135.42,25-Aug-11,TBC
Nottinghamshire County Council,05-07578,ACADEMY SOCIAL CARE LTD,Care,Domiciliary Care,0,156.98,156.98,19-Aug-11,TBC
Nottinghamshire County Council,05-07579,ACADEMY SOCIAL CARE LTD,Care,Domiciliary Care,0,156.98,156.98,19-Aug-11,TBC
Nottinghamshire County Council,05-07580,CRANTON ELECTRICAL CO LTD,Hard Facilities Management ,Electrical Systems & Lighting,0,328.3,328.3,19-Aug-11,TBC
Nottinghamshire County Council,05-07581,SPECIALIST COMPUTER CENTRES LTD,ICT,Computer Services,0,353.01,353.01,31-Aug-11,TBC
Nottinghamshire County Council,05-07582,CRANTON ELECTRICAL CO LTD,Hard Facilities Management ,Electrical Systems & Lighting,0,386.79,386.79,19-Aug-11,TBC
Nottinghamshire County Council,05-07583,STRAW AND PEARCE SOLICITORS,Professional Services,Legal Services,0,524.98,524.98,23-Aug-11,TBC
Nottinghamshire County Council,05-07584,STRAW AND PEARCE SOLICITORS,Professional Services,Legal Services,0,265.92,265.92,23-Aug-11,TBC
Nottinghamshire County Council,05-07585,STRAW AND PEARCE SOLICITORS,Professional Services,Legal Services,0,325.62,325.62,23-Aug-11,TBC
Nottinghamshire County Council,05-07586,STRAW AND PEARCE SOLICITORS,Professional Services,Legal Services,0,274.52,274.52,24-Aug-11,TBC
Nottinghamshire County Council,05-07587,STRAW AND PEARCE SOLICITORS,Professional Services,Legal Services,0,451.3,451.3,24-Aug-11,TBC
Nottinghamshire County Council,05-07588,STRAW AND PEARCE SOLICITORS,Professional Services,Legal Services,0,900.36,900.36,24-Aug-11,TBC
Nottinghamshire County Council,05-07589,STRAW AND PEARCE SOLICITORS,Professional Services,Legal Services,0,820.42,820.42,24-Aug-11,TBC
Nottinghamshire County Council,05-07590,KONICA MINOLTA,ICT,"Printing & Publishing, Equipment & Supplies",0,155.24,155.24,19-Aug-11,TBC
Nottinghamshire County Council,05-07591,DODDS AND PARTNERS,Care,Medical Equipment &  Supplies,0,144.1,144.1,30-Aug-11,TBC
Nottinghamshire County Council,05-07592,WATCH-IT SECURITY SERVICES,Soft Facilities Management,Security,0,151,151,19-Aug-11,TBC
Nottinghamshire County Council,05-07593,NEOPOST LTD,Soft Facilities Management,Mail & Couriers,0,244.61,244.61,19-Aug-11,TBC
Nottinghamshire County Council,05-07594,KONICA MINOLTA,ICT,"Printing & Publishing, Equipment & Supplies",0,117.82,117.82,19-Aug-11,TBC
Nottinghamshire County Council,05-07595,KONICA MINOLTA,ICT,"Printing & Publishing, Equipment & Supplies",0,348.52,348.52,19-Aug-11,TBC
Nottinghamshire County Council,05-07597,JILLIAN BELL,Professional Services,Legal Services,0,975,975,22-Aug-11,TBC
Nottinghamshire County Council,05-07598,WEIGHTMANS LLP,Professional Services,Legal Services,0,"2,786.00","2,786.00",19-Aug-11,TBC
Nottinghamshire County Council,05-07599,CARTER BROWN ASSOCIATES,Professional Services,Legal Services,0,322.02,322.02,19-Aug-11,TBC
Nottinghamshire County Council,05-07600,CARTER BROWN ASSOCIATES,Professional Services,Legal Services,0,210.29,210.29,19-Aug-11,TBC
Nottinghamshire County Council,05-07601,KEY PERSONNEL (MIDLANDS) LTD,People,Recruitment,0,223.45,223.45,19-Aug-11,TBC
Nottinghamshire County Council,05-07602,CAPITA SOCIAL CARE AND HOUSING,Care,Domiciliary Care,0,101.22,101.22,25-Aug-11,TBC
Nottinghamshire County Council,05-07603,SPECIALIST COMPUTER CENTRES LTD,ICT,Computer Services,0,"1,503.84","1,503.84",30-Aug-11,TBC
Nottinghamshire County Council,05-07605,THE INDEPENDENT CHOICE,Professional Services,Writing & Translations,0,110.76,110.76,19-Aug-11,TBC
Nottinghamshire County Council,05-07606,CRANTON ELECTRICAL CO LTD,Hard Facilities Management ,Electrical Systems & Lighting,0,449.01,449.01,19-Aug-11,TBC
Nottinghamshire County Council,05-07607,CRANTON ELECTRICAL CO LTD,Hard Facilities Management ,Electrical Systems & Lighting,0,279.08,279.08,19-Aug-11,TBC
Nottinghamshire County Council,05-07608,CRANTON ELECTRICAL CO LTD,Hard Facilities Management ,Electrical Systems & Lighting,0,92.39,92.39,19-Aug-11,TBC
Nottinghamshire County Council,05-07609,CAPITA SOCIAL CARE AND HOUSING,Care,Domiciliary Care,0,102.27,102.27,19-Aug-11,TBC
Nottinghamshire County Council,05-07610,CAPITA SOCIAL CARE AND HOUSING,Care,Domiciliary Care,0,88.08,88.08,19-Aug-11,TBC
Nottinghamshire County Council,05-07611,CAPITA SOCIAL CARE AND HOUSING,Care,Domiciliary Care,0,108.63,108.63,19-Aug-11,TBC
Nottinghamshire County Council,05-07612,DODDS AND PARTNERS,Care,Medical Equipment &  Supplies,0,92.08,92.08,30-Aug-11,TBC
Nottinghamshire County Council,05-07613,DODDS AND PARTNERS,Care,Medical Equipment &  Supplies,0,90.04,90.04,30-Aug-11,TBC
Nottinghamshire County Council,05-07548,B G MOSES,TBC,TBC,925.39,185.08,"1,110.47",25-Aug-11,COMMUNITIES
Nottinghamshire County Council,05-07615,STRAW AND PEARCE SOLICITORS,Professional Services,Legal Services,0,222,222,30-Aug-11,TBC
Nottinghamshire County Council,05-07616,STRAW AND PEARCE SOLICITORS,Professional Services,Legal Services,0,246,246,30-Aug-11,TBC
Nottinghamshire County Council,05-07617,SPECIALIST COMPUTER CENTRES LTD,ICT,Computer Services,0,704.4,704.4,31-Aug-11,TBC
Nottinghamshire County Council,05-07618,SPECIALIST COMPUTER CENTRES LTD,ICT,Computer Services,0,960,960,26-Aug-11,TBC
Nottinghamshire County Council,05-07619,WATCH-IT SECURITY SERVICES,Soft Facilities Management,Security,0,159,159,19-Aug-11,TBC
Nottinghamshire County Council,05-07620,CAPITA SOCIAL CARE AND HOUSING,Care,Domiciliary Care,0,102.27,102.27,25-Aug-11,TBC
Nottinghamshire County Council,05-07621,CAPITA SOCIAL CARE AND HOUSING,Care,Domiciliary Care,0,88.08,88.08,25-Aug-11,TBC
Nottinghamshire County Council,05-07625,CAPITA SOCIAL CARE AND HOUSING,Care,Domiciliary Care,0,90.02,90.02,19-Aug-11,TBC
Nottinghamshire County Council,05-07627,DODDS AND PARTNERS,Care,Medical Equipment &  Supplies,0,100.87,100.87,30-Aug-11,TBC
Nottinghamshire County Council,05-07628,DODDS AND PARTNERS,Care,Medical Equipment &  Supplies,0,234.81,234.81,30-Aug-11,TBC
Nottinghamshire County Council,05-07629,PHS GROUP PLC,Soft Facilities Management,Cleaning Equipment & Janitorial Supplies,0,103.82,103.82,19-Aug-11,TBC
Nottinghamshire County Council,05-07630,CAPITA SOCIAL CARE AND HOUSING,Care,Domiciliary Care,0,100.26,100.26,30-Aug-11,TBC
Nottinghamshire County Council,05-07631,STRAW AND PEARCE SOLICITORS,Professional Services,Legal Services,0,325.66,325.66,30-Aug-11,TBC
Nottinghamshire County Council,05-07633,CARDEA,Care,Healthcare Services,0,92.69,92.69,19-Aug-11,TBC
Nottinghamshire County Council,05-07634,CAPITA SOCIAL CARE AND HOUSING,Care,Domiciliary Care,0,119.05,119.05,25-Aug-11,TBC
Nottinghamshire County Council,05-07636,CAPITA SOCIAL CARE AND HOUSING,Care,Domiciliary Care,0,87.18,87.18,25-Aug-11,TBC
Nottinghamshire County Council,05-07637,COMENSURA LTD,Professional Services,Consultancy,0,"8,093.84","8,093.84",24-Aug-11,TBC
Nottinghamshire County Council,05-07638,BRAKE BROS LTD,Soft Facilities Management,Prepared & Preserved Foods,0,34.25,34.25,19-Aug-11,TBC
Nottinghamshire County Council,05-07867,PEDAL EXPRESS LTD,Soft Facilities Management,Mail & Couriers,0,153.9,153.9,22-Aug-11,TBC
Nottinghamshire County Council,05-07868,KB RECRUITMENT LTD,People,Recruitment,0,461.6,461.6,22-Aug-11,TBC
Nottinghamshire County Council,05-07869,PICKFORDS LTD,Hard Facilities Management ,Material Handling & Storage,0,97.49,97.49,31-Aug-11,TBC
Nottinghamshire County Council,05-07870,KIRKNALLS LTD,Soft Facilities Management,Mail & Couriers,0,136,136,22-Aug-11,TBC
Nottinghamshire County Council,05-07871,EDEN BROWN LTD,People,Recruitment,0,299.78,299.78,22-Aug-11,TBC
Nottinghamshire County Council,05-07872,EDEN BROWN LTD,People,Recruitment,0,310.76,310.76,25-Aug-11,TBC
Nottinghamshire County Council,05-07873,CARITAS RECRUITMENT,People,Recruitment,0,812.98,812.98,22-Aug-11,TBC
Nottinghamshire County Council,05-07874,CARITAS RECRUITMENT,People,Recruitment,0,591.26,591.26,22-Aug-11,TBC
Nottinghamshire County Council,05-07875,MAKING IT! ENTERPRISES LTD,External Services (Highways & Culture),Sports & Recreational Equipment & Supplies,0,312.26,312.26,22-Aug-11,TBC
Nottinghamshire County Council,05-07876,DINES ENTERPRISES,Professional Services,Professional Engineering Services,0,227.2,227.2,22-Aug-11,TBC
Nottinghamshire County Council,05-07877,MAKING IT! ENTERPRISES LTD,External Services (Highways & Culture),Sports & Recreational Equipment & Supplies,0,312.26,312.26,22-Aug-11,TBC
Nottinghamshire County Council,05-07878,KB RECRUITMENT LTD,People,Recruitment,0,351.94,351.94,22-Aug-11,TBC
Nottinghamshire County Council,05-07896,CUNNINGHAMS CASH REGISTERS LTD,Professional Services,Financial & Insurance Services,0,296.7,296.7,22-Aug-11,TBC
Nottinghamshire County Council,05-07897,NOTTINGHAM SECURITY LTD,Soft Facilities Management,Security,0,123.55,123.55,22-Aug-11,TBC
Nottinghamshire County Council,05-07922,SCOTT WILSON LTD,Professional Services,Consultancy,0,0.07,0.07,19-Aug-11,TBC
Nottinghamshire County Council,05-07969,MAKING IT! ENTERPRISES LTD,External Services (Highways & Culture),Sports & Recreational Equipment & Supplies,0,478.98,478.98,23-Aug-11,TBC
Nottinghamshire County Council,05-07971,VENN GROUP LTD,People,Recruitment,0,269.26,269.26,23-Aug-11,TBC
Nottinghamshire County Council,05-07975,TRUVELO (UK) LTD,External Services (Highways & Culture),Highways & Works,0,97,97,23-Aug-11,TBC
Nottinghamshire County Council,05-07976,CAPITA SOCIAL CARE AND HOUSING,Care,Domiciliary Care,0,113.52,113.52,25-Aug-11,TBC
Nottinghamshire County Council,05-07977,OUTCOMES UK,People,Recruitment,0,"1,125.00","1,125.00",23-Aug-11,TBC
Nottinghamshire County Council,05-07978,OUTCOMES UK,People,Recruitment,0,"1,000.00","1,000.00",23-Aug-11,TBC
Nottinghamshire County Council,05-07979,STAGECOACH EAST MIDLANDS,Transport & Travel,Bus,0,195.34,195.34,31-Aug-11,TBC
Nottinghamshire County Council,05-07980,CAPITA SOCIAL CARE AND HOUSING,Care,Domiciliary Care,0,118.47,118.47,25-Aug-11,TBC
Nottinghamshire County Council,05-07981,CAPITA SOCIAL CARE AND HOUSING,Care,Domiciliary Care,0,113.52,113.52,25-Aug-11,TBC
Nottinghamshire County Council,05-07982,CAPITA SOCIAL CARE AND HOUSING,Care,Domiciliary Care,0,113.52,113.52,25-Aug-11,TBC
Nottinghamshire County Council,05-07983,CAPITA SOCIAL CARE AND HOUSING,Care,Domiciliary Care,0,113.52,113.52,25-Aug-11,TBC
Nottinghamshire County Council,05-07984,CAPITA SOCIAL CARE AND HOUSING,Care,Domiciliary Care,0,122.16,122.16,25-Aug-11,TBC
Nottinghamshire County Council,05-07985,CAPITA SOCIAL CARE AND HOUSING,Care,Domiciliary Care,0,134.09,134.09,25-Aug-11,TBC
Nottinghamshire County Council,05-07986,CAPITA SOCIAL CARE AND HOUSING,Care,Domiciliary Care,0,134.09,134.09,25-Aug-11,TBC
Nottinghamshire County Council,05-07987,CAPITA SOCIAL CARE AND HOUSING,Care,Domiciliary Care,0,105.85,105.85,25-Aug-11,TBC
Nottinghamshire County Council,05-07988,CAPITA SOCIAL CARE AND HOUSING,Care,Domiciliary Care,0,119.24,119.24,25-Aug-11,TBC
Nottinghamshire County Council,05-07989,CAPITA SOCIAL CARE AND HOUSING,Care,Domiciliary Care,0,117.57,117.57,25-Aug-11,TBC
Nottinghamshire County Council,05-07990,CAPITA SOCIAL CARE AND HOUSING,Care,Domiciliary Care,0,120.18,120.18,25-Aug-11,TBC
Nottinghamshire County Council,05-07991,CAPITA SOCIAL CARE AND HOUSING,Care,Domiciliary Care,0,113.52,113.52,25-Aug-11,TBC
Nottinghamshire County Council,05-07992,CAPITA SOCIAL CARE AND HOUSING,Care,Domiciliary Care,0,118.02,118.02,25-Aug-11,TBC
Nottinghamshire County Council,05-07993,OUTCOMES UK,People,Recruitment,0,"1,000.00","1,000.00",23-Aug-11,TBC
Nottinghamshire County Council,05-07994,DRAEFERN LTD T/A RIGHT4STAFF,People,Recruitment,0,85.14,85.14,23-Aug-11,TBC
Nottinghamshire County Council,05-07995,DRAEFERN LTD T/A RIGHT4STAFF,People,Recruitment,0,86.52,86.52,23-Aug-11,TBC
Nottinghamshire County Council,05-07997,VIRTUAL COLLEGE LTD,Education And Training,Pre School/ Nursery/ School,0,"1,188.00","1,188.00",23-Aug-11,TBC
Nottinghamshire County Council,05-07998,ADVANTAGE HEALTHCARE NURSING ANDCARE LTD,Care,Healthcare Services,0,399.69,399.69,23-Aug-11,TBC
Nottinghamshire County Council,05-07999,CAPITA SOCIAL CARE AND HOUSING,Care,Domiciliary Care,0,115.54,115.54,25-Aug-11,TBC
Nottinghamshire County Council,05-08002,TMH (WEST HALLAM) LTD,People,Agency Staff - Manual,0,377.01,377.01,23-Aug-11,TBC
Nottinghamshire County Council,05-08004,CAPITA SOCIAL CARE AND HOUSING,Care,Domiciliary Care,0,113.52,113.52,23-Aug-11,TBC
Nottinghamshire County Council,05-08005,PULSE,External Services (Highways & Culture),Sports & Recreational Equipment & Supplies,0,92.34,92.34,23-Aug-11,TBC
Nottinghamshire County Council,05-08006,ADVANTAGE HEALTHCARE NURSING ANDCARE LTD,Care,Healthcare Services,0,336.3,336.3,23-Aug-11,TBC
Nottinghamshire County Council,05-08007,FREDK LAMB LTD,Hard Facilities Management ,Building Construction Services,0,89.61,89.61,23-Aug-11,TBC
Nottinghamshire County Council,05-08008,EDEN BROWN LTD,People,Recruitment,0,427.48,427.48,23-Aug-11,TBC
Nottinghamshire County Council,05-08011,BARKER AND SHELDON,Hard Facilities Management ,Electrical Systems & Lighting,0,-0.01,-0.01,26-Aug-11,TBC
Nottinghamshire County Council,05-08021,BRIAN CLEGG (EDUCATIONAL PRODUCTS),External Services (Highways & Culture),Education Services,0,0.01,0.01,24-Aug-11,TBC
Nottinghamshire County Council,05-08022,BRIAN CLEGG (EDUCATIONAL PRODUCTS),External Services (Highways & Culture),Education Services,0,-0.02,-0.02,24-Aug-11,TBC
Nottinghamshire County Council,05-08033,BRIAN CLEGG (EDUCATIONAL PRODUCTS),External Services (Highways & Culture),Education Services,0,-0.01,-0.01,24-Aug-11,TBC
Nottinghamshire County Council,05-08045,BEESWIFT,Soft Facilities Management,Clothing,0,-179.86,-179.86,23-Aug-11,TBC
Nottinghamshire County Council,05-08046,BEESWIFT,Soft Facilities Management,Clothing,0,-182.65,-182.65,23-Aug-11,TBC
Nottinghamshire County Council,05-08450,VINCENT AND GORBING,Professional Services,Professional Engineering Services,0,-201,-201,25-Aug-11,TBC
Nottinghamshire County Council,05-08509,ARNOLD DAIRIES,Soft Facilities Management,Dairy Products & Eggs,0,-559.64,-559.64,25-Aug-11,TBC
Nottinghamshire County Council,05-08511,INPLACE PERSONNEL SERVICES LTD,People,Recruitment,0,0.01,0.01,30-Aug-11,TBC
Nottinghamshire County Council,05-08512,RENNICKS (UK) LTD,External Services (Highways & Culture),Highways & Works,0,0.01,0.01,30-Aug-11,TBC
Nottinghamshire County Council,05-08610,HULLEYS,Soft Facilities Management,Frozen Goods,0,-0.01,-0.01,25-Aug-11,TBC
Nottinghamshire County Council,05-08613,HULLEYS,Soft Facilities Management,Frozen Goods,0,-0.01,-0.01,25-Aug-11,TBC
Nottinghamshire County Council,05-08615,ROBERT WOODHEAD LTD,Hard Facilities Management ,Building Construction Services,0,333.73,333.73,25-Aug-11,TBC
Nottinghamshire County Council,05-08616,THE NOTTINGHAM GATEWAY HOTEL,Transport & Travel,Hotels & Venues,0,"1,330.84","1,330.84",25-Aug-11,TBC
Nottinghamshire County Council,05-08625,REED EMPLOYMENT PLC,People,Recruitment,0,282.8,282.8,25-Aug-11,TBC
Nottinghamshire County Council,05-08626,REED EMPLOYMENT PLC,People,Recruitment,0,258.06,258.06,25-Aug-11,TBC
Nottinghamshire County Council,05-08627,REED EMPLOYMENT PLC,People,Recruitment,0,254.52,254.52,25-Aug-11,TBC
Nottinghamshire County Council,05-08628,REED EMPLOYMENT PLC,People,Recruitment,0,282.8,282.8,25-Aug-11,TBC
Nottinghamshire County Council,05-08658,D BERRINGTON BUILDING SERVICES,Hard Facilities Management ,Building Construction Services,0,-210,-210,25-Aug-11,TBC
Nottinghamshire County Council,05-08660,D BERRINGTON BUILDING SERVICES,Hard Facilities Management ,Building Construction Services,0,-144,-144,25-Aug-11,TBC
Nottinghamshire County Council,05-08675,HULLEYS,Soft Facilities Management,Frozen Goods,0,-0.01,-0.01,26-Aug-11,TBC
Nottinghamshire County Council,05-08760,EXPRESS ASPHALT LTD,External Services (Highways & Culture),Highways & Works,0,-0.01,-0.01,26-Aug-11,TBC
Nottinghamshire County Council,05-08764,SUMMIT CHAIRS LTD,Soft Facilities Management,Furniture & Furnishings,0,-0.01,-0.01,30-Aug-11,TBC
Nottinghamshire County Council,05-08767,JAMES LATHAM (MIDLAND),Hard Facilities Management ,Carpentry Services,0,0.01,0.01,30-Aug-11,TBC
Nottinghamshire County Council,05-08788,C P BERRY GROUNDWORKS LTD,External Services (Highways & Culture),Highways & Works,0,0.01,0.01,30-Aug-11,TBC
Nottinghamshire County Council,05-08812,BRAKE BROS LTD,Soft Facilities Management,Prepared & Preserved Foods,0,-0.03,-0.03,26-Aug-11,TBC
Nottinghamshire County Council,05-09009,ANCESTORS OF DOVER LTD,External Services (Highways & Culture),Education Services,0,0.01,0.01,30-Aug-11,TBC
Nottinghamshire County Council,05-09079,FARMHOUSE SPECIALITY FOODS,Soft Facilities Management,Prepared & Preserved Foods,0,0.01,0.01,30-Aug-11,TBC
Nottinghamshire County Council,05-09080,HALSALL INTERNATIONAL LTD,External Services (Highways & Culture),Toys & Games,0,-0.01,-0.01,30-Aug-11,TBC
Nottinghamshire County Council,05-09092,CARDEA,Care,Healthcare Services,0,90.74,90.74,31-Aug-11,TBC
Nottinghamshire County Council,05-09093,CAPITA SOCIAL CARE AND HOUSING,Care,Domiciliary Care,0,-120.24,-120.24,31-Aug-11,TBC
Nottinghamshire County Council,05-09094,W BAKER,Professional Services,Legal Services,0,330,330,31-Aug-11,TBC
Nottinghamshire County Council,05-09095,OXFORD HUMAN SCIENCES LTD,External Services (Highways & Culture),Education Services,0,190.54,190.54,31-Aug-11,TBC
Nottinghamshire County Council,05-09096,OXFORD HUMAN SCIENCES LTD,External Services (Highways & Culture),Education Services,0,-101.52,-101.52,31-Aug-11,TBC
Nottinghamshire County Council,05-09097,TURNER AND TOWNSEND,Professional Services,Financial & Insurance Services,0,862.92,862.92,31-Aug-11,TBC
Nottinghamshire County Council,05-09098,SPRING TECHNOLOGY STAFFING SERVICES,People,Recruitment,0,368.55,368.55,31-Aug-11,TBC
Nottinghamshire County Council,05-09099,SPRING TECHNOLOGY STAFFING SERVICES,People,Recruitment,0,210.6,210.6,31-Aug-11,TBC
Nottinghamshire County Council,05-09100,SPRING TECHNOLOGY STAFFING SERVICES,People,Recruitment,0,526.5,526.5,31-Aug-11,TBC
Nottinghamshire County Council,05-09101,SPRING TECHNOLOGY STAFFING SERVICES,People,Recruitment,0,368.55,368.55,31-Aug-11,TBC
Nottinghamshire County Council,05-09102,EVAC CHAIR INTERNATIONAL LTD,Soft Facilities Management,Furniture & Furnishings,0,326,326,31-Aug-11,TBC
Nottinghamshire County Council,05-09108,WILLIAM FREER LTD,Soft Facilities Management,Vending Machines & Food Equipment,0,318.5,318.5,31-Aug-11,TBC
Nottinghamshire County Council,05-09109,WILLIAM FREER LTD,Soft Facilities Management,Vending Machines & Food Equipment,0,476.19,476.19,31-Aug-11,TBC
Nottinghamshire County Council,05-09110,WILLIAM FREER LTD,Soft Facilities Management,Vending Machines & Food Equipment,0,489.95,489.95,31-Aug-11,TBC
Nottinghamshire County Council,05-09111,KCM (CATERING EQUIPMENT) LTD,Soft Facilities Management,Vending Machines & Food Equipment,0,"1,283.80","1,283.80",31-Aug-11,TBC
Nottinghamshire County Council,05-09112,KCM (CATERING EQUIPMENT) LTD,Soft Facilities Management,Vending Machines & Food Equipment,0,"1,404.60","1,404.60",31-Aug-11,TBC
Nottinghamshire County Council,05-09113,ART CLEANING (MIDLANDS) LTD,Soft Facilities Management,Industrial Cleaning Services,0,244,244,31-Aug-11,TBC
Nottinghamshire County Council,05-09114,NUMATIC INTERNATIONAL LTD,Soft Facilities Management,Cleaning Equipment & Janitorial Supplies,0,228.62,228.62,31-Aug-11,TBC
Nottinghamshire County Council,05-09115,NOVA SPORT,External Services (Highways & Culture),Sports & Recreational Equipment & Supplies,0,633.2,633.2,31-Aug-11,TBC
Nottinghamshire County Council,05-09116,NOVA SPORT,External Services (Highways & Culture),Sports & Recreational Equipment & Supplies,0,102,102,31-Aug-11,TBC
Nottinghamshire County Council,05-09117,NUMATIC INTERNATIONAL LTD,Soft Facilities Management,Cleaning Equipment & Janitorial Supplies,0,260.74,260.74,31-Aug-11,TBC
Nottinghamshire County Council,05-09118,NUMATIC INTERNATIONAL LTD,Soft Facilities Management,Cleaning Equipment & Janitorial Supplies,0,348.4,348.4,31-Aug-11,TBC
Nottinghamshire County Council,05-09119,D J AND M BOWER (TARMAC ROADSURFACING),External Services (Highways & Culture),Highways & Works,0,598.8,598.8,31-Aug-11,TBC
Nottinghamshire County Council,05-09120,D J AND M BOWER (TARMAC ROADSURFACING),External Services (Highways & Culture),Highways & Works,0,136.85,136.85,31-Aug-11,TBC
Nottinghamshire County Council,05-09121,WILLIAM FREER LTD,Soft Facilities Management,Vending Machines & Food Equipment,0,394.16,394.16,31-Aug-11,TBC
Nottinghamshire County Council,05-09122,WILLIAM FREER LTD,Soft Facilities Management,Vending Machines & Food Equipment,0,142.64,142.64,31-Aug-11,TBC
Nottinghamshire County Council,05-09123,HATHERLEY COMMERCIAL SERVICES,Soft Facilities Management,Prepared & Preserved Foods,0,"1,093.20","1,093.20",31-Aug-11,TBC
Nottinghamshire County Council,05-09126,KONICA MINOLTA,ICT,"Printing & Publishing, Equipment & Supplies",0,274.15,274.15,31-Aug-11,TBC
Nottinghamshire County Council,05-09127,KONICA MINOLTA,ICT,"Printing & Publishing, Equipment & Supplies",0,592.24,592.24,31-Aug-11,TBC
Nottinghamshire County Council,05-09128,PEAR TREE PLANT,External Services (Highways & Culture),Plant & Animal Supplies,0,595,595,31-Aug-11,TBC
Nottinghamshire County Council,05-09129,PEAR TREE PLANT,External Services (Highways & Culture),Plant & Animal Supplies,0,903,903,31-Aug-11,TBC
Nottinghamshire County Council,05-09130,D J AND M BOWER (TARMAC ROADSURFACING),External Services (Highways & Culture),Highways & Works,0,286.82,286.82,31-Aug-11,TBC
Nottinghamshire County Council,05-01394,BROWNE JACOBSON LLP,Professional Services,Legal Services,980.84,980.84,"1,961.68",04-Aug-11,TBC
Nottinghamshire County Council,05-02311,SPEEDO INTERNATIONAL LTD,Soft Facilities Management,Clothing,475.2,475.2,950.4,17-Aug-11,TBC
Nottinghamshire County Council,05-08093,WEIGHTMANS LLP,Professional Services,Legal Services,549.93,549.93,"1,099.86",24-Aug-11,TBC
Nottinghamshire County Council,05-01128,DRAEFERN LTD T/A RIGHT4STAFF,People,Recruitment,380.1,0,380.1,01-Aug-11,COMMUNITIES
Nottinghamshire County Council,05-01128,DRAEFERN LTD T/A RIGHT4STAFF,People,Recruitment,380.1,0,380.1,01-Aug-11,COMMUNITIES
Nottinghamshire County Council,05-01129,DRAEFERN LTD T/A RIGHT4STAFF,People,Recruitment,346.32,0,346.32,01-Aug-11,COMMUNITIES
Nottinghamshire County Council,05-01129,DRAEFERN LTD T/A RIGHT4STAFF,People,Recruitment,346.32,0,346.32,01-Aug-11,COMMUNITIES
Nottinghamshire County Council,05-01134,DRAEFERN LTD T/A RIGHT4STAFF,People,Recruitment,545.9,0,545.9,01-Aug-11,COMMUNITIES
Nottinghamshire County Council,05-01135,DRAEFERN LTD T/A RIGHT4STAFF,People,Recruitment,432.6,0,432.6,01-Aug-11,COMMUNITIES
Nottinghamshire County Council,05-01144,DRAEFERN LTD T/A RIGHT4STAFF,People,Recruitment,304.2,0,304.2,01-Aug-11,COMMUNITIES
Nottinghamshire County Council,05-01144,DRAEFERN LTD T/A RIGHT4STAFF,People,Recruitment,255.06,0,255.06,01-Aug-11,COMMUNITIES
Nottinghamshire County Council,05-02204,DRAEFERN LTD T/A RIGHT4STAFF,People,Recruitment,484.1,0,484.1,05-Aug-11,COMMUNITIES
Nottinghamshire County Council,05-02237,MOTOR BODY REPAIRS,Transport & Travel,Fleet Maintenance Services,250,50,300,04-Aug-11,COMMUNITIES
Nottinghamshire County Council,05-07425,DRAEFERN LTD T/A RIGHT4STAFF,People,Recruitment,432.6,0,432.6,18-Aug-11,COMMUNITIES
Nottinghamshire County Council,05-07994,DRAEFERN LTD T/A RIGHT4STAFF,People,Recruitment,239.94,0,239.94,23-Aug-11,COMMUNITIES
Nottinghamshire County Council,05-07994,DRAEFERN LTD T/A RIGHT4STAFF,People,Recruitment,185.76,0,185.76,23-Aug-11,COMMUNITIES
Nottinghamshire County Council,05-07995,DRAEFERN LTD T/A RIGHT4STAFF,People,Recruitment,432.6,0,432.6,23-Aug-11,COMMUNITIES
Nottinghamshire County Council,05-08376,HIRE STATION MIDLANDS,External Services (Highways & Culture),Construction Plant & Equipment,300,0,300,24-Aug-11,COMMUNITIES
Nottinghamshire County Council,05-08376,HIRE STATION MIDLANDS,External Services (Highways & Culture),Construction Plant & Equipment,100,0,100,24-Aug-11,COMMUNITIES
Nottinghamshire County Council,05-08376,HIRE STATION MIDLANDS,External Services (Highways & Culture),Construction Plant & Equipment,20,0,20,24-Aug-11,COMMUNITIES
Nottinghamshire County Council,05-09113,ART CLEANING (MIDLANDS) LTD,Soft Facilities Management,Industrial Cleaning Services,25,0,25,31-Aug-11,COMMUNITIES
Nottinghamshire County Council,05-09113,ART CLEANING (MIDLANDS) LTD,Soft Facilities Management,Industrial Cleaning Services,30,0,30,31-Aug-11,COMMUNITIES
Nottinghamshire County Council,05-09113,ART CLEANING (MIDLANDS) LTD,Soft Facilities Management,Industrial Cleaning Services,30,0,30,31-Aug-11,COMMUNITIES
Nottinghamshire County Council,05-09113,ART CLEANING (MIDLANDS) LTD,Soft Facilities Management,Industrial Cleaning Services,20,0,20,31-Aug-11,COMMUNITIES
Nottinghamshire County Council,05-09113,ART CLEANING (MIDLANDS) LTD,Soft Facilities Management,Industrial Cleaning Services,35,0,35,31-Aug-11,COMMUNITIES
Nottinghamshire County Council,05-09113,ART CLEANING (MIDLANDS) LTD,Soft Facilities Management,Industrial Cleaning Services,190,0,190,31-Aug-11,COMMUNITIES
Nottinghamshire County Council,05-09113,ART CLEANING (MIDLANDS) LTD,Soft Facilities Management,Industrial Cleaning Services,45,0,45,31-Aug-11,COMMUNITIES
Nottinghamshire County Council,05-09113,ART CLEANING (MIDLANDS) LTD,Soft Facilities Management,Industrial Cleaning Services,25,0,25,31-Aug-11,COMMUNITIES
Nottinghamshire County Council,05-09113,ART CLEANING (MIDLANDS) LTD,Soft Facilities Management,Industrial Cleaning Services,20,0,20,31-Aug-11,COMMUNITIES
Nottinghamshire County Council,05-09113,ART CLEANING (MIDLANDS) LTD,Soft Facilities Management,Industrial Cleaning Services,25,0,25,31-Aug-11,COMMUNITIES
Nottinghamshire County Council,05-09113,ART CLEANING (MIDLANDS) LTD,Soft Facilities Management,Industrial Cleaning Services,25,0,25,31-Aug-11,COMMUNITIES
Nottinghamshire County Council,05-09113,ART CLEANING (MIDLANDS) LTD,Soft Facilities Management,Industrial Cleaning Services,150,0,150,31-Aug-11,COMMUNITIES
Nottinghamshire County Council,05-09113,ART CLEANING (MIDLANDS) LTD,Soft Facilities Management,Industrial Cleaning Services,25,0,25,31-Aug-11,COMMUNITIES
Nottinghamshire County Council,05-09113,ART CLEANING (MIDLANDS) LTD,Soft Facilities Management,Industrial Cleaning Services,190,0,190,31-Aug-11,COMMUNITIES
Nottinghamshire County Council,05-09113,ART CLEANING (MIDLANDS) LTD,Soft Facilities Management,Industrial Cleaning Services,25,0,25,31-Aug-11,COMMUNITIES
Nottinghamshire County Council,05-09113,ART CLEANING (MIDLANDS) LTD,Soft Facilities Management,Industrial Cleaning Services,55,0,55,31-Aug-11,COMMUNITIES
Nottinghamshire County Council,05-09113,ART CLEANING (MIDLANDS) LTD,Soft Facilities Management,Industrial Cleaning Services,25,0,25,31-Aug-11,COMMUNITIES
Nottinghamshire County Council,05-09113,ART CLEANING (MIDLANDS) LTD,Soft Facilities Management,Industrial Cleaning Services,25,0,25,31-Aug-11,COMMUNITIES
Nottinghamshire County Council,05-09113,ART CLEANING (MIDLANDS) LTD,Soft Facilities Management,Industrial Cleaning Services,25,0,25,31-Aug-11,COMMUNITIES
Nottinghamshire County Council,05-09113,ART CLEANING (MIDLANDS) LTD,Soft Facilities Management,Industrial Cleaning Services,20,0,20,31-Aug-11,COMMUNITIES
Nottinghamshire County Council,05-09113,ART CLEANING (MIDLANDS) LTD,Soft Facilities Management,Industrial Cleaning Services,25,0,25,31-Aug-11,COMMUNITIES
Nottinghamshire County Council,05-09113,ART CLEANING (MIDLANDS) LTD,Soft Facilities Management,Industrial Cleaning Services,20,0,20,31-Aug-11,COMMUNITIES
Nottinghamshire County Council,05-09113,ART CLEANING (MIDLANDS) LTD,Soft Facilities Management,Industrial Cleaning Services,30,0,30,31-Aug-11,COMMUNITIES
Nottinghamshire County Council,05-09113,ART CLEANING (MIDLANDS) LTD,Soft Facilities Management,Industrial Cleaning Services,25,0,25,31-Aug-11,COMMUNITIES
Nottinghamshire County Council,05-09113,ART CLEANING (MIDLANDS) LTD,Soft Facilities Management,Industrial Cleaning Services,20,0,20,31-Aug-11,COMMUNITIES
Nottinghamshire County Council,05-09113,ART CLEANING (MIDLANDS) LTD,Soft Facilities Management,Industrial Cleaning Services,20,0,20,31-Aug-11,COMMUNITIES
Nottinghamshire County Council,05-09113,ART CLEANING (MIDLANDS) LTD,Soft Facilities Management,Industrial Cleaning Services,35,0,35,31-Aug-11,COMMUNITIES
Nottinghamshire County Council,05-09113,ART CLEANING (MIDLANDS) LTD,Soft Facilities Management,Industrial Cleaning Services,35,0,35,31-Aug-11,COMMUNITIES
Nottinghamshire County Council,05-09124,ROYAL MAIL GROUP PLC,Soft Facilities Management,Mail & Couriers,"4,000.00",0,"4,000.00",31-Aug-11,COMMUNITIES
Nottinghamshire County Council,05-00025,MAG FLOORING,Hard Facilities Management ,Flooring Services,700,0,700,05-Aug-11,COMMUNITIES
Nottinghamshire County Council,05-02708,SL CLOTHING LTD,Soft Facilities Management,Clothing,50.5,0,50.5,23-Aug-11,COMMUNITIES
Nottinghamshire County Council,05-02708,SL CLOTHING LTD,Soft Facilities Management,Clothing,101,0,101,23-Aug-11,COMMUNITIES
Nottinghamshire County Council,05-02708,SL CLOTHING LTD,Soft Facilities Management,Clothing,101,0,101,23-Aug-11,COMMUNITIES
Nottinghamshire County Council,05-02708,SL CLOTHING LTD,Soft Facilities Management,Clothing,101,0,101,23-Aug-11,COMMUNITIES
Nottinghamshire County Council,05-02708,SL CLOTHING LTD,Soft Facilities Management,Clothing,101,0,101,23-Aug-11,COMMUNITIES
Nottinghamshire County Council,05-09114,NUMATIC INTERNATIONAL LTD,Soft Facilities Management,Cleaning Equipment & Janitorial Supplies,"1,143.10",0,"1,143.10",31-Aug-11,COMMUNITIES
Nottinghamshire County Council,05-09118,NUMATIC INTERNATIONAL LTD,Soft Facilities Management,Cleaning Equipment & Janitorial Supplies,644.52,0,644.52,31-Aug-11,COMMUNITIES
Nottinghamshire County Council,05-09118,NUMATIC INTERNATIONAL LTD,Soft Facilities Management,Cleaning Equipment & Janitorial Supplies,"1,097.48",0,"1,097.48",31-Aug-11,COMMUNITIES
Nottinghamshire County Council,05-08943,ART CLEANING (MIDLANDS) LTD,Soft Facilities Management,Industrial Cleaning Services,"1,324.00",0,"1,324.00",30-Aug-11,COMMUNITIES
Nottinghamshire County Council,05-08944,ART CLEANING (MIDLANDS) LTD,Soft Facilities Management,Industrial Cleaning Services,595.79,0,595.79,30-Aug-11,COMMUNITIES
Nottinghamshire County Council,05-08942,ART CLEANING (MIDLANDS) LTD,Soft Facilities Management,Industrial Cleaning Services,860.17,0,860.17,30-Aug-11,COMMUNITIES
Nottinghamshire County Council,05-08946,ART CLEANING (MIDLANDS) LTD,Soft Facilities Management,Industrial Cleaning Services,750.26,0,750.26,30-Aug-11,COMMUNITIES
Nottinghamshire County Council,05-08948,ART CLEANING (MIDLANDS) LTD,Soft Facilities Management,Industrial Cleaning Services,595.79,0,595.79,30-Aug-11,COMMUNITIES
Nottinghamshire County Council,05-01926,ART CLEANING (MIDLANDS) LTD,Soft Facilities Management,Industrial Cleaning Services,750.35,0,750.35,04-Aug-11,COMMUNITIES
Nottinghamshire County Council,05-03004,PHS GROUP PLC,Soft Facilities Management,Cleaning Equipment & Janitorial Supplies,86.06,17.21,103.27,11-Aug-11,COMMUNITIES
Nottinghamshire County Council,05-03004,PHS GROUP PLC,Soft Facilities Management,Cleaning Equipment & Janitorial Supplies,430.29,86.06,516.35,11-Aug-11,COMMUNITIES
Nottinghamshire County Council,05-08947,ART CLEANING (MIDLANDS) LTD,Soft Facilities Management,Industrial Cleaning Services,750.26,0,750.26,30-Aug-11,COMMUNITIES
Nottinghamshire County Council,05-01136,PREMIERE POLISH COMPANY LTD,Soft Facilities Management,Cleaning Equipment & Janitorial Supplies,786,0,786,01-Aug-11,COMMUNITIES
Nottinghamshire County Council,05-01136,PREMIERE POLISH COMPANY LTD,Soft Facilities Management,Cleaning Equipment & Janitorial Supplies,168.6,0,168.6,01-Aug-11,COMMUNITIES
Nottinghamshire County Council,05-09117,NUMATIC INTERNATIONAL LTD,Soft Facilities Management,Cleaning Equipment & Janitorial Supplies,"1,303.68",0,"1,303.68",31-Aug-11,COMMUNITIES
Nottinghamshire County Council,05-01115,FEET (LINE MARKERS ) LTD,External Services (Highways & Culture),Sports & Recreational Equipment & Supplies,910,0,910,01-Aug-11,COMMUNITIES
Nottinghamshire County Council,05-01157,STAFFLINE RECRUITMENT LTD,People,Recruitment,67.92,13.58,81.5,02-Aug-11,COMMUNITIES
Nottinghamshire County Council,05-01157,STAFFLINE RECRUITMENT LTD,People,Recruitment,169.8,33.96,203.76,02-Aug-11,COMMUNITIES
Nottinghamshire County Council,05-03255,STAFFLINE RECRUITMENT LTD,People,Recruitment,50.94,10.19,61.13,11-Aug-11,COMMUNITIES
Nottinghamshire County Council,05-03255,STAFFLINE RECRUITMENT LTD,People,Recruitment,67.92,13.58,81.5,11-Aug-11,COMMUNITIES
Nottinghamshire County Council,05-03395,STAFFLINE RECRUITMENT LTD,People,Recruitment,101.88,20.38,122.26,15-Aug-11,COMMUNITIES
Nottinghamshire County Council,05-07562,STAFFLINE RECRUITMENT LTD,People,Recruitment,101.88,20.38,122.26,23-Aug-11,COMMUNITIES
Nottinghamshire County Council,05-03376,OCS GROUP UK LTD,Soft Facilities Management,Cleaning Equipment & Janitorial Supplies,491.4,98.28,589.68,15-Aug-11,COMMUNITIES
Nottinghamshire County Council,05-08945,ART CLEANING (MIDLANDS) LTD,Soft Facilities Management,Industrial Cleaning Services,"1,213.35",0,"1,213.35",30-Aug-11,COMMUNITIES
Nottinghamshire County Council,05-01973,NUMATIC INTERNATIONAL LTD,Soft Facilities Management,Cleaning Equipment & Janitorial Supplies,"6,183.90",0,"6,183.90",04-Aug-11,COMMUNITIES
Nottinghamshire County Council,05-01973,NUMATIC INTERNATIONAL LTD,Soft Facilities Management,Cleaning Equipment & Janitorial Supplies,610.2,0,610.2,04-Aug-11,COMMUNITIES
Nottinghamshire County Council,05-01973,NUMATIC INTERNATIONAL LTD,Soft Facilities Management,Cleaning Equipment & Janitorial Supplies,"1,133.00",0,"1,133.00",04-Aug-11,COMMUNITIES
Nottinghamshire County Council,05-01973,NUMATIC INTERNATIONAL LTD,Soft Facilities Management,Cleaning Equipment & Janitorial Supplies,780.48,0,780.48,04-Aug-11,COMMUNITIES
Nottinghamshire County Council,05-01973,NUMATIC INTERNATIONAL LTD,Soft Facilities Management,Cleaning Equipment & Janitorial Supplies,"1,648.88",0,"1,648.88",04-Aug-11,COMMUNITIES
Nottinghamshire County Council,05-01973,NUMATIC INTERNATIONAL LTD,Soft Facilities Management,Cleaning Equipment & Janitorial Supplies,95.44,0,95.44,04-Aug-11,COMMUNITIES
Nottinghamshire County Council,05-01973,NUMATIC INTERNATIONAL LTD,Soft Facilities Management,Cleaning Equipment & Janitorial Supplies,91.62,0,91.62,04-Aug-11,COMMUNITIES
Nottinghamshire County Council,05-01973,NUMATIC INTERNATIONAL LTD,Soft Facilities Management,Cleaning Equipment & Janitorial Supplies,248.2,0,248.2,04-Aug-11,COMMUNITIES
Nottinghamshire County Council,05-01973,NUMATIC INTERNATIONAL LTD,Soft Facilities Management,Cleaning Equipment & Janitorial Supplies,824.44,0,824.44,04-Aug-11,COMMUNITIES
Nottinghamshire County Council,05-00581,NOTTINGHAM CITY COUNCIL,Professional Services,Politics & Civic Affairs,"12,368.20","2,473.64","14,841.84",01-Aug-11,RESOURCES
Nottinghamshire County Council,05-02976,EDC (NOTTINGHAM) LTD,People,Recruitment,663,0,663,10-Aug-11,RESOURCES
Nottinghamshire County Council,05-02976,EDC (NOTTINGHAM) LTD,People,Recruitment,962,0,962,10-Aug-11,RESOURCES
Nottinghamshire County Council,05-02976,EDC (NOTTINGHAM) LTD,People,Recruitment,507,0,507,10-Aug-11,RESOURCES
Nottinghamshire County Council,05-02978,TMH (WEST HALLAM) LTD,People,Agency Staff - Manual,996.04,0,996.04,10-Aug-11,RESOURCES
Nottinghamshire County Council,05-02978,TMH (WEST HALLAM) LTD,People,Agency Staff - Manual,49.95,0,49.95,10-Aug-11,RESOURCES
Nottinghamshire County Council,05-03058,FAITHFULL AND GOULD,Professional Services,Consultancy,"1,451.47",290.29,"1,741.76",10-Aug-11,RESOURCES
Nottinghamshire County Council,05-03062,HALEYS-RAP,Professional Services,Professional Engineering Services,706.27,141.25,847.52,10-Aug-11,RESOURCES
Nottinghamshire County Council,05-03394,HALEYS-RAP,Professional Services,Professional Engineering Services,797.58,159.52,957.1,12-Aug-11,RESOURCES
Nottinghamshire County Council,05-07279,WM SAUNDERS AND PARTNERS,Professional Services,Professional Engineering Services,810.68,162.14,972.82,17-Aug-11,RESOURCES
Nottinghamshire County Council,05-07441,TMH (WEST HALLAM) LTD,People,Agency Staff - Manual,"1,593.66",0,"1,593.66",18-Aug-11,RESOURCES
Nottinghamshire County Council,05-07441,TMH (WEST HALLAM) LTD,People,Agency Staff - Manual,67.5,0,67.5,18-Aug-11,RESOURCES
Nottinghamshire County Council,05-08002,TMH (WEST HALLAM) LTD,People,Agency Staff - Manual,"1,810.37",0,"1,810.37",23-Aug-11,RESOURCES
Nottinghamshire County Council,05-08002,TMH (WEST HALLAM) LTD,People,Agency Staff - Manual,74.7,0,74.7,23-Aug-11,RESOURCES
Nottinghamshire County Council,05-09136,MACARTHY HUGHES INTERNATIONAL,Professional Services,Professional Engineering Services,"6,000.00","1,200.00","7,200.00",31-Aug-11,RESOURCES
Nottinghamshire County Council,05-09137,MACARTHY HUGHES INTERNATIONAL,Professional Services,Professional Engineering Services,"2,000.00",400,"2,400.00",31-Aug-11,RESOURCES
Nottinghamshire County Council,05-09138,FAITHFULL AND GOULD,Professional Services,Consultancy,"3,454.50",690.9,"4,145.40",31-Aug-11,RESOURCES
Nottinghamshire County Council,05-09139,FAITHFULL AND GOULD,Professional Services,Consultancy,"1,575.00",315,"1,890.00",31-Aug-11,RESOURCES
Nottinghamshire County Council,05-09149,MABER ASSOICIATES LTD,Professional Services,Professional Engineering Services,"7,487.62","1,497.52","8,985.14",31-Aug-11,RESOURCES
Nottinghamshire County Council,05-00047,RADIODETECTION LTD,Soft Facilities Management,Security,9.98,2,11.98,01-Aug-11,COMMUNITIES
Nottinghamshire County Council,05-00047,RADIODETECTION LTD,Soft Facilities Management,Security,50,10,60,01-Aug-11,COMMUNITIES
Nottinghamshire County Council,05-00047,RADIODETECTION LTD,Soft Facilities Management,Security,50,10,60,01-Aug-11,COMMUNITIES
Nottinghamshire County Council,05-00047,RADIODETECTION LTD,Soft Facilities Management,Security,50,10,60,01-Aug-11,COMMUNITIES
Nottinghamshire County Council,05-00047,RADIODETECTION LTD,Soft Facilities Management,Security,50,10,60,01-Aug-11,COMMUNITIES
Nottinghamshire County Council,05-00047,RADIODETECTION LTD,Soft Facilities Management,Security,50,10,60,01-Aug-11,COMMUNITIES
Nottinghamshire County Council,05-00047,RADIODETECTION LTD,Soft Facilities Management,Security,50,10,60,01-Aug-11,COMMUNITIES
Nottinghamshire County Council,05-00047,RADIODETECTION LTD,Soft Facilities Management,Security,50,10,60,01-Aug-11,COMMUNITIES
Nottinghamshire County Council,05-00047,RADIODETECTION LTD,Soft Facilities Management,Security,50,10,60,01-Aug-11,COMMUNITIES
Nottinghamshire County Council,05-00047,RADIODETECTION LTD,Soft Facilities Management,Security,50,10,60,01-Aug-11,COMMUNITIES
Nottinghamshire County Council,05-00047,RADIODETECTION LTD,Soft Facilities Management,Security,82.45,16.49,98.94,01-Aug-11,COMMUNITIES
Nottinghamshire County Council,05-00142,BARKER ROSS LTD,People,Recruitment,68.7,13.74,82.44,22-Aug-11,COMMUNITIES
Nottinghamshire County Council,05-00142,BARKER ROSS LTD,People,Recruitment,"1,237.43",247.49,"1,484.92",22-Aug-11,COMMUNITIES
Nottinghamshire County Council,05-00567,BARKER ROSS LTD,People,Recruitment,76.05,15.21,91.26,22-Aug-11,COMMUNITIES
Nottinghamshire County Council,05-00567,BARKER ROSS LTD,People,Recruitment,"1,254.25",250.85,"1,505.10",22-Aug-11,COMMUNITIES
Nottinghamshire County Council,05-02303,BARKER ROSS LTD,People,Recruitment,55.8,11.16,66.96,22-Aug-11,COMMUNITIES
Nottinghamshire County Council,05-02303,BARKER ROSS LTD,People,Recruitment,"1,251.93",250.39,"1,502.32",22-Aug-11,COMMUNITIES
Nottinghamshire County Council,05-02558,BARKER ROSS LTD,People,Recruitment,79.65,15.93,95.58,22-Aug-11,COMMUNITIES
Nottinghamshire County Council,05-02558,BARKER ROSS LTD,People,Recruitment,"1,268.75",253.75,"1,522.50",22-Aug-11,COMMUNITIES
Nottinghamshire County Council,05-00568,BARKER ROSS LTD,People,Recruitment,"1,377.45",275.49,"1,652.94",17-Aug-11,COMMUNITIES
Nottinghamshire County Council,05-00935,RAI TECHNICAL LTD,Hard Facilities Management ,Tools & General Machinery,28.08,5.62,33.7,04-Aug-11,COMMUNITIES
Nottinghamshire County Council,05-00935,RAI TECHNICAL LTD,Hard Facilities Management ,Tools & General Machinery,455.63,91.13,546.76,04-Aug-11,COMMUNITIES
Nottinghamshire County Council,05-00979,BARKER ROSS LTD,People,Recruitment,863.2,172.64,"1,035.84",15-Aug-11,COMMUNITIES
Nottinghamshire County Council,05-01862,RAI TECHNICAL LTD,Hard Facilities Management ,Tools & General Machinery,92.34,18.47,110.81,04-Aug-11,COMMUNITIES
Nottinghamshire County Council,05-01862,RAI TECHNICAL LTD,Hard Facilities Management ,Tools & General Machinery,"1,126.25",225.25,"1,351.50",04-Aug-11,COMMUNITIES
Nottinghamshire County Council,05-01863,RAI TECHNICAL LTD,Hard Facilities Management ,Tools & General Machinery,115.02,23,138.02,04-Aug-11,COMMUNITIES
Nottinghamshire County Council,05-01863,RAI TECHNICAL LTD,Hard Facilities Management ,Tools & General Machinery,"1,126.25",225.25,"1,351.50",04-Aug-11,COMMUNITIES
Nottinghamshire County Council,05-02304,BARKER ROSS LTD,People,Recruitment,"1,473.85",294.77,"1,768.62",17-Aug-11,COMMUNITIES
Nottinghamshire County Council,05-02559,BARKER ROSS LTD,People,Recruitment,"1,319.25",263.85,"1,583.10",10-Aug-11,COMMUNITIES
Nottinghamshire County Council,05-03045,RAI TECHNICAL LTD,Hard Facilities Management ,Tools & General Machinery,39.96,7.99,47.95,10-Aug-11,COMMUNITIES
Nottinghamshire County Council,05-03045,RAI TECHNICAL LTD,Hard Facilities Management ,Tools & General Machinery,455.63,91.13,546.76,10-Aug-11,COMMUNITIES
Nottinghamshire County Council,05-03046,RAI TECHNICAL LTD,Hard Facilities Management ,Tools & General Machinery,77.22,15.44,92.66,19-Aug-11,COMMUNITIES
Nottinghamshire County Council,05-03046,RAI TECHNICAL LTD,Hard Facilities Management ,Tools & General Machinery,"1,126.25",225.25,"1,351.50",19-Aug-11,COMMUNITIES
Nottinghamshire County Council,05-03809,BARKER ROSS LTD,People,Recruitment,"1,316.20",263.24,"1,579.44",16-Aug-11,COMMUNITIES
Nottinghamshire County Council,05-04094,BARKER ROSS LTD,People,Recruitment,"1,281.20",256.24,"1,537.44",22-Aug-11,COMMUNITIES
Nottinghamshire County Council,05-07229,BARKER ROSS LTD,People,Recruitment,"1,264.80",252.96,"1,517.76",26-Aug-11,COMMUNITIES
Nottinghamshire County Council,05-07231,BARKER ROSS LTD,People,Recruitment,"1,116.10",223.22,"1,339.32",18-Aug-11,COMMUNITIES
Nottinghamshire County Council,05-07232,BARKER ROSS LTD,People,Recruitment,"1,068.85",213.77,"1,282.62",18-Aug-11,COMMUNITIES
Nottinghamshire County Council,05-07249,BARKER ROSS LTD,People,Recruitment,"1,223.40",244.68,"1,468.08",16-Aug-11,COMMUNITIES
Nottinghamshire County Council,05-08049,RAI TECHNICAL LTD,Hard Facilities Management ,Tools & General Machinery,88.56,17.71,106.27,23-Aug-11,COMMUNITIES
Nottinghamshire County Council,05-08049,RAI TECHNICAL LTD,Hard Facilities Management ,Tools & General Machinery,377.63,75.53,453.16,23-Aug-11,COMMUNITIES
Nottinghamshire County Council,05-08049,RAI TECHNICAL LTD,Hard Facilities Management ,Tools & General Machinery,"1,258.75",251.75,"1,510.50",23-Aug-11,COMMUNITIES
Nottinghamshire County Council,05-08050,RAI TECHNICAL LTD,Hard Facilities Management ,Tools & General Machinery,144.18,28.84,173.02,23-Aug-11,COMMUNITIES
Nottinghamshire County Council,05-08050,RAI TECHNICAL LTD,Hard Facilities Management ,Tools & General Machinery,357.75,71.55,429.3,23-Aug-11,COMMUNITIES
Nottinghamshire County Council,05-08050,RAI TECHNICAL LTD,Hard Facilities Management ,Tools & General Machinery,"1,126.25",225.25,"1,351.50",23-Aug-11,COMMUNITIES
Nottinghamshire County Council,05-09003,RAI TECHNICAL LTD,Hard Facilities Management ,Tools & General Machinery,126.36,25.27,151.63,30-Aug-11,COMMUNITIES
Nottinghamshire County Council,05-09003,RAI TECHNICAL LTD,Hard Facilities Management ,Tools & General Machinery,"1,285.25",257.05,"1,542.30",30-Aug-11,COMMUNITIES
Nottinghamshire County Council,05-00004,JOBLING PURSER LTD,External Services (Highways & Culture),Earth & Stone Aggregates ,-935,-187,"-1,122.00",03-Aug-11,COMMUNITIES
Nottinghamshire County Council,05-00021,AGGREGATE INDUSTRIES UK,External Services (Highways & Culture),Earth & Stone Aggregates ,70.02,14,84.02,04-Aug-11,COMMUNITIES
Nottinghamshire County Council,05-00021,AGGREGATE INDUSTRIES UK,External Services (Highways & Culture),Earth & Stone Aggregates ,140.04,28.01,168.05,04-Aug-11,COMMUNITIES
Nottinghamshire County Council,05-00021,AGGREGATE INDUSTRIES UK,External Services (Highways & Culture),Earth & Stone Aggregates ,218,43.6,261.6,04-Aug-11,COMMUNITIES
Nottinghamshire County Council,05-00021,AGGREGATE INDUSTRIES UK,External Services (Highways & Culture),Earth & Stone Aggregates ,247.32,49.46,296.78,04-Aug-11,COMMUNITIES
Nottinghamshire County Council,05-00021,AGGREGATE INDUSTRIES UK,External Services (Highways & Culture),Earth & Stone Aggregates ,628.32,125.66,753.98,04-Aug-11,COMMUNITIES
Nottinghamshire County Council,05-00042,CLEVELAND CABLE COMPANY LTD,Hard Facilities Management ,Electrical Systems & Lighting,592,118.4,710.4,18-Aug-11,COMMUNITIES
Nottinghamshire County Council,05-00067,BLUE DIAMOND SERVICES LTD,Soft Facilities Management,Industrial Cleaning Services,414,82.8,496.8,02-Aug-11,COMMUNITIES
Nottinghamshire County Council,05-00067,BLUE DIAMOND SERVICES LTD,Soft Facilities Management,Industrial Cleaning Services,414,82.8,496.8,02-Aug-11,COMMUNITIES
Nottinghamshire County Council,05-00068,CLEVELAND CABLE COMPANY LTD,Hard Facilities Management ,Electrical Systems & Lighting,296,59.2,355.2,18-Aug-11,COMMUNITIES
Nottinghamshire County Council,05-00068,CLEVELAND CABLE COMPANY LTD,Hard Facilities Management ,Electrical Systems & Lighting,"1,128.50",225.7,"1,354.20",18-Aug-11,COMMUNITIES
Nottinghamshire County Council,05-00068,CLEVELAND CABLE COMPANY LTD,Hard Facilities Management ,Electrical Systems & Lighting,"1,645.00",329,"1,974.00",18-Aug-11,COMMUNITIES
Nottinghamshire County Council,05-00069,CLEVELAND CABLE COMPANY LTD,Hard Facilities Management ,Electrical Systems & Lighting,431.4,86.28,517.68,18-Aug-11,COMMUNITIES
Nottinghamshire County Council,05-00121,PUDSEY DIAMOND ENGINEERING LTD,Professional Services,Professional Engineering Services,178.4,35.68,214.08,26-Aug-11,COMMUNITIES
Nottinghamshire County Council,05-00121,PUDSEY DIAMOND ENGINEERING LTD,Professional Services,Professional Engineering Services,519.8,103.96,623.76,26-Aug-11,COMMUNITIES
Nottinghamshire County Council,05-00121,PUDSEY DIAMOND ENGINEERING LTD,Professional Services,Professional Engineering Services,"1,360.60",272.12,"1,632.72",26-Aug-11,COMMUNITIES
Nottinghamshire County Council,05-00124,SIMMONSIGN LTD,Soft Facilities Management,Printed Media & Signage,"3,587.00",717.4,"4,304.40",04-Aug-11,COMMUNITIES
Nottinghamshire County Council,05-00124,SIMMONSIGN LTD,Soft Facilities Management,Printed Media & Signage,122,24.4,146.4,04-Aug-11,COMMUNITIES
Nottinghamshire County Council,05-00206,AGGREGATE INDUSTRIES UK,External Services (Highways & Culture),Earth & Stone Aggregates ,140.04,28.01,168.05,24-Aug-11,COMMUNITIES
Nottinghamshire County Council,05-00206,AGGREGATE INDUSTRIES UK,External Services (Highways & Culture),Earth & Stone Aggregates ,140.04,28.01,168.05,24-Aug-11,COMMUNITIES
Nottinghamshire County Council,05-00206,AGGREGATE INDUSTRIES UK,External Services (Highways & Culture),Earth & Stone Aggregates ,206.1,41.22,247.32,24-Aug-11,COMMUNITIES
Nottinghamshire County Council,05-00206,AGGREGATE INDUSTRIES UK,External Services (Highways & Culture),Earth & Stone Aggregates ,538.56,107.71,646.27,24-Aug-11,COMMUNITIES
Nottinghamshire County Council,05-00206,AGGREGATE INDUSTRIES UK,External Services (Highways & Culture),Earth & Stone Aggregates ,775.2,155.04,930.24,24-Aug-11,COMMUNITIES
Nottinghamshire County Council,05-00233,ENERGAS LTD,External Services (Highways & Culture),Chemicals & Gases,566.4,113.28,679.68,22-Aug-11,COMMUNITIES
Nottinghamshire County Council,05-00233,ENERGAS LTD,External Services (Highways & Culture),Chemicals & Gases,22.66,4.53,27.19,22-Aug-11,COMMUNITIES
Nottinghamshire County Council,05-00233,ENERGAS LTD,External Services (Highways & Culture),Chemicals & Gases,56.6,11.32,67.92,22-Aug-11,COMMUNITIES
Nottinghamshire County Council,05-00315,CLEVELAND CABLE COMPANY LTD,Hard Facilities Management ,Electrical Systems & Lighting,"2,257.00",451.4,"2,708.40",22-Aug-11,COMMUNITIES
Nottinghamshire County Council,05-00315,CLEVELAND CABLE COMPANY LTD,Hard Facilities Management ,Electrical Systems & Lighting,"3,451.20",690.24,"4,141.44",22-Aug-11,COMMUNITIES
Nottinghamshire County Council,05-00315,CLEVELAND CABLE COMPANY LTD,Hard Facilities Management ,Electrical Systems & Lighting,595.4,119.08,714.48,22-Aug-11,COMMUNITIES
Nottinghamshire County Council,05-00455,EDMUNDSON ELECTRICAL LTD,Hard Facilities Management ,Electrical Systems & Lighting,236,47.2,283.2,02-Aug-11,COMMUNITIES
Nottinghamshire County Council,05-00455,EDMUNDSON ELECTRICAL LTD,Hard Facilities Management ,Electrical Systems & Lighting,440,88,528,02-Aug-11,COMMUNITIES
Nottinghamshire County Council,05-00457,SIMMONSIGN LTD,Soft Facilities Management,Printed Media & Signage,"2,225.40",445.08,"2,670.48",19-Aug-11,COMMUNITIES
Nottinghamshire County Council,05-00555,REDDI LIGHT LTD,Hard Facilities Management ,Electrical Systems & Lighting,"1,080.00",216,"1,296.00",05-Aug-11,COMMUNITIES
Nottinghamshire County Council,05-00569,RENNICKS (UK) LTD,External Services (Highways & Culture),Highways & Works,178.81,35.76,214.57,18-Aug-11,COMMUNITIES
Nottinghamshire County Council,05-00569,RENNICKS (UK) LTD,External Services (Highways & Culture),Highways & Works,306.99,61.4,368.39,18-Aug-11,COMMUNITIES
Nottinghamshire County Council,05-00591,CLEVELAND CABLE COMPANY LTD,Hard Facilities Management ,Electrical Systems & Lighting,"1,415.00",283,"1,698.00",18-Aug-11,COMMUNITIES
Nottinghamshire County Council,05-00752,PUDSEY DIAMOND ENGINEERING LTD,Professional Services,Professional Engineering Services,"1,431.70",286.34,"1,718.04",02-Aug-11,COMMUNITIES
Nottinghamshire County Council,05-00933,ARCO LTD,Hard Facilities Management ,Health & Safety,999.6,199.92,"1,199.52",01-Aug-11,COMMUNITIES
Nottinghamshire County Council,05-00934,MARWOOD ELECTRICAL CO LTD,Hard Facilities Management ,Electrical Systems & Lighting,685.8,137.16,822.96,02-Aug-11,COMMUNITIES
Nottinghamshire County Council,05-00934,MARWOOD ELECTRICAL CO LTD,Hard Facilities Management ,Electrical Systems & Lighting,3.6,0.72,4.32,02-Aug-11,COMMUNITIES
Nottinghamshire County Council,05-00936,SIMMONSIGN LTD,Soft Facilities Management,Printed Media & Signage,310.76,62.15,372.91,19-Aug-11,COMMUNITIES
Nottinghamshire County Council,05-00936,SIMMONSIGN LTD,Soft Facilities Management,Printed Media & Signage,776.9,155.38,932.28,19-Aug-11,COMMUNITIES
Nottinghamshire County Council,05-00936,SIMMONSIGN LTD,Soft Facilities Management,Printed Media & Signage,"7,418.00","1,483.60","8,901.60",19-Aug-11,COMMUNITIES
Nottinghamshire County Council,05-00937,URBIS LIGHTING LTD,Hard Facilities Management ,Electrical Systems & Lighting,556.72,111.34,668.06,02-Aug-11,COMMUNITIES
Nottinghamshire County Council,05-00937,URBIS LIGHTING LTD,Hard Facilities Management ,Electrical Systems & Lighting,8,1.6,9.6,02-Aug-11,COMMUNITIES
Nottinghamshire County Council,05-01230,ASD METAL SERVICES,Hard Facilities Management ,Building & Construction Supplies,"6,400.00","1,280.00","7,680.00",19-Aug-11,COMMUNITIES
Nottinghamshire County Council,05-01231,INDUSTRIAL DIAMOND SERVICES,External Services (Highways & Culture),Construction Plant & Equipment,"1,100.00",220,"1,320.00",01-Aug-11,COMMUNITIES
Nottinghamshire County Council,05-01233,RENNICKS (UK) LTD,External Services (Highways & Culture),Highways & Works,204.16,40.83,244.99,01-Aug-11,COMMUNITIES
Nottinghamshire County Council,05-01233,RENNICKS (UK) LTD,External Services (Highways & Culture),Highways & Works,227.91,45.58,273.49,01-Aug-11,COMMUNITIES
Nottinghamshire County Council,05-01697,W T BURDEN LTD,Hard Facilities Management ,Building & Construction Supplies,750.62,150.12,900.74,11-Aug-11,COMMUNITIES
Nottinghamshire County Council,05-01698,W T BURDEN LTD,Hard Facilities Management ,Building & Construction Supplies,613.2,122.64,735.84,08-Aug-11,COMMUNITIES
Nottinghamshire County Council,05-01699,ENERGAS LTD,External Services (Highways & Culture),Chemicals & Gases,708,141.6,849.6,22-Aug-11,COMMUNITIES
Nottinghamshire County Council,05-01699,ENERGAS LTD,External Services (Highways & Culture),Chemicals & Gases,28.32,5.66,33.98,22-Aug-11,COMMUNITIES
Nottinghamshire County Council,05-01699,ENERGAS LTD,External Services (Highways & Culture),Chemicals & Gases,70.8,14.16,84.96,22-Aug-11,COMMUNITIES
Nottinghamshire County Council,05-01700,INSTARMAC LTD,External Services (Highways & Culture),Highways & Works,570.08,114.02,684.1,08-Aug-11,COMMUNITIES
Nottinghamshire County Council,05-01872,INDUSTRIAL DIAMOND SERVICES,External Services (Highways & Culture),Construction Plant & Equipment,"2,200.00",440,"2,640.00",11-Aug-11,COMMUNITIES
Nottinghamshire County Council,05-02302,AGGREGATE INDUSTRIES UK,External Services (Highways & Culture),Earth & Stone Aggregates ,62.24,12.45,74.69,08-Aug-11,COMMUNITIES
Nottinghamshire County Council,05-02302,AGGREGATE INDUSTRIES UK,External Services (Highways & Culture),Earth & Stone Aggregates ,83.28,16.66,99.94,08-Aug-11,COMMUNITIES
Nottinghamshire County Council,05-02302,AGGREGATE INDUSTRIES UK,External Services (Highways & Culture),Earth & Stone Aggregates ,124.48,24.9,149.38,08-Aug-11,COMMUNITIES
Nottinghamshire County Council,05-02302,AGGREGATE INDUSTRIES UK,External Services (Highways & Culture),Earth & Stone Aggregates ,359.04,71.81,430.85,08-Aug-11,COMMUNITIES
Nottinghamshire County Council,05-02302,AGGREGATE INDUSTRIES UK,External Services (Highways & Culture),Earth & Stone Aggregates ,412.2,82.44,494.64,08-Aug-11,COMMUNITIES
Nottinghamshire County Council,05-02305,BRITISH OXYGEN COMPANY LTD,External Services (Highways & Culture),Chemicals & Gases,420,84,504,30-Aug-11,COMMUNITIES
Nottinghamshire County Council,05-02305,BRITISH OXYGEN COMPANY LTD,External Services (Highways & Culture),Chemicals & Gases,27.2,5.44,32.64,30-Aug-11,COMMUNITIES
Nottinghamshire County Council,05-02306,BRITISH OXYGEN COMPANY LTD,External Services (Highways & Culture),Chemicals & Gases,150.75,30.15,180.9,30-Aug-11,COMMUNITIES
Nottinghamshire County Council,05-02306,BRITISH OXYGEN COMPANY LTD,External Services (Highways & Culture),Chemicals & Gases,336,67.2,403.2,30-Aug-11,COMMUNITIES
Nottinghamshire County Council,05-02307,BRITISH OXYGEN COMPANY LTD,External Services (Highways & Culture),Chemicals & Gases,287.1,57.42,344.52,30-Aug-11,COMMUNITIES
Nottinghamshire County Council,05-02307,BRITISH OXYGEN COMPANY LTD,External Services (Highways & Culture),Chemicals & Gases,316.8,63.36,380.16,30-Aug-11,COMMUNITIES
Nottinghamshire County Council,05-02308,W T BURDEN LTD,Hard Facilities Management ,Building & Construction Supplies,"1,754.40",350.88,"2,105.28",08-Aug-11,COMMUNITIES
Nottinghamshire County Council,05-02431,EMO OIL LTD,Hard Facilities Management ,Utilities,"5,749.15","1,149.83","6,898.98",08-Aug-11,COMMUNITIES
Nottinghamshire County Council,05-02432,EMO OIL LTD,Hard Facilities Management ,Utilities,"3,408.54",681.71,"4,090.25",08-Aug-11,COMMUNITIES
Nottinghamshire County Council,05-02560,GLASDON UK LTD,Soft Facilities Management,Cleaning Equipment & Janitorial Supplies,896.4,179.28,"1,075.68",09-Aug-11,COMMUNITIES
Nottinghamshire County Council,05-02561,INSTARMAC LTD,External Services (Highways & Culture),Highways & Works,570.08,114.02,684.1,09-Aug-11,COMMUNITIES
Nottinghamshire County Council,05-02562,KEYLINE BUILDERS MERCHANTS,Hard Facilities Management ,Building Construction Services,"1,283.40",256.68,"1,540.08",09-Aug-11,COMMUNITIES
Nottinghamshire County Council,05-02574,PUDSEY DIAMOND ENGINEERING LTD,Professional Services,Professional Engineering Services,-700,-140,-840,30-Aug-11,COMMUNITIES
Nottinghamshire County Council,05-03035,ABACUS LIGHTING LTD,Hard Facilities Management ,Electrical Systems & Lighting,"6,199.00","1,239.80","7,438.80",11-Aug-11,COMMUNITIES
Nottinghamshire County Council,05-03036,AGGREGATE INDUSTRIES UK,External Services (Highways & Culture),Earth & Stone Aggregates ,969,193.8,"1,162.80",19-Aug-11,COMMUNITIES
Nottinghamshire County Council,05-03036,AGGREGATE INDUSTRIES UK,External Services (Highways & Culture),Earth & Stone Aggregates ,"1,356.60",271.32,"1,627.92",19-Aug-11,COMMUNITIES
Nottinghamshire County Council,05-03037,W T BURDEN LTD,Hard Facilities Management ,Building & Construction Supplies,613.2,122.64,735.84,10-Aug-11,COMMUNITIES
Nottinghamshire County Council,05-03038,CLEVELAND CABLE COMPANY LTD,Hard Facilities Management ,Electrical Systems & Lighting,431.4,86.28,517.68,18-Aug-11,COMMUNITIES
Nottinghamshire County Council,05-03039,CLEVELAND CABLE COMPANY LTD,Hard Facilities Management ,Electrical Systems & Lighting,"4,470.00",894,"5,364.00",18-Aug-11,COMMUNITIES
Nottinghamshire County Council,05-03039,CLEVELAND CABLE COMPANY LTD,Hard Facilities Management ,Electrical Systems & Lighting,"5,610.00","1,122.00","6,732.00",18-Aug-11,COMMUNITIES
Nottinghamshire County Council,05-03044,KEYLINE BUILDERS MERCHANTS,Hard Facilities Management ,Building Construction Services,783.2,156.64,939.84,10-Aug-11,COMMUNITIES
Nottinghamshire County Council,05-03241,RENNICKS (UK) LTD,External Services (Highways & Culture),Highways & Works,158.98,31.8,190.78,10-Aug-11,COMMUNITIES
Nottinghamshire County Council,05-03241,RENNICKS (UK) LTD,External Services (Highways & Culture),Highways & Works,176.53,35.31,211.84,10-Aug-11,COMMUNITIES
Nottinghamshire County Council,05-03241,RENNICKS (UK) LTD,External Services (Highways & Culture),Highways & Works,341.86,68.37,410.23,10-Aug-11,COMMUNITIES
Nottinghamshire County Council,05-03260,LUCY ELECTRIC UK LTD,Hard Facilities Management ,Electrical Systems & Lighting,347.5,69.5,417,11-Aug-11,COMMUNITIES
Nottinghamshire County Council,05-03260,LUCY ELECTRIC UK LTD,Hard Facilities Management ,Electrical Systems & Lighting,637.5,127.5,765,11-Aug-11,COMMUNITIES
Nottinghamshire County Council,05-03762,EMO OIL LTD,Hard Facilities Management ,Utilities,"5,699.00","1,139.80","6,838.80",15-Aug-11,COMMUNITIES
Nottinghamshire County Council,05-04096,GREENHAM TRADING LTD,Hard Facilities Management ,Health & Safety,532.6,106.52,639.12,18-Aug-11,COMMUNITIES
Nottinghamshire County Council,05-04097,W T BURDEN LTD,Hard Facilities Management ,Building & Construction Supplies,750.62,150.12,900.74,18-Aug-11,COMMUNITIES
Nottinghamshire County Council,05-04101,W T BURDEN LTD,Hard Facilities Management ,Building & Construction Supplies,"1,125.94",225.19,"1,351.13",18-Aug-11,COMMUNITIES
Nottinghamshire County Council,05-04102,CHARLES ENDIRECT LTD,Hard Facilities Management ,Electrical Systems & Lighting,647.5,129.5,777,18-Aug-11,COMMUNITIES
Nottinghamshire County Council,05-04107,W T BURDEN LTD,Hard Facilities Management ,Building & Construction Supplies,638.4,127.68,766.08,18-Aug-11,COMMUNITIES
Nottinghamshire County Council,05-07224,EMO OIL LTD,Hard Facilities Management ,Utilities,"6,847.26","1,369.45","8,216.71",23-Aug-11,COMMUNITIES
Nottinghamshire County Council,05-07225,EMO OIL LTD,Hard Facilities Management ,Utilities,"1,973.10",394.62,"2,367.72",17-Aug-11,COMMUNITIES
Nottinghamshire County Council,05-07660,AGGREGATE INDUSTRIES UK,External Services (Highways & Culture),Earth & Stone Aggregates ,70.02,14,84.02,24-Aug-11,COMMUNITIES
Nottinghamshire County Council,05-07660,AGGREGATE INDUSTRIES UK,External Services (Highways & Culture),Earth & Stone Aggregates ,70.02,14,84.02,24-Aug-11,COMMUNITIES
Nottinghamshire County Council,05-07660,AGGREGATE INDUSTRIES UK,External Services (Highways & Culture),Earth & Stone Aggregates ,130.8,26.16,156.96,24-Aug-11,COMMUNITIES
Nottinghamshire County Council,05-07660,AGGREGATE INDUSTRIES UK,External Services (Highways & Culture),Earth & Stone Aggregates ,448.8,89.76,538.56,24-Aug-11,COMMUNITIES
Nottinghamshire County Council,05-07660,AGGREGATE INDUSTRIES UK,External Services (Highways & Culture),Earth & Stone Aggregates ,494.64,98.93,593.57,24-Aug-11,COMMUNITIES
Nottinghamshire County Council,05-07661,KEYLINE BUILDERS MERCHANTS,Hard Facilities Management ,Building Construction Services,"1,018.10",203.62,"1,221.72",23-Aug-11,COMMUNITIES
Nottinghamshire County Council,05-07661,KEYLINE BUILDERS MERCHANTS,Hard Facilities Management ,Building Construction Services,"1,454.52",290.9,"1,745.42",23-Aug-11,COMMUNITIES
Nottinghamshire County Council,05-07662,KEYLINE BUILDERS MERCHANTS,Hard Facilities Management ,Building Construction Services,"2,823.48",564.7,"3,388.18",23-Aug-11,COMMUNITIES
Nottinghamshire County Council,05-07755,T M S LTD,Hard Facilities Management ,Building & Construction Supplies,"2,465.00",493,"2,958.00",19-Aug-11,COMMUNITIES
Nottinghamshire County Council,05-08045,BEESWIFT,Soft Facilities Management,Clothing,105.8,21.16,126.96,23-Aug-11,COMMUNITIES
Nottinghamshire County Council,05-08045,BEESWIFT,Soft Facilities Management,Clothing,264.5,52.9,317.4,23-Aug-11,COMMUNITIES
Nottinghamshire County Council,05-08045,BEESWIFT,Soft Facilities Management,Clothing,264.5,52.9,317.4,23-Aug-11,COMMUNITIES
Nottinghamshire County Council,05-08045,BEESWIFT,Soft Facilities Management,Clothing,264.5,52.9,317.4,23-Aug-11,COMMUNITIES
Nottinghamshire County Council,05-08046,BEESWIFT,Soft Facilities Management,Clothing,132.25,26.45,158.7,23-Aug-11,COMMUNITIES
Nottinghamshire County Council,05-08046,BEESWIFT,Soft Facilities Management,Clothing,252,50.4,302.4,23-Aug-11,COMMUNITIES
Nottinghamshire County Council,05-08046,BEESWIFT,Soft Facilities Management,Clothing,264.5,52.9,317.4,23-Aug-11,COMMUNITIES
Nottinghamshire County Council,05-08046,BEESWIFT,Soft Facilities Management,Clothing,264.5,52.9,317.4,23-Aug-11,COMMUNITIES
Nottinghamshire County Council,05-08047,LUCY ELECTRIC UK LTD,Hard Facilities Management ,Electrical Systems & Lighting,637.5,127.5,765,23-Aug-11,COMMUNITIES
Nottinghamshire County Council,05-08047,LUCY ELECTRIC UK LTD,Hard Facilities Management ,Electrical Systems & Lighting,"1,390.00",278,"1,668.00",23-Aug-11,COMMUNITIES
Nottinghamshire County Council,05-08048,PARKER MERCHANTING LTD,Soft Facilities Management,Paper & Paper Products,496.8,99.36,596.16,23-Aug-11,COMMUNITIES
Nottinghamshire County Council,05-08051,SIGNPOST SOLUTIONS LTD,Soft Facilities Management,Printed Media & Signage,"3,594.00",718.8,"4,312.80",23-Aug-11,COMMUNITIES
Nottinghamshire County Council,05-08052,ZODIAN (ZODION LTD),External Services (Highways & Culture),Highways & Works,"2,340.00",468,"2,808.00",23-Aug-11,COMMUNITIES
Nottinghamshire County Council,05-08087,EMO OIL LTD,Hard Facilities Management ,Utilities,"9,174.05","1,834.81","11,008.86",23-Aug-11,COMMUNITIES
Nottinghamshire County Council,05-08088,EMO OIL LTD,Hard Facilities Management ,Utilities,"5,534.63","1,106.93","6,641.56",23-Aug-11,COMMUNITIES
Nottinghamshire County Council,05-08512,RENNICKS (UK) LTD,External Services (Highways & Culture),Highways & Works,143.17,28.63,171.8,30-Aug-11,COMMUNITIES
Nottinghamshire County Council,05-08512,RENNICKS (UK) LTD,External Services (Highways & Culture),Highways & Works,421.2,84.24,505.44,30-Aug-11,COMMUNITIES
Nottinghamshire County Council,05-08512,RENNICKS (UK) LTD,External Services (Highways & Culture),Highways & Works,473.13,94.63,567.76,30-Aug-11,COMMUNITIES
Nottinghamshire County Council,05-08512,RENNICKS (UK) LTD,External Services (Highways & Culture),Highways & Works,473.13,94.63,567.76,30-Aug-11,COMMUNITIES
Nottinghamshire County Council,05-08512,RENNICKS (UK) LTD,External Services (Highways & Culture),Highways & Works,590.9,118.18,709.08,30-Aug-11,COMMUNITIES
Nottinghamshire County Council,05-08513,SMITH BROS CAERCONAN WHOLESALE LTD,Hard Facilities Management ,Electronic Components & Supplies,130.95,26.19,157.14,30-Aug-11,COMMUNITIES
Nottinghamshire County Council,05-08513,SMITH BROS CAERCONAN WHOLESALE LTD,Hard Facilities Management ,Electronic Components & Supplies,702,140.4,842.4,30-Aug-11,COMMUNITIES
Nottinghamshire County Council,05-08699,EMO OIL LTD,Hard Facilities Management ,Utilities,"5,563.61","1,112.72","6,676.33",26-Aug-11,COMMUNITIES
Nottinghamshire County Council,05-08700,EMO OIL LTD,Hard Facilities Management ,Utilities,955.09,47.75,"1,002.84",26-Aug-11,COMMUNITIES
Nottinghamshire County Council,05-08779,EMO OIL LTD,Hard Facilities Management ,Utilities,"3,333.51",666.7,"4,000.21",26-Aug-11,COMMUNITIES
Nottinghamshire County Council,05-08995,ABACUS LIGHTING LTD,Hard Facilities Management ,Electrical Systems & Lighting,"6,199.00","1,239.80","7,438.80",30-Aug-11,COMMUNITIES
Nottinghamshire County Council,05-08996,ABACUS LIGHTING LTD,Hard Facilities Management ,Electrical Systems & Lighting,"3,099.50",619.9,"3,719.40",30-Aug-11,COMMUNITIES
Nottinghamshire County Council,05-08997,AGGREGATE INDUSTRIES UK,External Services (Highways & Culture),Earth & Stone Aggregates ,224.4,44.88,269.28,30-Aug-11,COMMUNITIES
Nottinghamshire County Council,05-08997,AGGREGATE INDUSTRIES UK,External Services (Highways & Culture),Earth & Stone Aggregates ,783.18,156.64,939.82,30-Aug-11,COMMUNITIES
Nottinghamshire County Council,05-08998,W T BURDEN LTD,Hard Facilities Management ,Building & Construction Supplies,750.62,150.12,900.74,30-Aug-11,COMMUNITIES
Nottinghamshire County Council,05-08999,EDMUNDSON ELECTRICAL LTD,Hard Facilities Management ,Electrical Systems & Lighting,390,78,468,30-Aug-11,COMMUNITIES
Nottinghamshire County Council,05-08999,EDMUNDSON ELECTRICAL LTD,Hard Facilities Management ,Electrical Systems & Lighting,632,126.4,758.4,30-Aug-11,COMMUNITIES
Nottinghamshire County Council,05-09000,KEYLINE BUILDERS MERCHANTS,Hard Facilities Management ,Building Construction Services,783.2,156.64,939.84,30-Aug-11,COMMUNITIES
Nottinghamshire County Council,05-09001,KEYLINE BUILDERS MERCHANTS,Hard Facilities Management ,Building Construction Services,860.4,172.08,"1,032.48",30-Aug-11,COMMUNITIES
Nottinghamshire County Council,05-09002,PUDSEY DIAMOND ENGINEERING LTD,Professional Services,Professional Engineering Services,178.4,35.68,214.08,30-Aug-11,COMMUNITIES
Nottinghamshire County Council,05-09002,PUDSEY DIAMOND ENGINEERING LTD,Professional Services,Professional Engineering Services,600,120,720,30-Aug-11,COMMUNITIES
Nottinghamshire County Council,05-09002,PUDSEY DIAMOND ENGINEERING LTD,Professional Services,Professional Engineering Services,"1,980.00",396,"2,376.00",30-Aug-11,COMMUNITIES
Nottinghamshire County Council,05-09004,SIGNPOST SOLUTIONS LTD,Soft Facilities Management,Printed Media & Signage,785.6,157.12,942.72,30-Aug-11,COMMUNITIES
Nottinghamshire County Council,05-09004,SIGNPOST SOLUTIONS LTD,Soft Facilities Management,Printed Media & Signage,998,199.6,"1,197.60",30-Aug-11,COMMUNITIES
Nottinghamshire County Council,05-09004,SIGNPOST SOLUTIONS LTD,Soft Facilities Management,Printed Media & Signage,"1,170.60",234.12,"1,404.72",30-Aug-11,COMMUNITIES
Nottinghamshire County Council,05-09004,SIGNPOST SOLUTIONS LTD,Soft Facilities Management,Printed Media & Signage,"1,257.20",251.44,"1,508.64",30-Aug-11,COMMUNITIES
Nottinghamshire County Council,05-09010,TRAFFIC MANAGEMENT SUPPLIES LTD,External Services (Highways & Culture),Highways & Works,"2,465.00",493,"2,958.00",31-Aug-11,COMMUNITIES
Nottinghamshire County Council,05-00030,CREST SOFTWARE LTD,ICT,Software,425,85,510,11-Aug-11,COMMUNITIES
Nottinghamshire County Council,05-00030,CREST SOFTWARE LTD,ICT,Software,950,190,"1,140.00",11-Aug-11,COMMUNITIES
Nottinghamshire County Council,05-00122,INSIDE OUT TECHNICAL SECURITY LTD,Soft Facilities Management,Security,640,128,768,19-Aug-11,COMMUNITIES
Nottinghamshire County Council,05-00352,CREST SOFTWARE LTD,ICT,Software,174,34.8,208.8,25-Aug-11,COMMUNITIES
Nottinghamshire County Council,05-00352,CREST SOFTWARE LTD,ICT,Software,850,170,"1,020.00",25-Aug-11,COMMUNITIES
Nottinghamshire County Council,05-00352,CREST SOFTWARE LTD,ICT,Software,870,174,"1,044.00",25-Aug-11,COMMUNITIES
Nottinghamshire County Council,05-00456,NNAS (TRADING) LTD,People,Vocational Training,"1,115.00",223,"1,338.00",17-Aug-11,COMMUNITIES
Nottinghamshire County Council,05-03040,INTELLIGENT DATA SYSTEMS (UK) LTD,ICT,Computer Services,"1,384.75",276.95,"1,661.70",30-Aug-11,COMMUNITIES
Nottinghamshire County Council,05-08086,CREST SOFTWARE LTD,ICT,Software,-850,-170,"-1,020.00",25-Aug-11,COMMUNITIES
Nottinghamshire County Council,05-02196,GOLDEN RIVER TRAFFIC LTD,External Services (Highways & Culture),Highways & Works,557,0,557,17-Aug-11,COMMUNITIES
Nottinghamshire County Council,05-00810,GATES MACBAIN ASSOCIATES LTD,Professional Services,Consultancy,"3,280.00",0,"3,280.00",19-Aug-11,COMMUNITIES
Nottinghamshire County Council,05-01997,GROUNDWORK CRESSWELL GROUP,External Services (Highways & Culture),Highways & Works,"1,500.00",0,"1,500.00",04-Aug-11,COMMUNITIES
Nottinghamshire County Council,05-03151,TRUVELO (UK) LTD,External Services (Highways & Culture),Highways & Works,530,0,530,11-Aug-11,COMMUNITIES
Nottinghamshire County Council,05-03151,TRUVELO (UK) LTD,External Services (Highways & Culture),Highways & Works,52,0,52,11-Aug-11,COMMUNITIES
Nottinghamshire County Council,05-03151,TRUVELO (UK) LTD,External Services (Highways & Culture),Highways & Works,2.96,0,2.96,11-Aug-11,COMMUNITIES
Nottinghamshire County Council,05-07975,TRUVELO (UK) LTD,External Services (Highways & Culture),Highways & Works,485,0,485,23-Aug-11,COMMUNITIES
Nottinghamshire County Council,05-03793,CHIPSIDE LTD,ICT,Software,900,180,"1,080.00",15-Aug-11,COMMUNITIES
Nottinghamshire County Council,05-07575,N S L LTD,Transport & Travel,Motor Vehicles,"6,799.76",0,"6,799.76",19-Aug-11,COMMUNITIES
Nottinghamshire County Council,05-07575,N S L LTD,Transport & Travel,Motor Vehicles,"85,923.83",0,"85,923.83",19-Aug-11,COMMUNITIES
Nottinghamshire County Council,05-07622,ROYAL MAIL GROUP PLC,Soft Facilities Management,Mail & Couriers,49.14,0,49.14,19-Aug-11,COMMUNITIES
Nottinghamshire County Council,05-07622,ROYAL MAIL GROUP PLC,Soft Facilities Management,Mail & Couriers,23.52,0,23.52,19-Aug-11,COMMUNITIES
Nottinghamshire County Council,05-07622,ROYAL MAIL GROUP PLC,Soft Facilities Management,Mail & Couriers,147.42,0,147.42,19-Aug-11,COMMUNITIES
Nottinghamshire County Council,05-07622,ROYAL MAIL GROUP PLC,Soft Facilities Management,Mail & Couriers,49.84,0,49.84,19-Aug-11,COMMUNITIES
Nottinghamshire County Council,05-07622,ROYAL MAIL GROUP PLC,Soft Facilities Management,Mail & Couriers,57.33,0,57.33,19-Aug-11,COMMUNITIES
Nottinghamshire County Council,05-07622,ROYAL MAIL GROUP PLC,Soft Facilities Management,Mail & Couriers,75.04,0,75.04,19-Aug-11,COMMUNITIES
Nottinghamshire County Council,05-07622,ROYAL MAIL GROUP PLC,Soft Facilities Management,Mail & Couriers,21.28,0,21.28,19-Aug-11,COMMUNITIES
Nottinghamshire County Council,05-07622,ROYAL MAIL GROUP PLC,Soft Facilities Management,Mail & Couriers,126.75,0,126.75,19-Aug-11,COMMUNITIES
Nottinghamshire County Council,05-07622,ROYAL MAIL GROUP PLC,Soft Facilities Management,Mail & Couriers,156.39,0,156.39,19-Aug-11,COMMUNITIES
Nottinghamshire County Council,05-07622,ROYAL MAIL GROUP PLC,Soft Facilities Management,Mail & Couriers,19.04,0,19.04,19-Aug-11,COMMUNITIES
Nottinghamshire County Council,05-07622,ROYAL MAIL GROUP PLC,Soft Facilities Management,Mail & Couriers,77.22,0,77.22,19-Aug-11,COMMUNITIES
Nottinghamshire County Council,05-07622,ROYAL MAIL GROUP PLC,Soft Facilities Management,Mail & Couriers,39.2,0,39.2,19-Aug-11,COMMUNITIES
Nottinghamshire County Council,05-07622,ROYAL MAIL GROUP PLC,Soft Facilities Management,Mail & Couriers,193.05,0,193.05,19-Aug-11,COMMUNITIES
Nottinghamshire County Council,05-07622,ROYAL MAIL GROUP PLC,Soft Facilities Management,Mail & Couriers,49,0,49,19-Aug-11,COMMUNITIES
Nottinghamshire County Council,05-07622,ROYAL MAIL GROUP PLC,Soft Facilities Management,Mail & Couriers,32.76,0,32.76,19-Aug-11,COMMUNITIES
Nottinghamshire County Council,05-07622,ROYAL MAIL GROUP PLC,Soft Facilities Management,Mail & Couriers,88.53,0,88.53,19-Aug-11,COMMUNITIES
Nottinghamshire County Council,05-07622,ROYAL MAIL GROUP PLC,Soft Facilities Management,Mail & Couriers,83.07,0,83.07,19-Aug-11,COMMUNITIES
Nottinghamshire County Council,05-07622,ROYAL MAIL GROUP PLC,Soft Facilities Management,Mail & Couriers,49.84,0,49.84,19-Aug-11,COMMUNITIES
Nottinghamshire County Council,05-07623,ROYAL MAIL GROUP PLC,Soft Facilities Management,Mail & Couriers,69.42,0,69.42,19-Aug-11,COMMUNITIES
Nottinghamshire County Council,05-07623,ROYAL MAIL GROUP PLC,Soft Facilities Management,Mail & Couriers,19.6,0,19.6,19-Aug-11,COMMUNITIES
Nottinghamshire County Council,05-07623,ROYAL MAIL GROUP PLC,Soft Facilities Management,Mail & Couriers,80.34,0,80.34,19-Aug-11,COMMUNITIES
Nottinghamshire County Council,05-07623,ROYAL MAIL GROUP PLC,Soft Facilities Management,Mail & Couriers,18.76,0,18.76,19-Aug-11,COMMUNITIES
Nottinghamshire County Council,05-07623,ROYAL MAIL GROUP PLC,Soft Facilities Management,Mail & Couriers,46.8,0,46.8,19-Aug-11,COMMUNITIES
Nottinghamshire County Council,05-07623,ROYAL MAIL GROUP PLC,Soft Facilities Management,Mail & Couriers,41.16,0,41.16,19-Aug-11,COMMUNITIES
Nottinghamshire County Council,05-07623,ROYAL MAIL GROUP PLC,Soft Facilities Management,Mail & Couriers,58.52,0,58.52,19-Aug-11,COMMUNITIES
Nottinghamshire County Council,05-07623,ROYAL MAIL GROUP PLC,Soft Facilities Management,Mail & Couriers,86.58,0,86.58,19-Aug-11,COMMUNITIES
Nottinghamshire County Council,05-07623,ROYAL MAIL GROUP PLC,Soft Facilities Management,Mail & Couriers,34.44,0,34.44,19-Aug-11,COMMUNITIES
Nottinghamshire County Council,05-07623,ROYAL MAIL GROUP PLC,Soft Facilities Management,Mail & Couriers,74.88,0,74.88,19-Aug-11,COMMUNITIES
Nottinghamshire County Council,05-07623,ROYAL MAIL GROUP PLC,Soft Facilities Management,Mail & Couriers,184.86,0,184.86,19-Aug-11,COMMUNITIES
Nottinghamshire County Council,05-07623,ROYAL MAIL GROUP PLC,Soft Facilities Management,Mail & Couriers,26.88,0,26.88,19-Aug-11,COMMUNITIES
Nottinghamshire County Council,05-07623,ROYAL MAIL GROUP PLC,Soft Facilities Management,Mail & Couriers,70.59,0,70.59,19-Aug-11,COMMUNITIES
Nottinghamshire County Council,05-07623,ROYAL MAIL GROUP PLC,Soft Facilities Management,Mail & Couriers,21,0,21,19-Aug-11,COMMUNITIES
Nottinghamshire County Council,05-07623,ROYAL MAIL GROUP PLC,Soft Facilities Management,Mail & Couriers,143.52,0,143.52,19-Aug-11,COMMUNITIES
Nottinghamshire County Council,05-07623,ROYAL MAIL GROUP PLC,Soft Facilities Management,Mail & Couriers,50.96,0,50.96,19-Aug-11,COMMUNITIES
Nottinghamshire County Council,05-07623,ROYAL MAIL GROUP PLC,Soft Facilities Management,Mail & Couriers,31.98,0,31.98,19-Aug-11,COMMUNITIES
Nottinghamshire County Council,05-07623,ROYAL MAIL GROUP PLC,Soft Facilities Management,Mail & Couriers,17.08,0,17.08,19-Aug-11,COMMUNITIES
Nottinghamshire County Council,05-07623,ROYAL MAIL GROUP PLC,Soft Facilities Management,Mail & Couriers,83.85,0,83.85,19-Aug-11,COMMUNITIES
Nottinghamshire County Council,05-07623,ROYAL MAIL GROUP PLC,Soft Facilities Management,Mail & Couriers,30.52,0,30.52,19-Aug-11,COMMUNITIES
Nottinghamshire County Council,05-07624,ROYAL MAIL GROUP PLC,Soft Facilities Management,Mail & Couriers,88.53,0,88.53,19-Aug-11,COMMUNITIES
Nottinghamshire County Council,05-07624,ROYAL MAIL GROUP PLC,Soft Facilities Management,Mail & Couriers,18.2,0,18.2,19-Aug-11,COMMUNITIES
Nottinghamshire County Council,05-07624,ROYAL MAIL GROUP PLC,Soft Facilities Management,Mail & Couriers,130.26,0,130.26,19-Aug-11,COMMUNITIES
Nottinghamshire County Council,05-07624,ROYAL MAIL GROUP PLC,Soft Facilities Management,Mail & Couriers,40.32,0,40.32,19-Aug-11,COMMUNITIES
Nottinghamshire County Council,05-07624,ROYAL MAIL GROUP PLC,Soft Facilities Management,Mail & Couriers,149.37,0,149.37,19-Aug-11,COMMUNITIES
Nottinghamshire County Council,05-07624,ROYAL MAIL GROUP PLC,Soft Facilities Management,Mail & Couriers,31.36,0,31.36,19-Aug-11,COMMUNITIES
Nottinghamshire County Council,05-07624,ROYAL MAIL GROUP PLC,Soft Facilities Management,Mail & Couriers,22.4,0,22.4,19-Aug-11,COMMUNITIES
Nottinghamshire County Council,05-07624,ROYAL MAIL GROUP PLC,Soft Facilities Management,Mail & Couriers,223.47,0,223.47,19-Aug-11,COMMUNITIES
Nottinghamshire County Council,05-07624,ROYAL MAIL GROUP PLC,Soft Facilities Management,Mail & Couriers,56.55,0,56.55,19-Aug-11,COMMUNITIES
Nottinghamshire County Council,05-07624,ROYAL MAIL GROUP PLC,Soft Facilities Management,Mail & Couriers,34.72,0,34.72,19-Aug-11,COMMUNITIES
Nottinghamshire County Council,05-07624,ROYAL MAIL GROUP PLC,Soft Facilities Management,Mail & Couriers,38.22,0,38.22,19-Aug-11,COMMUNITIES
Nottinghamshire County Council,05-07624,ROYAL MAIL GROUP PLC,Soft Facilities Management,Mail & Couriers,30.8,0,30.8,19-Aug-11,COMMUNITIES
Nottinghamshire County Council,05-07624,ROYAL MAIL GROUP PLC,Soft Facilities Management,Mail & Couriers,26.04,0,26.04,19-Aug-11,COMMUNITIES
Nottinghamshire County Council,05-07624,ROYAL MAIL GROUP PLC,Soft Facilities Management,Mail & Couriers,58.11,0,58.11,19-Aug-11,COMMUNITIES
Nottinghamshire County Council,05-07624,ROYAL MAIL GROUP PLC,Soft Facilities Management,Mail & Couriers,130.26,0,130.26,19-Aug-11,COMMUNITIES
Nottinghamshire County Council,05-07624,ROYAL MAIL GROUP PLC,Soft Facilities Management,Mail & Couriers,30.52,0,30.52,19-Aug-11,COMMUNITIES
Nottinghamshire County Council,05-07624,ROYAL MAIL GROUP PLC,Soft Facilities Management,Mail & Couriers,31.08,0,31.08,19-Aug-11,COMMUNITIES
Nottinghamshire County Council,05-07624,ROYAL MAIL GROUP PLC,Soft Facilities Management,Mail & Couriers,52.26,0,52.26,19-Aug-11,COMMUNITIES
Nottinghamshire County Council,05-07624,ROYAL MAIL GROUP PLC,Soft Facilities Management,Mail & Couriers,23.8,0,23.8,19-Aug-11,COMMUNITIES
Nottinghamshire County Council,05-07624,ROYAL MAIL GROUP PLC,Soft Facilities Management,Mail & Couriers,133.38,0,133.38,19-Aug-11,COMMUNITIES
Nottinghamshire County Council,05-07925,CHIPSIDE LTD,ICT,Software,948.47,189.69,"1,138.16",22-Aug-11,COMMUNITIES
Nottinghamshire County Council,05-07925,CHIPSIDE LTD,ICT,Software,"1,506.53",301.31,"1,807.84",22-Aug-11,COMMUNITIES
Nottinghamshire County Council,05-01801,IBM UNITED KINGDOM LTD,ICT,Information Technology Service Delivery,60,0,60,08-Aug-11,COMMUNITIES
Nottinghamshire County Council,05-01801,IBM UNITED KINGDOM LTD,ICT,Information Technology Service Delivery,250,0,250,08-Aug-11,COMMUNITIES
Nottinghamshire County Council,05-01801,IBM UNITED KINGDOM LTD,ICT,Information Technology Service Delivery,60,0,60,08-Aug-11,COMMUNITIES
Nottinghamshire County Council,05-01801,IBM UNITED KINGDOM LTD,ICT,Information Technology Service Delivery,60,0,60,08-Aug-11,COMMUNITIES
Nottinghamshire County Council,05-01860,GAVURIN LTD,ICT,Software,"9,000.00",0,"9,000.00",25-Aug-11,COMMUNITIES
Nottinghamshire County Council,05-01342,ROYAL MAIL GROUP PLC,Soft Facilities Management,Mail & Couriers,10.08,0,10.08,02-Aug-11,COMMUNITIES
Nottinghamshire County Council,05-01342,ROYAL MAIL GROUP PLC,Soft Facilities Management,Mail & Couriers,9.63,0,9.63,02-Aug-11,COMMUNITIES
Nottinghamshire County Council,05-01342,ROYAL MAIL GROUP PLC,Soft Facilities Management,Mail & Couriers,1.12,0,1.12,02-Aug-11,COMMUNITIES
Nottinghamshire County Council,05-01342,ROYAL MAIL GROUP PLC,Soft Facilities Management,Mail & Couriers,2.8,0,2.8,02-Aug-11,COMMUNITIES
Nottinghamshire County Council,05-01342,ROYAL MAIL GROUP PLC,Soft Facilities Management,Mail & Couriers,26.04,0,26.04,02-Aug-11,COMMUNITIES
Nottinghamshire County Council,05-01342,ROYAL MAIL GROUP PLC,Soft Facilities Management,Mail & Couriers,12.04,0,12.04,02-Aug-11,COMMUNITIES
Nottinghamshire County Council,05-01342,ROYAL MAIL GROUP PLC,Soft Facilities Management,Mail & Couriers,3.08,0,3.08,02-Aug-11,COMMUNITIES
Nottinghamshire County Council,05-01342,ROYAL MAIL GROUP PLC,Soft Facilities Management,Mail & Couriers,24.08,0,24.08,02-Aug-11,COMMUNITIES
Nottinghamshire County Council,05-01342,ROYAL MAIL GROUP PLC,Soft Facilities Management,Mail & Couriers,3.36,0,3.36,02-Aug-11,COMMUNITIES
Nottinghamshire County Council,05-01342,ROYAL MAIL GROUP PLC,Soft Facilities Management,Mail & Couriers,0.28,0,0.28,02-Aug-11,COMMUNITIES
Nottinghamshire County Council,05-01342,ROYAL MAIL GROUP PLC,Soft Facilities Management,Mail & Couriers,8.4,0,8.4,02-Aug-11,COMMUNITIES
Nottinghamshire County Council,05-01342,ROYAL MAIL GROUP PLC,Soft Facilities Management,Mail & Couriers,8.68,0,8.68,02-Aug-11,COMMUNITIES
Nottinghamshire County Council,05-01342,ROYAL MAIL GROUP PLC,Soft Facilities Management,Mail & Couriers,6.16,0,6.16,02-Aug-11,COMMUNITIES
Nottinghamshire County Council,05-01342,ROYAL MAIL GROUP PLC,Soft Facilities Management,Mail & Couriers,6.44,0,6.44,02-Aug-11,COMMUNITIES
Nottinghamshire County Council,05-01342,ROYAL MAIL GROUP PLC,Soft Facilities Management,Mail & Couriers,5.04,0,5.04,02-Aug-11,COMMUNITIES
Nottinghamshire County Council,05-01342,ROYAL MAIL GROUP PLC,Soft Facilities Management,Mail & Couriers,12.04,0,12.04,02-Aug-11,COMMUNITIES
Nottinghamshire County Council,05-01342,ROYAL MAIL GROUP PLC,Soft Facilities Management,Mail & Couriers,0.39,0,0.39,02-Aug-11,COMMUNITIES
Nottinghamshire County Council,05-01342,ROYAL MAIL GROUP PLC,Soft Facilities Management,Mail & Couriers,12.88,0,12.88,02-Aug-11,COMMUNITIES
Nottinghamshire County Council,05-01342,ROYAL MAIL GROUP PLC,Soft Facilities Management,Mail & Couriers,16.52,0,16.52,02-Aug-11,COMMUNITIES
Nottinghamshire County Council,05-01342,ROYAL MAIL GROUP PLC,Soft Facilities Management,Mail & Couriers,8.4,0,8.4,02-Aug-11,COMMUNITIES
Nottinghamshire County Council,05-01342,ROYAL MAIL GROUP PLC,Soft Facilities Management,Mail & Couriers,0.28,0,0.28,02-Aug-11,COMMUNITIES
Nottinghamshire County Council,05-01342,ROYAL MAIL GROUP PLC,Soft Facilities Management,Mail & Couriers,16.52,0,16.52,02-Aug-11,COMMUNITIES
Nottinghamshire County Council,05-01342,ROYAL MAIL GROUP PLC,Soft Facilities Management,Mail & Couriers,11.48,0,11.48,02-Aug-11,COMMUNITIES
Nottinghamshire County Council,05-01342,ROYAL MAIL GROUP PLC,Soft Facilities Management,Mail & Couriers,7.56,0,7.56,02-Aug-11,COMMUNITIES
Nottinghamshire County Council,05-01342,ROYAL MAIL GROUP PLC,Soft Facilities Management,Mail & Couriers,8.4,0,8.4,02-Aug-11,COMMUNITIES
Nottinghamshire County Council,05-01342,ROYAL MAIL GROUP PLC,Soft Facilities Management,Mail & Couriers,11.76,0,11.76,02-Aug-11,COMMUNITIES
Nottinghamshire County Council,05-01342,ROYAL MAIL GROUP PLC,Soft Facilities Management,Mail & Couriers,11.03,0,11.03,02-Aug-11,COMMUNITIES
Nottinghamshire County Council,05-01342,ROYAL MAIL GROUP PLC,Soft Facilities Management,Mail & Couriers,21.56,0,21.56,02-Aug-11,COMMUNITIES
Nottinghamshire County Council,05-01342,ROYAL MAIL GROUP PLC,Soft Facilities Management,Mail & Couriers,9.24,0,9.24,02-Aug-11,COMMUNITIES
Nottinghamshire County Council,05-01342,ROYAL MAIL GROUP PLC,Soft Facilities Management,Mail & Couriers,13.16,0,13.16,02-Aug-11,COMMUNITIES
Nottinghamshire County Council,05-01342,ROYAL MAIL GROUP PLC,Soft Facilities Management,Mail & Couriers,12.88,0,12.88,02-Aug-11,COMMUNITIES
Nottinghamshire County Council,05-01342,ROYAL MAIL GROUP PLC,Soft Facilities Management,Mail & Couriers,30.11,0,30.11,02-Aug-11,COMMUNITIES
Nottinghamshire County Council,05-01342,ROYAL MAIL GROUP PLC,Soft Facilities Management,Mail & Couriers,7.56,0,7.56,02-Aug-11,COMMUNITIES
Nottinghamshire County Council,05-01342,ROYAL MAIL GROUP PLC,Soft Facilities Management,Mail & Couriers,0.28,0,0.28,02-Aug-11,COMMUNITIES
Nottinghamshire County Council,05-01342,ROYAL MAIL GROUP PLC,Soft Facilities Management,Mail & Couriers,39.48,0,39.48,02-Aug-11,COMMUNITIES
Nottinghamshire County Council,05-01342,ROYAL MAIL GROUP PLC,Soft Facilities Management,Mail & Couriers,10.36,0,10.36,02-Aug-11,COMMUNITIES
Nottinghamshire County Council,05-01342,ROYAL MAIL GROUP PLC,Soft Facilities Management,Mail & Couriers,5.04,0,5.04,02-Aug-11,COMMUNITIES
Nottinghamshire County Council,05-01342,ROYAL MAIL GROUP PLC,Soft Facilities Management,Mail & Couriers,0.39,0,0.39,02-Aug-11,COMMUNITIES
Nottinghamshire County Council,05-01342,ROYAL MAIL GROUP PLC,Soft Facilities Management,Mail & Couriers,0.28,0,0.28,02-Aug-11,COMMUNITIES
Nottinghamshire County Council,05-01342,ROYAL MAIL GROUP PLC,Soft Facilities Management,Mail & Couriers,12.75,0,12.75,02-Aug-11,COMMUNITIES
Nottinghamshire County Council,05-01342,ROYAL MAIL GROUP PLC,Soft Facilities Management,Mail & Couriers,4.76,0,4.76,02-Aug-11,COMMUNITIES
Nottinghamshire County Council,05-01342,ROYAL MAIL GROUP PLC,Soft Facilities Management,Mail & Couriers,1.68,0,1.68,02-Aug-11,COMMUNITIES
Nottinghamshire County Council,05-01342,ROYAL MAIL GROUP PLC,Soft Facilities Management,Mail & Couriers,0.39,0,0.39,02-Aug-11,COMMUNITIES
Nottinghamshire County Council,05-01342,ROYAL MAIL GROUP PLC,Soft Facilities Management,Mail & Couriers,3.08,0,3.08,02-Aug-11,COMMUNITIES
Nottinghamshire County Council,05-01342,ROYAL MAIL GROUP PLC,Soft Facilities Management,Mail & Couriers,7.84,0,7.84,02-Aug-11,COMMUNITIES
Nottinghamshire County Council,05-01342,ROYAL MAIL GROUP PLC,Soft Facilities Management,Mail & Couriers,4.48,0,4.48,02-Aug-11,COMMUNITIES
Nottinghamshire County Council,05-01342,ROYAL MAIL GROUP PLC,Soft Facilities Management,Mail & Couriers,4.76,0,4.76,02-Aug-11,COMMUNITIES
Nottinghamshire County Council,05-01342,ROYAL MAIL GROUP PLC,Soft Facilities Management,Mail & Couriers,7,0,7,02-Aug-11,COMMUNITIES
Nottinghamshire County Council,05-01342,ROYAL MAIL GROUP PLC,Soft Facilities Management,Mail & Couriers,4.48,0,4.48,02-Aug-11,COMMUNITIES
Nottinghamshire County Council,05-01342,ROYAL MAIL GROUP PLC,Soft Facilities Management,Mail & Couriers,7.28,0,7.28,02-Aug-11,COMMUNITIES
Nottinghamshire County Council,05-01342,ROYAL MAIL GROUP PLC,Soft Facilities Management,Mail & Couriers,21.84,0,21.84,02-Aug-11,COMMUNITIES
Nottinghamshire County Council,05-01342,ROYAL MAIL GROUP PLC,Soft Facilities Management,Mail & Couriers,3.08,0,3.08,02-Aug-11,COMMUNITIES
Nottinghamshire County Council,05-01342,ROYAL MAIL GROUP PLC,Soft Facilities Management,Mail & Couriers,0.28,0,0.28,02-Aug-11,COMMUNITIES
Nottinghamshire County Council,05-01342,ROYAL MAIL GROUP PLC,Soft Facilities Management,Mail & Couriers,0.28,0,0.28,02-Aug-11,COMMUNITIES
Nottinghamshire County Council,05-01342,ROYAL MAIL GROUP PLC,Soft Facilities Management,Mail & Couriers,1.4,0,1.4,02-Aug-11,COMMUNITIES
Nottinghamshire County Council,05-01342,ROYAL MAIL GROUP PLC,Soft Facilities Management,Mail & Couriers,5.88,0,5.88,02-Aug-11,COMMUNITIES
Nottinghamshire County Council,05-01342,ROYAL MAIL GROUP PLC,Soft Facilities Management,Mail & Couriers,0.84,0,0.84,02-Aug-11,COMMUNITIES
Nottinghamshire County Council,05-01342,ROYAL MAIL GROUP PLC,Soft Facilities Management,Mail & Couriers,6.16,0,6.16,02-Aug-11,COMMUNITIES
Nottinghamshire County Council,05-01342,ROYAL MAIL GROUP PLC,Soft Facilities Management,Mail & Couriers,3.92,0,3.92,02-Aug-11,COMMUNITIES
Nottinghamshire County Council,05-01342,ROYAL MAIL GROUP PLC,Soft Facilities Management,Mail & Couriers,2.52,0,2.52,02-Aug-11,COMMUNITIES
Nottinghamshire County Council,05-01342,ROYAL MAIL GROUP PLC,Soft Facilities Management,Mail & Couriers,3.36,0,3.36,02-Aug-11,COMMUNITIES
Nottinghamshire County Council,05-01342,ROYAL MAIL GROUP PLC,Soft Facilities Management,Mail & Couriers,5.42,0,5.42,02-Aug-11,COMMUNITIES
Nottinghamshire County Council,05-01342,ROYAL MAIL GROUP PLC,Soft Facilities Management,Mail & Couriers,1.68,0,1.68,02-Aug-11,COMMUNITIES
Nottinghamshire County Council,05-01342,ROYAL MAIL GROUP PLC,Soft Facilities Management,Mail & Couriers,5.32,0,5.32,02-Aug-11,COMMUNITIES
Nottinghamshire County Council,05-01342,ROYAL MAIL GROUP PLC,Soft Facilities Management,Mail & Couriers,0.84,0,0.84,02-Aug-11,COMMUNITIES
Nottinghamshire County Council,05-01342,ROYAL MAIL GROUP PLC,Soft Facilities Management,Mail & Couriers,1.96,0,1.96,02-Aug-11,COMMUNITIES
Nottinghamshire County Council,05-01342,ROYAL MAIL GROUP PLC,Soft Facilities Management,Mail & Couriers,4.76,0,4.76,02-Aug-11,COMMUNITIES
Nottinghamshire County Council,05-01342,ROYAL MAIL GROUP PLC,Soft Facilities Management,Mail & Couriers,3.08,0,3.08,02-Aug-11,COMMUNITIES
Nottinghamshire County Council,05-01342,ROYAL MAIL GROUP PLC,Soft Facilities Management,Mail & Couriers,0.28,0,0.28,02-Aug-11,COMMUNITIES
Nottinghamshire County Council,05-01342,ROYAL MAIL GROUP PLC,Soft Facilities Management,Mail & Couriers,5.6,0,5.6,02-Aug-11,COMMUNITIES
Nottinghamshire County Council,05-01342,ROYAL MAIL GROUP PLC,Soft Facilities Management,Mail & Couriers,1.96,0,1.96,02-Aug-11,COMMUNITIES
Nottinghamshire County Council,05-01342,ROYAL MAIL GROUP PLC,Soft Facilities Management,Mail & Couriers,1.96,0,1.96,02-Aug-11,COMMUNITIES
Nottinghamshire County Council,05-01342,ROYAL MAIL GROUP PLC,Soft Facilities Management,Mail & Couriers,5.04,0,5.04,02-Aug-11,COMMUNITIES
Nottinghamshire County Council,05-01342,ROYAL MAIL GROUP PLC,Soft Facilities Management,Mail & Couriers,3.64,0,3.64,02-Aug-11,COMMUNITIES
Nottinghamshire County Council,05-01342,ROYAL MAIL GROUP PLC,Soft Facilities Management,Mail & Couriers,6.31,0,6.31,02-Aug-11,COMMUNITIES
Nottinghamshire County Council,05-01342,ROYAL MAIL GROUP PLC,Soft Facilities Management,Mail & Couriers,11.97,0,11.97,02-Aug-11,COMMUNITIES
Nottinghamshire County Council,05-01342,ROYAL MAIL GROUP PLC,Soft Facilities Management,Mail & Couriers,2.21,0,2.21,02-Aug-11,COMMUNITIES
Nottinghamshire County Council,05-01342,ROYAL MAIL GROUP PLC,Soft Facilities Management,Mail & Couriers,9.58,0,9.58,02-Aug-11,COMMUNITIES
Nottinghamshire County Council,05-01342,ROYAL MAIL GROUP PLC,Soft Facilities Management,Mail & Couriers,0.43,0,0.43,02-Aug-11,COMMUNITIES
Nottinghamshire County Council,05-01342,ROYAL MAIL GROUP PLC,Soft Facilities Management,Mail & Couriers,0.32,0,0.32,02-Aug-11,COMMUNITIES
Nottinghamshire County Council,05-01342,ROYAL MAIL GROUP PLC,Soft Facilities Management,Mail & Couriers,4.73,0,4.73,02-Aug-11,COMMUNITIES
Nottinghamshire County Council,05-01342,ROYAL MAIL GROUP PLC,Soft Facilities Management,Mail & Couriers,12.04,0,12.04,02-Aug-11,COMMUNITIES
Nottinghamshire County Council,05-01342,ROYAL MAIL GROUP PLC,Soft Facilities Management,Mail & Couriers,6.95,0,6.95,02-Aug-11,COMMUNITIES
Nottinghamshire County Council,05-01342,ROYAL MAIL GROUP PLC,Soft Facilities Management,Mail & Couriers,0.32,0,0.32,02-Aug-11,COMMUNITIES
Nottinghamshire County Council,05-01342,ROYAL MAIL GROUP PLC,Soft Facilities Management,Mail & Couriers,4.73,0,4.73,02-Aug-11,COMMUNITIES
Nottinghamshire County Council,05-01342,ROYAL MAIL GROUP PLC,Soft Facilities Management,Mail & Couriers,18.27,0,18.27,02-Aug-11,COMMUNITIES
Nottinghamshire County Council,05-01342,ROYAL MAIL GROUP PLC,Soft Facilities Management,Mail & Couriers,10.4,0,10.4,02-Aug-11,COMMUNITIES
Nottinghamshire County Council,05-01342,ROYAL MAIL GROUP PLC,Soft Facilities Management,Mail & Couriers,7.88,0,7.88,02-Aug-11,COMMUNITIES
Nottinghamshire County Council,05-01342,ROYAL MAIL GROUP PLC,Soft Facilities Management,Mail & Couriers,4.1,0,4.1,02-Aug-11,COMMUNITIES
Nottinghamshire County Council,05-01342,ROYAL MAIL GROUP PLC,Soft Facilities Management,Mail & Couriers,9.97,0,9.97,02-Aug-11,COMMUNITIES
Nottinghamshire County Council,05-01941,FRESH OPPORTUNITIES LTD,Soft Facilities Management,Beverages,870,0,870,04-Aug-11,COMMUNITIES
Nottinghamshire County Council,05-01941,FRESH OPPORTUNITIES LTD,Soft Facilities Management,Beverages,42,0,42,04-Aug-11,COMMUNITIES
Nottinghamshire County Council,05-08480,REFORM PLASTICS (DERBY) LTD,Hard Facilities Management ,Building & Construction Supplies,510.69,102.14,612.83,24-Aug-11,COMMUNITIES
Nottinghamshire County Council,05-03329,J M COUNTRYSIDE LANDSCAPES,External Services (Highways & Culture),Farming Forestry & Wildlife Services,"2,483.00",0,"2,483.00",15-Aug-11,COMMUNITIES
Nottinghamshire County Council,05-03692,R P HUNT SERVICES,External Services (Highways & Culture),Manufacturing Machinery,"4,000.00",0,"4,000.00",15-Aug-11,COMMUNITIES
Nottinghamshire County Council,05-03328,E M D D LTD,Hard Facilities Management ,Tools & General Machinery,"5,215.48",0,"5,215.48",12-Aug-11,COMMUNITIES
Nottinghamshire County Council,05-03328,E M D D LTD,Hard Facilities Management ,Tools & General Machinery,"1,171.25",0,"1,171.25",12-Aug-11,COMMUNITIES
Nottinghamshire County Council,05-03328,E M D D LTD,Hard Facilities Management ,Tools & General Machinery,"14,519.91",0,"14,519.91",12-Aug-11,COMMUNITIES
Nottinghamshire County Council,05-01296,TARMAC CENTRAL LTD,External Services (Highways & Culture),Highways & Works,"8,581.26",0,"8,581.26",10-Aug-11,COMMUNITIES
Nottinghamshire County Council,05-00141,BARKER ROSS LTD,People,Recruitment,"1,061.20",212.24,"1,273.44",18-Aug-11,COMMUNITIES
Nottinghamshire County Council,05-07230,BARKER ROSS LTD,People,Recruitment,"-1,103.20",-220.64,"-1,323.84",18-Aug-11,COMMUNITIES
Nottinghamshire County Council,05-07230,BARKER ROSS LTD,People,Recruitment,"-1,061.20",-212.24,"-1,273.44",18-Aug-11,COMMUNITIES
Nottinghamshire County Council,05-07300,BARKER ROSS LTD,People,Recruitment,"1,103.20",220.64,"1,323.84",18-Aug-11,COMMUNITIES
Nottinghamshire County Council,05-01188,N POWER,Hard Facilities Management ,Utilities,"310,639.00","54,361.83","365,000.83",02-Aug-11,COMMUNITIES
Nottinghamshire County Council,05-01189,N POWER,Hard Facilities Management ,Utilities,"552,200.39","82,830.06","635,030.45",02-Aug-11,COMMUNITIES
Nottinghamshire County Council,05-01190,N POWER,Hard Facilities Management ,Utilities,"570,385.85","85,557.88","655,943.73",02-Aug-11,COMMUNITIES
Nottinghamshire County Council,05-01191,N POWER,Hard Facilities Management ,Utilities,"451,005.44","78,925.95","529,931.39",02-Aug-11,COMMUNITIES
Nottinghamshire County Council,05-01192,N POWER,Hard Facilities Management ,Utilities,"521,094.74","91,191.58","612,286.32",02-Aug-11,COMMUNITIES
Nottinghamshire County Council,05-01193,N POWER,Hard Facilities Management ,Utilities,"448,601.53","67,290.23","515,891.76",02-Aug-11,COMMUNITIES
Nottinghamshire County Council,05-01194,N POWER,Hard Facilities Management ,Utilities,"422,816.51","63,422.48","486,238.99",02-Aug-11,COMMUNITIES
Nottinghamshire County Council,05-01195,N POWER,Hard Facilities Management ,Utilities,"340,638.80","51,095.82","391,734.62",02-Aug-11,COMMUNITIES
Nottinghamshire County Council,05-01196,N POWER,Hard Facilities Management ,Utilities,"280,345.10","42,051.77","322,396.87",02-Aug-11,COMMUNITIES
Nottinghamshire County Council,05-01197,N POWER,Hard Facilities Management ,Utilities,"236,853.17","35,527.98","272,381.15",02-Aug-11,COMMUNITIES
Nottinghamshire County Council,05-01198,N POWER,Hard Facilities Management ,Utilities,"267,789.12","40,168.37","307,957.49",02-Aug-11,COMMUNITIES
Nottinghamshire County Council,05-01199,N POWER,Hard Facilities Management ,Utilities,"319,175.56","47,876.33","367,051.89",02-Aug-11,COMMUNITIES
Nottinghamshire County Council,05-01200,N POWER,Hard Facilities Management ,Utilities,"380,666.20","57,099.93","437,766.13",02-Aug-11,COMMUNITIES
Nottinghamshire County Council,05-01201,N POWER,Hard Facilities Management ,Utilities,"470,894.32","70,634.15","541,528.47",02-Aug-11,COMMUNITIES
Nottinghamshire County Council,05-01202,N POWER,Hard Facilities Management ,Utilities,"507,110.95","76,066.64","583,177.59",02-Aug-11,COMMUNITIES
Nottinghamshire County Council,05-01203,N POWER,Hard Facilities Management ,Utilities,"560,626.68","84,094.00","644,720.68",02-Aug-11,COMMUNITIES
Nottinghamshire County Council,05-01204,N POWER,Hard Facilities Management ,Utilities,"560,881.01","98,154.18","659,035.19",02-Aug-11,COMMUNITIES
Nottinghamshire County Council,05-01205,N POWER,Hard Facilities Management ,Utilities,"458,024.98","80,154.37","538,179.35",02-Aug-11,COMMUNITIES
Nottinghamshire County Council,05-01206,N POWER,Hard Facilities Management ,Utilities,"436,438.03","76,376.66","512,814.69",02-Aug-11,COMMUNITIES
Nottinghamshire County Council,05-01207,N POWER,Hard Facilities Management ,Utilities,"349,463.68","61,156.14","410,619.82",02-Aug-11,COMMUNITIES
Nottinghamshire County Council,05-01208,N POWER,Hard Facilities Management ,Utilities,"295,591.52","51,728.52","347,320.04",02-Aug-11,COMMUNITIES
Nottinghamshire County Council,05-01209,N POWER,Hard Facilities Management ,Utilities,"249,656.24","43,689.84","293,346.08",02-Aug-11,COMMUNITIES
Nottinghamshire County Council,05-01210,N POWER,Hard Facilities Management ,Utilities,"277,718.70","48,600.77","326,319.47",02-Aug-11,COMMUNITIES
Nottinghamshire County Council,05-01211,N POWER,Hard Facilities Management ,Utilities,"337,269.58","59,022.18","396,291.76",02-Aug-11,COMMUNITIES
Nottinghamshire County Council,05-01212,N POWER,Hard Facilities Management ,Utilities,"397,804.44","69,615.78","467,420.22",02-Aug-11,COMMUNITIES
Nottinghamshire County Council,05-01213,N POWER,Hard Facilities Management ,Utilities,"483,464.73","84,606.33","568,071.06",02-Aug-11,COMMUNITIES
Nottinghamshire County Council,05-01214,N POWER,Hard Facilities Management ,Utilities,"530,980.99","92,921.67","623,902.66",02-Aug-11,COMMUNITIES
Nottinghamshire County Council,05-01215,N POWER,Hard Facilities Management ,Utilities,"584,527.02","102,292.23","686,819.25",02-Aug-11,COMMUNITIES
Nottinghamshire County Council,05-01216,N POWER,Hard Facilities Management ,Utilities,"51,113.61","8,944.88","60,058.49",02-Aug-11,COMMUNITIES
Nottinghamshire County Council,05-01216,N POWER,Hard Facilities Management ,Utilities,"516,815.71","103,363.14","620,178.85",02-Aug-11,COMMUNITIES
Nottinghamshire County Council,05-01217,N POWER,Hard Facilities Management ,Utilities,"466,020.55","93,204.11","559,224.66",02-Aug-11,COMMUNITIES
Nottinghamshire County Council,05-01262,N POWER,Hard Facilities Management ,Utilities,"-510,317.66","-25,515.88","-535,833.54",02-Aug-11,COMMUNITIES
Nottinghamshire County Council,05-01263,N POWER,Hard Facilities Management ,Utilities,"-464,650.59","-23,232.53","-487,883.12",02-Aug-11,COMMUNITIES
Nottinghamshire County Council,05-01264,N POWER,Hard Facilities Management ,Utilities,"-382,323.94","-19,116.20","-401,440.14",02-Aug-11,COMMUNITIES
Nottinghamshire County Council,05-01265,N POWER,Hard Facilities Management ,Utilities,"-324,144.91","-16,207.25","-340,352.16",02-Aug-11,COMMUNITIES
Nottinghamshire County Council,05-01266,N POWER,Hard Facilities Management ,Utilities,"-266,911.57","-13,345.58","-280,257.15",02-Aug-11,COMMUNITIES
Nottinghamshire County Council,05-01267,N POWER,Hard Facilities Management ,Utilities,"-239,941.21","-11,997.06","-251,938.27",02-Aug-11,COMMUNITIES
Nottinghamshire County Council,05-01268,N POWER,Hard Facilities Management ,Utilities,"-284,088.83","-14,204.44","-298,293.27",02-Aug-11,COMMUNITIES
Nottinghamshire County Council,05-01269,N POWER,Hard Facilities Management ,Utilities,"-335,864.45","-16,793.22","-352,657.67",02-Aug-11,COMMUNITIES
Nottinghamshire County Council,05-01270,N POWER,Hard Facilities Management ,Utilities,"-419,454.03","-20,972.70","-440,426.73",02-Aug-11,COMMUNITIES
Nottinghamshire County Council,05-01271,N POWER,Hard Facilities Management ,Utilities,"-439,600.97","-21,980.05","-461,581.02",02-Aug-11,COMMUNITIES
Nottinghamshire County Council,05-01272,N POWER,Hard Facilities Management ,Utilities,"-538,203.38","-26,910.17","-565,113.55",02-Aug-11,COMMUNITIES
Nottinghamshire County Council,05-01273,N POWER,Hard Facilities Management ,Utilities,"-538,809.63","-26,940.48","-565,750.11",02-Aug-11,COMMUNITIES
Nottinghamshire County Council,05-01274,N POWER,Hard Facilities Management ,Utilities,"-487,376.57","-24,368.83","-511,745.40",02-Aug-11,COMMUNITIES
Nottinghamshire County Council,05-01275,N POWER,Hard Facilities Management ,Utilities,"-451,592.88","-22,579.64","-474,172.52",02-Aug-11,COMMUNITIES
Nottinghamshire County Council,05-01276,N POWER,Hard Facilities Management ,Utilities,"-365,852.67","-18,292.63","-384,145.30",02-Aug-11,COMMUNITIES
Nottinghamshire County Council,05-01277,N POWER,Hard Facilities Management ,Utilities,"-306,755.05","-15,337.75","-322,092.80",02-Aug-11,COMMUNITIES
Nottinghamshire County Council,05-01278,N POWER,Hard Facilities Management ,Utilities,"-257,368.42","-12,868.42","-270,236.84",02-Aug-11,COMMUNITIES
Nottinghamshire County Council,05-01279,N POWER,Hard Facilities Management ,Utilities,"-227,573.72","-11,378.69","-238,952.41",02-Aug-11,COMMUNITIES
Nottinghamshire County Council,05-01280,N POWER,Hard Facilities Management ,Utilities,"-269,435.76","-13,471.79","-282,907.55",02-Aug-11,COMMUNITIES
Nottinghamshire County Council,05-01281,N POWER,Hard Facilities Management ,Utilities,"-327,355.50","-16,367.78","-343,723.28",02-Aug-11,COMMUNITIES
Nottinghamshire County Council,05-01282,N POWER,Hard Facilities Management ,Utilities,"-406,834.20","-20,341.71","-427,175.91",02-Aug-11,COMMUNITIES
Nottinghamshire County Council,05-01283,N POWER,Hard Facilities Management ,Utilities,"-431,211.69","-21,560.58","-452,772.27",02-Aug-11,COMMUNITIES
Nottinghamshire County Council,05-01284,N POWER,Hard Facilities Management ,Utilities,"-531,612.35","-26,580.62","-558,192.97",02-Aug-11,COMMUNITIES
Nottinghamshire County Council,05-01285,N POWER,Hard Facilities Management ,Utilities,"-561,779.84","-28,088.99","-589,868.83",02-Aug-11,COMMUNITIES
Nottinghamshire County Council,05-01286,N POWER,Hard Facilities Management ,Utilities,"-296,795.99","-14,839.80","-311,635.79",02-Aug-11,COMMUNITIES
Nottinghamshire County Council,05-01287,N POWER,Hard Facilities Management ,Utilities,"-500,499.21","-25,024.96","-525,524.17",02-Aug-11,COMMUNITIES
Nottinghamshire County Council,05-01288,N POWER,Hard Facilities Management ,Utilities,"-434,859.88","-21,742.99","-456,602.87",02-Aug-11,COMMUNITIES
Nottinghamshire County Council,05-01289,N POWER,Hard Facilities Management ,Utilities,"-548,825.19","-27,441.26","-576,266.45",02-Aug-11,COMMUNITIES
Nottinghamshire County Council,05-01290,N POWER,Hard Facilities Management ,Utilities,"-545,828.08","-27,291.40","-573,119.48",02-Aug-11,COMMUNITIES
Nottinghamshire County Council,05-01291,N POWER,Hard Facilities Management ,Utilities,"-447,885.28","-22,394.26","-470,279.54",02-Aug-11,COMMUNITIES
Nottinghamshire County Council,05-02309,1ST CALL COMMUNICATIONS LTD,ICT,Telecommunications & Media,729.95,145.99,875.94,22-Aug-11,COMMUNITIES
Nottinghamshire County Council,05-01127,FIRST CAR LTD,Transport & Travel,Motor Vehicles,"1,500.00",0,"1,500.00",01-Aug-11,COMMUNITIES
Nottinghamshire County Council,05-00106,CLEARBOX WEBDESIGN LTD,ICT,"Printing & Publishing, Equipment & Supplies",650,0,650,02-Aug-11,COMMUNITIES
Nottinghamshire County Council,05-02107,EPS GROUP,Professional Services,Consultancy,"1,275.00",255,"1,530.00",09-Aug-11,COMMUNITIES
Nottinghamshire County Council,05-03030,EPS GROUP,Professional Services,Consultancy,900,180,"1,080.00",31-Aug-11,COMMUNITIES
Nottinghamshire County Council,05-02938,DEPARTMENT FOR TRANSPORT,Professional Services,Politics & Civic Affairs,"20,900.79",0,"20,900.79",18-Aug-11,COMMUNITIES
Nottinghamshire County Council,05-03246,WASTE RECYCLING GROUP PLC,Soft Facilities Management,Environmental Services,"97,888.63","19,577.73","117,466.36",15-Aug-11,COMMUNITIES
Nottinghamshire County Council,05-07895,ENVIRONMENT AGENCY,Professional Services,Politics & Civic Affairs,"5,139.34",0,"5,139.34",22-Aug-11,COMMUNITIES
Nottinghamshire County Council,05-01642,S R C L LTD,Soft Facilities Management,Scrap & Waste Materials,"8,669.34",0,"8,669.34",03-Aug-11,COMMUNITIES
Nottinghamshire County Council,05-00813,SHARPE PRITCHARD SOLICITORS,Professional Services,Legal Services,671.67,0,671.67,01-Aug-11,COMMUNITIES
Nottinghamshire County Council,05-04080,VEOLIA ENVIRONMENTAL SERVICES PLC,Soft Facilities Management,Scrap & Waste Materials,"777,107.73","155,421.55","932,529.28",17-Aug-11,COMMUNITIES
Nottinghamshire County Council,05-04080,VEOLIA ENVIRONMENTAL SERVICES PLC,Soft Facilities Management,Scrap & Waste Materials,"147,255.58","29,451.12","176,706.70",17-Aug-11,COMMUNITIES
Nottinghamshire County Council,05-04080,VEOLIA ENVIRONMENTAL SERVICES PLC,Soft Facilities Management,Scrap & Waste Materials,"89,411.06","17,882.21","107,293.27",17-Aug-11,COMMUNITIES
Nottinghamshire County Council,05-04080,VEOLIA ENVIRONMENTAL SERVICES PLC,Soft Facilities Management,Scrap & Waste Materials,"274,637.95","54,927.59","329,565.54",17-Aug-11,COMMUNITIES
Nottinghamshire County Council,05-04080,VEOLIA ENVIRONMENTAL SERVICES PLC,Soft Facilities Management,Scrap & Waste Materials,"33,076.28","6,615.26","39,691.54",17-Aug-11,COMMUNITIES
Nottinghamshire County Council,05-04080,VEOLIA ENVIRONMENTAL SERVICES PLC,Soft Facilities Management,Scrap & Waste Materials,"21,948.36","4,389.67","26,338.03",17-Aug-11,COMMUNITIES
Nottinghamshire County Council,05-04080,VEOLIA ENVIRONMENTAL SERVICES PLC,Soft Facilities Management,Scrap & Waste Materials,"205,358.40","41,071.68","246,430.08",17-Aug-11,COMMUNITIES
Nottinghamshire County Council,05-04080,VEOLIA ENVIRONMENTAL SERVICES PLC,Soft Facilities Management,Scrap & Waste Materials,"33,130.11","6,626.02","39,756.13",17-Aug-11,COMMUNITIES
Nottinghamshire County Council,05-04080,VEOLIA ENVIRONMENTAL SERVICES PLC,Soft Facilities Management,Scrap & Waste Materials,"18,768.17","3,753.63","22,521.80",17-Aug-11,COMMUNITIES
Nottinghamshire County Council,05-04080,VEOLIA ENVIRONMENTAL SERVICES PLC,Soft Facilities Management,Scrap & Waste Materials,"120,468.51","24,093.70","144,562.21",17-Aug-11,COMMUNITIES
Nottinghamshire County Council,05-04080,VEOLIA ENVIRONMENTAL SERVICES PLC,Soft Facilities Management,Scrap & Waste Materials,"194,166.05","38,833.21","232,999.26",17-Aug-11,COMMUNITIES
Nottinghamshire County Council,05-04080,VEOLIA ENVIRONMENTAL SERVICES PLC,Soft Facilities Management,Scrap & Waste Materials,"47,361.39","9,472.28","56,833.67",17-Aug-11,COMMUNITIES
Nottinghamshire County Council,05-04080,VEOLIA ENVIRONMENTAL SERVICES PLC,Soft Facilities Management,Scrap & Waste Materials,"-25,598.86","-5,119.77","-30,718.63",17-Aug-11,COMMUNITIES
Nottinghamshire County Council,05-04080,VEOLIA ENVIRONMENTAL SERVICES PLC,Soft Facilities Management,Scrap & Waste Materials,"35,685.06","7,137.01","42,822.07",17-Aug-11,COMMUNITIES
Nottinghamshire County Council,05-04080,VEOLIA ENVIRONMENTAL SERVICES PLC,Soft Facilities Management,Scrap & Waste Materials,"8,115.86","1,623.17","9,739.03",17-Aug-11,COMMUNITIES
Nottinghamshire County Council,05-07922,SCOTT WILSON LTD,Professional Services,Consultancy,"246,323.42","49,264.68","295,588.10",19-Aug-11,COMMUNITIES
Nottinghamshire County Council,05-00008,RADIODETECTION LTD,Soft Facilities Management,Security,-550,0,-550,01-Aug-11,COMMUNITIES
Nottinghamshire County Council,05-00008,RADIODETECTION LTD,Soft Facilities Management,Security,-7.48,0,-7.48,01-Aug-11,COMMUNITIES
Nottinghamshire County Council,05-07336,MIDLAND ROOFING SERVICES (DERBY) LTD,Hard Facilities Management ,Roofing Services,"3,333.00",666.6,"3,999.60",31-Aug-11,#N/A
Nottinghamshire County Council,05-01159,MIDLAND ROOFING SERVICES (DERBY) LTD,Hard Facilities Management ,Roofing Services,"1,902.50",380.5,"2,283.00",01-Aug-11,#N/A
Nottinghamshire County Council,05-07337,MIDLAND ROOFING SERVICES (DERBY) LTD,Hard Facilities Management ,Roofing Services,"2,761.11",552.22,"3,313.33",31-Aug-11,#N/A
Nottinghamshire County Council,05-07340,MIDLAND ROOFING SERVICES (DERBY) LTD,Hard Facilities Management ,Roofing Services,"24,616.33","4,923.27","29,539.60",31-Aug-11,#N/A
Nottinghamshire County Council,05-04024,INTERSERVE PROJECT SERVICES LTD,Professional Services,Professional Engineering Services,"1,972.21",394.44,"2,366.65",17-Aug-11,RESOURCES
Nottinghamshire County Council,05-07227,INTERSERVE PROJECT SERVICES LTD,Professional Services,Professional Engineering Services,"34,304.91","6,860.98","41,165.89",17-Aug-11,RESOURCES
Nottinghamshire County Council,05-03759,PTL OCCUPATIONAL HYGIENE CONSULTANTS,Professional Services,Consultancy,"2,401.90",480.38,"2,882.28",15-Aug-11,RESOURCES
Nottinghamshire County Council,05-03060,ASHWELL ENGINEERING SERVICES LTD,Professional Services,Professional Engineering Services,"4,404.00",880.8,"5,284.80",10-Aug-11,RESOURCES
Nottinghamshire County Council,05-03064,PTL OCCUPATIONAL HYGIENE CONSULTANTS,Professional Services,Consultancy,547.2,109.44,656.64,10-Aug-11,RESOURCES
Nottinghamshire County Council,05-07339,MIDLAND ROOFING SERVICES (DERBY) LTD,Hard Facilities Management ,Roofing Services,"10,843.43","2,168.69","13,012.12",31-Aug-11,RESOURCES
Nottinghamshire County Council,05-07533,MIDLAND ROOFING SERVICES (DERBY) LTD,Hard Facilities Management ,Roofing Services,"8,658.00","1,731.60","10,389.60",31-Aug-11,RESOURCES
Nottinghamshire County Council,05-09132,PTL OCCUPATIONAL HYGIENE CONSULTANTS,Professional Services,Consultancy,"1,838.20",367.64,"2,205.84",31-Aug-11,RESOURCES
Nottinghamshire County Council,05-03756,PTL OCCUPATIONAL HYGIENE CONSULTANTS,Professional Services,Consultancy,"1,931.40",386.28,"2,317.68",15-Aug-11,RESOURCES
Nottinghamshire County Council,05-02538,HERBERT BAGGALEY CONSTRUCTION LTD,Hard Facilities Management ,Building Construction Services,"12,002.79","2,400.56","14,403.35",08-Aug-11,RESOURCES
Nottinghamshire County Council,05-03061,ASHWELL ENGINEERING SERVICES LTD,Professional Services,Professional Engineering Services,"4,404.00",880.8,"5,284.80",10-Aug-11,RESOURCES
Nottinghamshire County Council,05-02540,PTL OCCUPATIONAL HYGIENE CONSULTANTS,Professional Services,Consultancy,536,107.2,643.2,08-Aug-11,RESOURCES
Nottinghamshire County Council,05-02228,ENVIRONTEC LTD,Professional Services,Consultancy,880,176,"1,056.00",05-Aug-11,RESOURCES
Nottinghamshire County Council,05-07731,ASHE CONSTRUCTION LTD,Hard Facilities Management ,Building Construction Services,"34,472.07","6,894.41","41,366.48",19-Aug-11,RESOURCES
Nottinghamshire County Council,05-04026,ANALYTICAL GEOTECHNICS LTD,Soft Facilities Management,Scrap & Waste Materials,"1,150.00",230,"1,380.00",16-Aug-11,RESOURCES
Nottinghamshire County Council,05-03758,PTL OCCUPATIONAL HYGIENE CONSULTANTS,Professional Services,Consultancy,"3,662.00",732.4,"4,394.40",15-Aug-11,RESOURCES
Nottinghamshire County Council,05-02227,PTL OCCUPATIONAL HYGIENE CONSULTANTS,Professional Services,Consultancy,"1,519.60",303.92,"1,823.52",05-Aug-11,RESOURCES
Nottinghamshire County Council,05-09150,SCAPE SYSTEM BUILD LTD,Hard Facilities Management ,Building & Construction Supplies,"1,687.00",337.4,"2,024.40",31-Aug-11,RESOURCES
